Workbook

Sheet xsymbol
D5: SYMBOLE | E5: CODE CLAVIER | F5: CODE HTML ISO | G5: CODE HTML NOMMÉ | H5: DESCRIPTION
C6: &alpha; | D6: $\\alpha\\$ | E6: =CONCATENATE(":%s/",C6,"/",D6,"/gie") -> :%s/&alpha;/$\\alpha\\$/gie | F6: &#945; | G6: &alpha; | H6: Alpha minuscule | L6: SYMBOLE | M6: CODE CLAVIER | N6: CODE HTML ISO | O6: CODE HTML NOMMÉ | P6: DESCRIPTION
C7: &beta; | D7: $\\beta\\$ | E7: :%s/&beta;/$\\beta\\$/gie | F7: &#946; | G7: &beta; | H7: Beta minuscule | L7: ! | M7: Alt+ 33 | N7: &#33; | O7: aucun | P7: Point d'exclamation | R7: =CONCATENATE(":%s/",N7,"/",L7,"/gie") -> :%s/&#33;/!/gie
C8: &gamma; | D8: $\\gamma\\$ | E8: :%s/&gamma;/$\\gamma\\$/gie | F8: &#947; | G8: &gamma; | H8: Gamma minuscule | L8: " | M8: Alt+ 34 | N8: &#34; | O8: &quot; | P8: Guillemets à l'anglaise | R8: :%s/&#34;/"/gie
C9: &delta; | D9: $\\delta\\$ | E9: :%s/&delta;/$\\delta\\$/gie | F9: &#948; | G9: &delta; | H9: Delta minuscule | L9: # | M9: Alt+ 35 | N9: &#35; | O9: aucun | P9: Dièse / Numéro | R9: :%s/&#35;/#/gie
C10: &epsilon; | D10: $\\epsilon\\$ | E10: :%s/&epsilon;/$\\epsilon\\$/gie | F10: &#949; | G10: &epsilon; | H10: Epsilon minuscule | L10: $ | M10: Alt+ 36 | N10: &#36; | O10: &dollar; | P10: Dollar | R10: :%s/&#36;/$/gie
C11: &zeta; | D11: $\\zeta\\$ | E11: :%s/&zeta;/$\\zeta\\$/gie | F11: &#950; | G11: &zeta; | H11: Zeta minuscule | L11: \\% | M11: Alt+ 37 | N11: &#37; | O11: aucun | P11: Pourcent | R11: :%s/&#37;/\\%/gie
C12: &eta; | D12: $\\eta\\$ | E12: :%s/&eta;/$\\eta\\$/gie | F12: &#951; | G12: &eta; | H12: Eta minuscule | L12: \\& | M12: Alt+ 38 | N12: &#38; | O12: &amp; | P12: Esperluette | R12: :%s/&#38;/\\&/gie
C13: &theta; | D13: $\\theta\\$ | E13: :%s/&theta;/$\\theta\\$/gie | F13: &#952; | G13: &theta; | H13: Theta minuscule | L13: ' | M13: Alt+ 39 | N13: &#39; | O13: &apos; | P13: Apostrophe | R13: :%s/&#39;/'/gie
C14: &iota; | D14: $\\iota\\$ | E14: :%s/&iota;/$\\iota\\$/gie | F14: &#953; | G14: &iota; | H14: Iota minuscule | L14: ( | M14: Alt+ 40 | N14: &#40; | O14: aucun | P14: Parenthèse gauche | R14: :%s/&#40;/(/gie
C15: &kappa; | D15: $\\kappa\\$ | E15: :%s/&kappa;/$\\kappa\\$/gie | F15: &#954; | G15: &kappa; | H15: Kappa minuscule | L15: ) | M15: Alt+ 41 | N15: &#41; | O15: aucun | P15: Parenthèse droite | R15: :%s/&#41;/)/gie
C16: &lambda; | D16: $\\lambda\\$ | E16: :%s/&lambda;/$\\lambda\\$/gie | F16: &#955; | G16: &lambda; | H16: Lambda minuscule | L16: * | M16: Alt+ 42 | N16: &#42; | O16: aucun | P16: Astérisque | R16: :%s/&#42;/*/gie
C17: &mu; | D17: $\\mu\\$ | E17: :%s/&mu;/$\\mu\\$/gie | F17: &#956; | G17: &mu; | H17: Mu minuscule | L17: + | M17: Alt+ 43 | N17: &#43; | O17: aucun | P17: Plus | R17: :%s/&#43;/+/gie
C18: &nu; | D18: $\\nu\\$ | E18: :%s/&nu;/$\\nu\\$/gie | F18: &#957; | G18: &nu; | H18: Nu minuscule | L18: , | M18: Alt+ 44 | N18: &#44; | O18: aucun | P18: Virgule | R18: :%s/&#44;/,/gie
C19: &xi; | D19: $\\xi\\$ | E19: :%s/&xi;/$\\xi\\$/gie | F19: &#958; | G19: &xi; | H19: Xi minuscule | L19: - | M19: Alt+ 45 | N19: &#45; | O19: aucun | P19: Moins | R19: :%s/&#45;/-/gie
C20: &omicron; | D20: $\\omicron\\$ | E20: :%s/&omicron;/$\\omicron\\$/gie | F20: &#959; | G20: &omicron; | H20: Omicron minuscule | L20: . | M20: Alt+ 46 | N20: &#46; | O20: aucun | P20: Point | R20: :%s/&#46;/./gie
C21: &pi; | D21: $\\pi\\$ | E21: :%s/&pi;/$\\pi\\$/gie | F21: &#960; | G21: &pi; | H21: Pi minuscule | L21: \/ | M21: Alt+ 47 | N21: &#47; | O21: aucun | P21: Barre oblique (slash) | R21: :%s/&#47;/\//gie
C22: &rho; | D22: $\\rho\\$ | E22: :%s/&rho;/$\\rho\\$/gie | F22: &#961; | G22: &rho; | H22: Rho minuscule | L22: : | M22: Alt+ 58 | N22: &#58; | O22: aucun | P22: Double point | R22: :%s/&#58;/:/gie
C23: &sigma; | D23: $\\sigma\\$ | E23: :%s/&sigma;/$\\sigma\\$/gie | F23: &#963; | G23: &sigma; | H23: Sigma minuscule | L23: ; | M23: Alt+ 59 | N23: &#59; | O23: aucun | P23: Point-virgule | R23: :%s/&#59;/;/gie
C24: &tau; | D24: $\\tau\\$ | E24: :%s/&tau;/$\\tau\\$/gie | F24: &#964; | G24: &tau; | H24: Tau minuscule | L24: < | M24: Alt+ 60 | N24: &#60; | O24: &lt; | P24: Signe inférieur | R24: :%s/&#60;/</gie
C25: &upsilon; | D25: $\\upsilon\\$ | E25: :%s/&upsilon;/$\\upsilon\\$/gie | F25: &#965; | G25: &upsilon; | H25: Upsilon minuscule | L25: = | M25: Alt+ 60 | N25: &#61; | O25: aucun | P25: Égal | R25: :%s/&#61;/=/gie
C26: &phi; | D26: $\\phi\\$ | E26: :%s/&phi;/$\\phi\\$/gie | F26: &#966; | G26: &phi; | H26: Phi minuscule | L26: > | M26: Alt+ 62 | N26: &#62; | O26: &gt; | P26: Signe supérieur | R26: :%s/&#62;/>/gie
C27: &chi; | D27: $\\chi\\$ | E27: :%s/&chi;/$\\chi\\$/gie | F27: &#967; | G27: &chi; | H27: Chi minuscule | L27: ? | M27: Alt+ 63 | N27: &#63; | O27: aucun | P27: Point d'interrogation | R27: :%s/&#63;/?/gie
C28: &psi; | D28: $\\psi\\$ | E28: :%s/&psi;/$\\psi\\$/gie | F28: &#968; | G28: &psi; | H28: Psi minuscule | L28: @ | M28: Alt+ 64 | N28: &#64; | O28: aucun | P28: Arobase | R28: :%s/&#64;/@/gie
C29: &omega; | D29: $\\omega\\$ | E29: :%s/&omega;/$\\omega\\$/gie | F29: &#969; | G29: &omega; | H29: Omega minuscule | L29: [ | M29: Alt+ 91 | N29: &#91; | O29: aucun | P29: Crochet gauche | R29: :%s/&#91;/[/gie
C30: &Alpha; | D30: $\\Alpha\\$ | E30: :%s/&Alpha;/$\\Alpha\\$/gie | F30: &#913; | G30: &Alpha; | H30: Alpha majuscule | L30: \\ | M30: Alt+ 92 | N30: &#92; | O30: aucun | P30: Barre oblique inversée | R30: :%s/&#92;/\\/gie
C31: &Beta; | D31: $\\Beta\\$ | E31: :%s/&Beta;/$\\Beta\\$/gie | F31: &#914; | G31: &Beta; | H31: Beta majuscule | L31: ] | M31: Alt+ 93 | N31: &#93; | O31: aucun | P31: Crochet droit | R31: :%s/&#93;/]/gie
C32: &Gamma; | D32: $\\Gamma\\$ | E32: :%s/&Gamma;/$\\Gamma\\$/gie | F32: &#915; | G32: &Gamma; | H32: Gamma majuscule | L32: ^ | M32: Alt+ 94 | N32: &#94; | O32: aucun | P32: Accent circonflexe | R32: :%s/&#94;/^/gie
C33: &Delta; | D33: $\\Delta\\$ | E33: :%s/&Delta;/$\\Delta\\$/gie | F33: &#916; | G33: &Delta; | H33: Delta majuscule | L33: \_ | M33: Alt+ 95 | N33: &#95; | O33: aucun | P33: Tiret bas (underscore) | R33: :%s/&#95;/\_/gie
C34: &Epsilon; | D34: $\\Epsilon\\$ | E34: :%s/&Epsilon;/$\\Epsilon\\$/gie | F34: &#917; | G34: &Epsilon; | H34: Epsilon majuscule | L34: ` | M34: Alt+ 96 | N34: &#96; | O34: aucun | P34: Accent grave | R34: :%s/&#96;/`/gie
C35: &Zeta; | D35: $\\Zeta\\$ | E35: :%s/&Zeta;/$\\Zeta\\$/gie | F35: &#918; | G35: &Zeta; | H35: Zeta majuscule | L35: { | M35: Alt+ 123 | N35: &#123; | O35: aucun | P35: Accolade gauche | R35: :%s/&#123;/{/gie
C36: &Eta; | D36: $\\Eta\\$ | E36: :%s/&Eta;/$\\Eta\\$/gie | F36: &#919; | G36: &Eta; | H36: Eta majuscule | L36: | | M36: Alt+ 124 | N36: &#124; | O36: aucun | P36: Barre verticale | R36: :%s/&#124;/|/gie
C37: &Theta; | D37: $\\Theta\\$ | E37: :%s/&Theta;/$\\Theta\\$/gie | F37: &#920; | G37: &Theta; | H37: Theta majuscule | L37: } | M37: Alt+ 125 | N37: &#125; | O37: aucun | P37: Accolade droite | R37: :%s/&#125;/}/gie
C38: &Iota; | D38: $\\Iota\\$ | E38: :%s/&Iota;/$\\Iota\\$/gie | F38: &#921; | G38: &Iota; | H38: Iota majuscule | L38: ~ | M38: Alt+ 126 | N38: &#126; | O38: aucun | P38: Tilde | R38: :%s/&#126;/~/gie
C39: &Kappa; | D39: $\\Kappa\\$ | E39: :%s/&Kappa;/$\\Kappa\\$/gie | F39: &#922; | G39: &Kappa; | H39: Kappa majuscule | L39: ¡ | M39: Alt+ 161 | N39: &#161; | O39: &iexcl; | P39: Point d'exclamation inversé | R39: =CONCATENATE(":%s/",N39,"/",L39,"/gie") -> :%s/&#161;/¡/gie
C40: &Lambda; | D40: $\\Lambda\\$ | E40: :%s/&Lambda;/$\\Lambda\\$/gie | F40: &#923; | G40: &Lambda; | H40: Lambda majuscule | L40: ¦ | M40: Alt+ 166 | N40: &#166; | O40: &brvbar; | P40: Barre cassée verticale | R40: :%s/&#166;/¦/gie
C41: &Mu; | D41: $\\Mu\\$ | E41: :%s/&Mu;/$\\Mu\\$/gie | F41: &#924; | G41: &Mu; | H41: Mu majuscule | L41: § | M41: Alt+ 167 | N41: &#167; | O41: &sect; | P41: Paragraphe | R41: :%s/&#167;/§/gie
C42: &Nu; | D42: $\\Nu\\$ | E42: :%s/&Nu;/$\\Nu\\$/gie | F42: &#925; | G42: &Nu; | H42: Nu majuscule | L42: ¨ | M42: Alt+ 168 | N42: &#168; | O42: &uml; | P42: Diaérèse | R42: :%s/&#168;/¨/gie
C43: &Xi; | D43: $\\Xi\\$ | E43: :%s/&Xi;/$\\Xi\\$/gie | F43: &#926; | G43: &Xi; | H43: Xi majuscule | L43: © | M43: Alt+ 169 | N43: &#169; | O43: &copy; | P43: Signe de copyright | R43: :%s/&#169;/©/gie
C44: &Omicron; | D44: $\\Omicron\\$ | E44: :%s/&Omicron;/$\\Omicron\\$/gie | F44: &#927; | G44: &Omicron; | H44: Omicron majuscule | L44: ª | M44: Alt+ 170 | N44: &#170; | O44: &ordf; | P44: Indicateur ordinal féminin | R44: :%s/&#170;/ª/gie
C45: &Pi; | D45: $\\Pi\\$ | E45: :%s/&Pi;/$\\Pi\\$/gie | F45: &#928; | G45: &Pi; | H45: Pi majuscule | L45: « | M45: Alt+ 171 | N45: &#171; | O45: &laquo; | P45: Guillemets à la française (ouverts) | R45: :%s/&#171;/«/gie
C46: &Rho; | D46: $\\Rho\\$ | E46: :%s/&Rho;/$\\Rho\\$/gie | F46: &#929; | G46: &Rho; | H46: Rho majuscule | L46: ® | M46: Alt+ 174 | N46: &#174; | O46: &reg; | P46: Signe de marque déposée (Registered) | R46: :%s/&#174;/®/gie
C47: &Sigma; | D47: $\\Sigma\\$ | E47: :%s/&Sigma;/$\\Sigma\\$/gie | F47: &#931; | G47: &Sigma; | H47: Sigma majuscule | L47: ¯ | M47: Alt+ 175 | N47: &#175; | O47: &macr; | P47: Macron | R47: :%s/&#175;/¯/gie
C48: &Tau; | D48: $\\Tau\\$ | E48: :%s/&Tau;/$\\Tau\\$/gie | F48: &#932; | G48: &Tau; | H48: Tau majuscule | L48: ° | M48: Alt+ 176 | N48: &#176; | O48: &deg; | P48: Degré | R48: :%s/&#176;/°/gie
C49: &Upsilon; | D49: $\\Upsilon\\$ | E49: :%s/&Upsilon;/$\\Upsilon\\$/gie | F49: &#933; | G49: &Upsilon; | H49: Upsilon majuscule | L49: ± | M49: Alt+ 177 | N49: &#177; | O49: &plusmn; | P49: Signe plus-moins | R49: :%s/&#177;/±/gie
C50: &Phi; | D50: $\\Phi\\$ | E50: :%s/&Phi;/$\\Phi\\$/gie | F50: &#934; | G50: &Phi; | H50: Phi majuscule | L50: ² | M50: Alt+ 178 | N50: &#178; | O50: &sup2; | P50: Exposant deux | R50: :%s/&#178;/²/gie
C51: &Chi; | D51: $\\Chi\\$ | E51: :%s/&Chi;/$\\Chi\\$/gie | F51: &#935; | G51: &Chi; | H51: Chi majuscule | L51: ³ | M51: Alt+ 179 | N51: &#179; | O51: &sup3; | P51: Exposant trois | R51: :%s/&#179;/³/gie
C52: &Psi; | D52: $\\Psi\\$ | E52: :%s/&Psi;/$\\Psi\\$/gie | F52: &#936; | G52: &Psi; | H52: Psi majuscule | L52: ´ | M52: Alt+ 180 | N52: &#180; | O52: &aigu; | P52: Accent aigu | R52: :%s/&#180;/´/gie
C53: &Omega; | D53: $\\Omega\\$ | E53: :%s/&Omega;/$\\Omega\\$/gie | F53: &#937; | G53: &Omega; | H53: Omega majuscule | L53: µ | M53: Alt+ 181 | N53: &#181; | O53: &micro; | P53: Micro | R53: :%s/&#181;/µ/gie
L54: · | M54: Alt+ 183 | N54: &#183; | O54: &middot; | P54: Point médian | R54: :%s/&#183;/·/gie
L55: ¹ | M55: Alt+ 185 | N55: &#185; | O55: &sup1; | P55: Exposant un | R55: :%s/&#185;/¹/gie
L56: º | M56: Alt+ 186 | N56: &#186; | O56: &ordm; | P56: Indicateur ordinal masculin | R56: :%s/&#186;/º/gie
L57: » | M57: Alt+ 187 | N57: &#187; | O57: &raquo; | P57: Guillemets à la française (fermés) | R57: :%s/&#187;/»/gie
L58: ¼ | M58: Alt+ 188 | N58: &#188; | O58: &frac14; | P58: Fraction un quart | R58: :%s/&#188;/¼/gie
L59: ½ | M59: Alt+ 189 | N59: &#189; | O59: &frac12; | P59: Fraction un demi | R59: :%s/&#189;/½/gie
L60: ¾ | M60: Alt+ 190 | N60: &#190; | O60: &frac34; | P60: Fraction trois quarts | R60: :%s/&#190;/¾/gie
L61: ¿ | M61: Alt+ 191 | N61: &#191 | O61: &iquest; | P61: Point d'interrogation inversé | R61: :%s/&#191/¿/gie
L62: × | M62: Alt+ 215 | N62: &#215 | O62: &times; | P62: Signe de multiplication | R62: :%s/&#215/×/gie
L63: ÷ | M63: Alt+ 247 | N63: &#247 | O63: &divide; | P63: Signe de division | R63: :%s/&#247/÷/gie
L64: ∞ | M64: Alt+ 8734 | N64: &#8734; | O64: &infin; | P64: Infini | R64: :%s/&#8734;/∞/gie
L65: ‰ | M65: Alt+ 8240 | N65: &#8240; | O65: &permil; | P65: Pour mille | R65: :%s/&#8240;/‰/gie
L66: \\textsuperscript{TM} | M66: Alt+ 8482 | N66: &#8482; | O66: &trade; | P66: Signe de marque déposée (Registered Trademark) | R66: :%s/&#8482;/\\textsuperscript{TM}/gie

Sheet xcolor
A1: 1 | B1: 29 | D1: 1 | E1: =CHAR( D1) ->  | F1: 34 | G1: =CHAR( F1) -> " | H1: 67 | I1: =CHAR( H1) -> C | J1: 100 | K1: =CHAR( J1) -> d | L1: 133 | M1: =CHAR( L1) -> … | N1: 166 | O1: =CHAR( N1) -> ¦ | P1: 199 | Q1: =CHAR( P1) -> Ç | R1: 232 | S1: =CHAR( R1) -> è | T1: POUR VIM : | U1: Accent | V1: Aspect | W1: LaTeX | X1: HTML | Y1: méta | Z1: compose | AD1: Nom de l'accent | AE1: Lettre | AF1: HTML
A2: 2 | B2: 30 | D2: 2 | E2:  | F2: 35 | G2: =CHAR( F2) -> # | H2: 68 | I2: =CHAR( H2) -> D | J2: 101 | K2: =CHAR( J2) -> e | L2: 134 | M2: =CHAR( L2) -> † | N2: 167 | O2: =CHAR( N2) -> § | P2: 200 | Q2: =CHAR( P2) -> È | R2: 233 | S2: =CHAR( R2) -> é | T2: =CONCATENATE(":%s/",V2,"/\",W2,"/ge") -> :%s//\/ge | U2: paragraphe | V2:  | X2: &para; | Y2: M-' | Z2: C s o | AD2: a accent grave | AE2: à | AF2: &agrave; | AG2: à | AH2: =CONCATENATE(":%s/",AF2,"/",AG2,"/gie") -> :%s/&agrave;/à/gie
A3: 3 | B3: 31 | D3: 3 | E3:  | F3: 36 | G3: =CHAR( F3) -> $ | H3: 69 | I3: E | J3: 102 | K3: =CHAR( J3) -> f | L3: 135 | M3: =CHAR( L3) -> ‡ | N3: 168 | O3: =CHAR( N3) -> ¨ | P3: 201 | Q3: =CHAR( P3) -> É | R3: 234 | S3: ê | T3: =CONCATENATE(":%s/",V3,"/\",W3,"/ge") -> :%s/«/\<</ge | U3: guillemet français ouvrant | V3: « | W3: << | X3: &laquo; | Y3: M-+ | Z3: C < < | AD3: A accent grave | AE3: À | AF3: &Agrave; | AG3: À | AH3: =CONCATENATE(":%s/",AF3,"/",AG3,"/gie") -> :%s/&Agrave;/À/gie
A4: 4 | B4: 32 | D4: 4 | E4:  | F4: 37 | G4: % | H4: 70 | I4: F | J4: 103 | K4: =CHAR( J4) -> g | L4: 136 | M4: =CHAR( L4) -> ˆ | N4: 169 | O4: =CHAR( N4) -> © | P4: 202 | Q4: =CHAR( P4) -> Ê | R4: 235 | S4: ë | T4: :%s/»/\>>/ge | U4: guillemet français fermant | V4: » | W4: >> | X4: &raquo; | Y4: M-; | Z4: C > > | AD4: a accent aigu | AE4: á | AF4: &aacute; | AG4: á | AH4: :%s/&aacute;/á/gie
A5: 5 | B5: 33 | D5: 5 | E5:  | F5: 38 | G5: & | H5: 71 | I5: G | J5: 104 | K5: =CHAR( J5) -> h | L5: 137 | M5: =CHAR( L5) -> ‰ | N5: 170 | O5: =CHAR( N5) -> ª | P5: 203 | Q5: =CHAR( P5) -> Ë | R5: 236 | S5: ì | T5: :%s/á/\\'a/ge | U5: a accent aigu | V5: á | W5: \'a | X5: &aacute; | Y5: M-a | Z5: C ' a | AD5: A accent aigu | AE5: Á | AF5: &Aacute; | AG5: Á | AH5: :%s/&Aacute;/Á/gie
A6: 6 | B6: 34 | D6: 6 | E6:  | F6: 39 | G6: ' | H6: 72 | I6: H | J6: 105 | K6: =CHAR( J6) -> i | L6: 138 | M6: =CHAR( L6) -> Š | N6: 171 | O6: =CHAR( N6) -> « | P6: 204 | Q6: =CHAR( P6) -> Ì | R6: 237 | S6: í | T6: :%s/à/\\`a/ge | U6: a accent grave | V6: à | W6: \`a | X6: &agrave; | Y6: M-` | Z6: C ` a | AD6: a accent circonflexe | AE6: â | AF6: &acirc; | AG6: â | AH6: :%s/&acirc;/â/gie
A7: 7 | B7: 35 | D7: 7 | E7:  | F7: 40 | G7: ( | H7: 73 | I7: I | J7: 106 | K7: =CHAR( J7) -> j | L7: 139 | M7: =CHAR( L7) -> ‹ | N7: 172 | O7: =CHAR( N7) -> ¬ | P7: 205 | Q7: =CHAR( P7) -> Í | R7: 238 | S7: î | T7: :%s/â/\\^a/ge | U7: a accent circonflexe | V7: â | W7: \^a | X7: &acirc; | Y7: M-b | Z7: C ^ a | AD7: A accent circonflexe | AE7: Â | AF7: &Acirc; | AG7: Â | AH7: :%s/&Acirc;/Â/gie
A8: 8 | B8: 36 | D8: 8 | E8:  | F8: 41 | G8: ) | H8: 74 | I8: J | J8: 107 | K8: =CHAR( J8) -> k | L8: 140 | M8: =CHAR( L8) -> Œ | N8: 173 | O8: =CHAR( N8) -> ­ | P8: 206 | Q8: =CHAR( P8) -> Î | R8: 239 | S8: ï | T8: :%s/ä/\\"a/ge | U8: a tréma | V8: ä | W8: \"a | X8: &auml; | Y8: M-d | Z8: C " a | AD8: a tilde | AE8: ã | AF8: &atilde; | AG8: ã | AH8: :%s/&atilde;/ã/gie
A9: 9 | B9: 37 | D9: 9 | F9: 42 | G9: * | H9: 75 | I9: K | J9: 108 | K9: =CHAR( J9) -> l | L9: 141 | M9: =CHAR( L9) ->  | N9: 174 | O9: =CHAR( N9) -> ® | P9: 207 | Q9: =CHAR( P9) -> Ï | R9: 240 | S9: ð | T9: :%s/Ä/\\"A/ge | U9: A tréma | V9: Ä | W9: \"A | X9: &Auml; | Y9: M-D | Z9: C " A | AD9: A tilde | AE9: Ã | AF9: &Atilde; | AG9: Ã | AH9: :%s/&Atilde;/Ã/gie
A10: 10 | B10: 38 | D10: 10 | F10: 43 | G10: + | H10: 76 | I10: L | J10: 109 | K10: =CHAR( J10) -> m | L10: 142 | M10: =CHAR( L10) -> Ž | N10: 175 | O10: =CHAR( N10) -> ¯ | P10: 208 | Q10: =CHAR( P10) -> Ð | R10: 241 | S10: ñ | T10: :%s/å/\\aa/ge | U10: a rond | V10: å | W10: \aa | X10: &aring; | Y10: M-e | Z10: C * a | AD10: a tréma | AE10: ä | AF10: &auml; | AG10: ä | AH10: :%s/&auml;/ä/gie
A11: 11 | B11: 39 | D11: 11 | F11: 44 | G11: , | H11: 77 | I11: M | J11: 110 | K11: =CHAR( J11) -> n | L11: 143 | M11: =CHAR( L11) ->  | N11: 176 | O11: =CHAR( N11) -> ° | P11: 209 | Q11: =CHAR( P11) -> Ñ | R11: 242 | S11: ò | T11: :%s/Å/\\AA/ge | U11: A rond | V11: Å | W11: \AA | X11: &Aring; | Y11: M-E | Z11: C * A | AD11: A tréma | AE11: Ä | AF11: &Auml; | AG11: Ä | AH11: :%s/&Auml;/Ä/gie
A12: 12 | B12: 40 | D12: 12 | F12: 45 | G12: - | H12: 78 | I12: N | J12: 111 | K12: =CHAR( J12) -> o | L12: 144 | M12: =CHAR( L12) ->  | N12: 177 | O12: =CHAR( N12) -> ± | P12: 210 | Q12: =CHAR( P12) -> Ò | R12: 243 | S12: ó | T12: :%s/æ/\\ae/ge | U12: ae ligaturé | V12: æ | W12: \ae | X12: &aelig; | Y12: M-f | Z12: C a e | AD12: a rond | AE12: å | AF12: &aring; | AG12: å | AH12: :%s/&aring;/å/gie
A13: 13 | B13: 41 | D13: 13 | F13: 46 | G13: . | H13: 79 | I13: O | J13: 112 | K13: =CHAR( J13) -> p | L13: 145 | M13: =CHAR( L13) -> ‘ | N13: 178 | O13: =CHAR( N13) -> ² | P13: 211 | Q13: =CHAR( P13) -> Ó | R13: 244 | S13: ô | T13: :%s/Æ/\\AE/ge | U13: AE ligaturé | V13: Æ | W13: \AE | X13: &AElig; | Y13: M-F | Z13: C A E | AD13: A rond | AE13: Å | AF13: &Aring; | AG13: Å | AH13: :%s/&Aring;/Å/gie
A14: 14 | B14: 42 | D14: 14 | E14:  | F14: 47 | G14: / | H14: 80 | I14: P | J14: 113 | K14: =CHAR( J14) -> q | L14: 146 | M14: =CHAR( L14) -> ’ | N14: 179 | O14: =CHAR( N14) -> ³ | P14: 212 | Q14: =CHAR( P14) -> Ô | R14: 245 | S14: õ | T14: :%s/c/\/ge | U14: copyright | V14: c | X14: &copy; | Y14: M-) | Z14: C c 0 | AD14: ae ligaturé | AE14: æ | AF14: &aelig; | AG14: æ | AH14: :%s/&aelig;/æ/gie
A15: 15 | B15: 43 | D15: 15 | E15:  | F15: 48 | G15: 0 | H15: 81 | I15: Q | J15: 114 | K15: =CHAR( J15) -> r | L15: 147 | M15: =CHAR( L15) -> “ | N15: 180 | O15: =CHAR( N15) -> ´ | P15: 213 | Q15: =CHAR( P15) -> Õ | R15: 246 | S15: ö | T15: :%s/ç/\\c c/ge | U15: c cédille | V15: ç | W15: \c c | X15: &ccedil; | Y15: M-g | Z15: C , c | AD15: AE ligaturé | AE15: Æ | AF15: &AElig; | AG15: Æ | AH15: :%s/&AElig;/Æ/gie
A16: 16 | B16: 44 | D16: 16 | E16:  | F16: 49 | G16: 1 | H16: 82 | I16: R | J16: 115 | K16: =CHAR( J16) -> s | L16: 148 | M16: =CHAR( L16) -> ” | N16: 181 | O16: =CHAR( N16) -> µ | P16: 214 | Q16: =CHAR( P16) -> Ö | R16: 247 | S16: ÷ | T16: :%s/Ç/\\c C/ge | U16: C cédille | V16: Ç | W16: \c C | X16: &Ccedil; | Y16: M-G | Z16: C , C | AD16: e accent grave | AE16: è | AF16: &egrave; | AG16: è | AH16: :%s/&egrave;/è/gie
A17: 17 | B17: 45 | D17: 17 | E17:  | F17: 50 | G17: 2 | H17: 83 | I17: S | J17: 116 | K17: =CHAR( J17) -> t | L17: 149 | M17: =CHAR( L17) -> • | N17: 182 | O17: =CHAR( N17) -> ¶ | P17: 215 | Q17: =CHAR( P17) -> × | R17: 248 | S17: ø | T17: :%s/E/\\"E/ge | U17: E tréma | V17: E | W17: \"E | X17: &Euml; | Y17: M-K | Z17: C " E | AD17: E accent grave | AE17: È | AF17: &Egrave; | AG17: È | AH17: :%s/&Egrave;/È/gie
A18: 18 | B18: 46 | D18: 18 | E18: =CHAR( D18) ->  | F18: 51 | G18: 3 | H18: 84 | I18: T | J18: 117 | K18: =CHAR( J18) -> u | L18: 150 | M18: =CHAR( L18) -> – | N18: 183 | O18: =CHAR( N18) -> · | P18: 216 | Q18: =CHAR( P18) -> Ø | R18: 249 | S18: ù | T18: :%s/é/\\'e/ge | U18: e accent aigu | V18: é | W18: \'e | X18: &eacute; | Y18: M-i | Z18: C ' e | AD18: e accent aigu | AE18: é | AF18: &eacute; | AG18: é | AH18: :%s/&eacute;/é/gie
A19: 19 | B19: 47 | D19: 19 | E19: =CHAR( D19) ->  | F19: 52 | G19: 4 | H19: 85 | I19: U | J19: 118 | K19: =CHAR( J19) -> v | L19: 151 | M19: =CHAR( L19) -> — | N19: 184 | O19: =CHAR( N19) -> ¸ | P19: 217 | Q19: =CHAR( P19) -> Ù | R19: 250 | S19: ú | T19: :%s/É/\\'E/ge | U19: E accent aigu | V19: É | W19: \'E | X19: &Eacute; | Y19: M-I | Z19: C ' E | AD19: E accent aigu | AE19: É | AF19: &Eacute; | AG19: É | AH19: :%s/&Eacute;/É/gie
A20: 20 | B20: 48 | D20: 20 | E20:  | F20: 53 | G20: 5 | H20: 86 | I20: V | J20: 119 | K20: =CHAR( J20) -> w | L20: 152 | M20: =CHAR( L20) -> ˜ | N20: 185 | O20: =CHAR( N20) -> ¹ | P20: 218 | Q20: =CHAR( P20) -> Ú | R20: 251 | S20: û | T20: :%s/è/\\`e/ge | U20: e accent grave | V20: è | W20: \`e | X20: &egrave; | Y20: M-h | Z20: C ` e | AD20: e accent circonflexe | AE20: ê | AF20: &ecirc; | AG20: ê | AH20: :%s/&ecirc;/ê/gie
A21: 21 | B21: 49 | D21: 21 | E21:  | F21: 54 | G21: 6 | H21: 87 | I21: W | J21: 120 | K21: =CHAR( J21) -> x | L21: 153 | M21: =CHAR( L21) -> ™ | N21: 186 | O21: =CHAR( N21) -> º | P21: 219 | Q21: =CHAR( P21) -> Û | R21: 252 | S21: ü | T21: :%s/ê/\\^e/ge | U21: e accent circonflexe | V21: ê | W21: \^e | X21: &ecirc; | Y21: M-j | Z21: C ^ e | AD21: E accent circonflexe | AE21: Ê | AF21: &Ecirc; | AG21: Ê | AH21: :%s/&Ecirc;/Ê/gie
A22: 22 | B22: 50 | D22: 22 | E22:  | F22: 55 | G22: 7 | H22: 88 | I22: X | J22: 121 | K22: =CHAR( J22) -> y | L22: 154 | M22: =CHAR( L22) -> š | N22: 187 | O22: =CHAR( N22) -> » | P22: 220 | Q22: =CHAR( P22) -> Ü | R22: 253 | S22: ý | T22: :%s/ë/\\"e/ge | U22: e tréma | V22: ë | W22: \"e | X22: &euml; | Y22: M-k | Z22: C " e | AD22: e tréma | AE22: ë | AF22: &euml; | AG22: ë | AH22: :%s/&euml;/ë/gie
A23: 23 | B23: 51 | D23: 23 | E23:  | F23: 56 | G23: 8 | H23: 89 | I23: Y | J23: 122 | K23: =CHAR( J23) -> z | L23: 155 | M23: =CHAR( L23) -> › | N23: 188 | O23: =CHAR( N23) -> ¼ | P23: 221 | Q23: =CHAR( P23) -> Ý | R23: 254 | S23: þ | T23: :%s/í/\\'i/ge | U23: i accent aigu | V23: í | W23: \'i | X23: &iacute; | Y23: M-m | Z23: C ' i | AD23: E tréma | AE23: Ë | AF23: &Euml; | AG23: Ë | AH23: :%s/&Euml;/Ë/gie
A24: 24 | B24: 52 | D24: 24 | E24:  | F24: 57 | G24: 9 | H24: 90 | I24: Z | J24: 123 | K24: =CHAR( J24) -> { | L24: 156 | M24: =CHAR( L24) -> œ | N24: 189 | O24: =CHAR( N24) -> ½ | P24: 222 | Q24: =CHAR( P24) -> Þ | R24: 255 | S24: ÿ | T24: :%s/ì/\\`i/ge | U24: i accent grave | V24: ì | W24: \`i | X24: &igrave; | Y24: M-l | Z24: C ` i | AD24: i accent grave | AE24: ì | AF24: &igrave; | AG24: ì | AH24: :%s/&igrave;/ì/gie
A25: 25 | B25: 53 | D25: 25 | E25:  | F25: 58 | G25: : | H25: 91 | I25: [ | J25: 124 | K25: =CHAR( J25) -> | | L25: 157 | M25: =CHAR( L25) ->  | N25: 190 | O25: =CHAR( N25) -> ¾ | P25: 223 | Q25: =CHAR( P25) -> ß | R25: 255 lettres de l'alphabet : | T25: :%s/î/\\^i/ge | U25: i accent circonflexe | V25: î | W25: \^i | X25: &icirc; | Y25: M-n | Z25: C ^ i | AD25: I accent grave | AE25: Ì | AF25: &Igrave; | AG25: Ì | AH25: :%s/&Igrave;/Ì/gie
A26: 26 | B26: 54 | D26: 26 | E26:  | F26: 59 | G26: ; | H26: 92 | I26: \ | J26: 125 | K26: =CHAR( J26) -> } | L26: 158 | M26: =CHAR( L26) -> ž | N26: 191 | O26: =CHAR( N26) -> ¿ | P26: 224 | Q26: =CHAR( P26) -> à | T26: :%s/ï/\\"i/ge | U26: i tréma | V26: ï | W26: \"i | X26: &iuml; | Y26: M-o | Z26: C " i | AD26: i accent aigu | AE26: í | AF26: &iacute; | AG26: í | AH26: :%s/&iacute;/í/gie
A27: 27 | B27: 55 | D27: 27 | E27:  | F27: 60 | G27: < | H27: 93 | I27: ] | J27: 126 | K27: =CHAR( J27) -> ~ | L27: 159 | M27: =CHAR( L27) -> Ÿ | N27: 192 | O27: =CHAR( N27) -> À | P27: 225 | Q27: =CHAR( P27) -> á | T27: :%s/ñ/\\~n/ge | U27: n tilde | V27: ñ | W27: \~n | X27: &ntilde; | Y27: M-q | Z27: C ~ n | AD27: I accent aigu | AE27: Í | AF27: &Iacute; | AG27: Í | AH27: :%s/&Iacute;/Í/gie
A28: 28 | B28: 56 | D28: 28 | E28: =CHAR( D28) ->  | F28: 61 | G28: = | H28: 94 | I28: ^ | J28: 127 | K28: =CHAR( J28) ->  | L28: 160 | M28: =CHAR( L28) ->  | N28: 193 | O28: =CHAR( N28) -> Á | P28: 226 | Q28: =CHAR( P28) -> â | R28: VBA : | S28: CHR | T28: :%s/Ñ/\\~N/ge | U28: N tilde | V28: Ñ | W28: \~N | X28: &Ntilde; | Y28: M-Q | Z28: C ~ N | AD28: i accent circonflexe | AE28: î | AF28: &icirc; | AG28: î | AH28: :%s/&icirc;/î/gie
D29: 29 | F29: 62 | G29: > | H29: 95 | I29: _ | J29: 128 | K29: =CHAR( J29) -> € | L29: 161 | M29: =CHAR( L29) -> ¡ | N29: 194 | O29: =CHAR( N29) -> Â | P29: 227 | Q29: =CHAR( P29) -> ã | T29: :%s/ó/\\'o/ge | U29: o accent aigu | V29: ó | W29: \'o | X29: &oacute; | Y29: M-s | Z29: C ' o | AD29: I accent circonflexe | AE29: Î | AF29: &Icirc; | AG29: Î | AH29: :%s/&Icirc;/Î/gie
D30: 30 | F30: 63 | G30: ? | H30: 96 | I30: ` | J30: 129 | K30: =CHAR( J30) ->  | L30: 162 | M30: =CHAR( L30) -> ¢ | N30: 195 | O30: =CHAR( N30) -> Ã | P30: 228 | Q30: =CHAR( P30) -> ä | R30: Excel Fr : | S30: CAR(i) | T30: :%s/ò/\\`o/ge | U30: o accent grave | V30: ò | W30: \`o | X30: &ograve; | Y30: M-r | Z30: C ` o | AD30: i tréma | AE30: ï | AF30: &iuml; | AG30: ï | AH30: :%s/&iuml;/ï/gie
D31: 31 | F31: 64 | G31: @ | H31: 97 | I31: a | J31: 130 | K31: =CHAR( J31) -> ‚ | L31: 163 | M31: =CHAR( L31) -> £ | N31: 196 | O31: =CHAR( N31) -> Ä | P31: 229 | Q31: =CHAR( P31) -> å | R31: Excel GB : | S31: CHAR(i) | T31: :%s/ô/\\^o/ge | U31: o accent circonflexe | V31: ô | W31: \^o | X31: &ocirc; | Y31: M-t | Z31: C ^ o | AD31: I tréma | AE31: Ï | AF31: &Iuml; | AG31: Ï | AH31: :%s/&Iuml;/Ï/gie
D32: 32 | F32: 65 | G32: A | H32: 98 | I32: b | J32: 131 | K32: =CHAR( J32) -> ƒ | L32: 164 | M32: =CHAR( L32) -> ¤ | N32: 197 | O32: =CHAR( N32) -> Å | P32: 230 | Q32: =CHAR( P32) -> æ | T32: :%s/ö/\\"o/ge | U32: o tréma | V32: ö | W32: \"o | X32: &ouml; | Y32: M-v | Z32: C " o | AD32: o accent grave | AE32: ò | AF32: &ograve; | AG32: ò | AH32: :%s/&ograve;/ò/gie
D33: 33 | E33: ! | F33: 66 | G33: B | H33: 99 | I33: c | J33: 132 | K33: =CHAR( J33) -> „ | L33: 165 | M33: =CHAR( L33) -> ¥ | N33: 198 | O33: =CHAR( N33) -> Æ | P33: 231 | Q33: =CHAR( P33) -> ç | T33: :%s/Ö/\\"O/ge | U33: O tréma | V33: Ö | W33: \"O | X33: &Ouml; | Y33: M-V | Z33: C " O | AD33: O accent grave | AE33: Ò | AF33: &Ograve; | AG33: Ò | AH33: :%s/&Ograve;/Ò/gie
T34: :%s/ß/\\ss/ge | U34: double s allemand | V34: ß | W34: \ss | X34: &szlig; | Y34: M-_ | Z34: C s s | AD34: o accent aigu | AE34: ó | AF34: &oacute; | AG34: ó | AH34: :%s/&oacute;/ó/gie
T35: :%s/ú/\\'u/ge | U35: u accent aigu | V35: ú | W35: \'u | X35: &uacute; | Y35: M-z | Z35: C ' u | AD35: O accent aigu | AE35: Ó | AF35: &Oacute; | AG35: Ó | AH35: :%s/&Oacute;/Ó/gie
T36: :%s/ù/\\`u/ge | U36: u accent grave | V36: ù | W36: \`u | X36: &ugrave; | Y36: M-y | Z36: C ` u | AD36: o accent circonflexe | AE36: ô | AF36: &ocirc; | AG36: ô | AH36: :%s/&ocirc;/ô/gie
T37: :%s/û/\\^u/ge | U37: u accent circonflexe | V37: û | W37: \^u | X37: &ucirc; | Y37: M-{ | Z37: C ^ u | AD37: O accent circonflexe | AE37: Ô | AF37: &Ocirc; | AG37: Ô | AH37: :%s/&Ocirc;/Ô/gie
T38: :%s/ü/\\"u/ge | U38: u tréma | V38: ü | W38: \"u | X38: &uuml; | Y38: M-| | Z38: C " u | AD38: o tilde | AE38: õ | AF38: &otilde; | AG38: õ | AH38: :%s/&otilde;/õ/gie
T39: :%s/Ü/\\"/ge | U39: U tréma | V39: Ü | W39: \" | X39: &Uuml; | Y39: M-\ | Z39: C " U | AD39: O tilde | AE39: Õ | AF39: &Otilde; | AG39: Õ | AH39: :%s/&Otilde;/Õ/gie
AD40: o tréma | AE40: ö | AF40: &ouml; | AG40: ö | AH40: :%s/&ouml;/ö/gie
AD41: O tréma | AE41: Ö | AF41: &Ouml; | AG41: Ö | AH41: :%s/&Ouml;/Ö/gie
AD42: o barré | AE42: ø | AF42: &oslash; | AG42: ø | AH42: :%s/&oslash;/ø/gie
AD43: O barré | AE43: Ø | AF43: &Oslash; | AG43: Ø | AH43: :%s/&Oslash;/Ø/gie
AD44: u accent grave | AE44: ù | AF44: &ugrave; | AG44: ù | AH44: :%s/&ugrave;/ù/gie
AD45: U accent grave | AE45: Ù | AF45: &Ugrave; | AG45: Ù | AH45: :%s/&Ugrave;/Ù/gie
AD46: u accent aigu | AE46: ú | AF46: &uacute; | AG46: ú | AH46: :%s/&uacute;/ú/gie
AD47: U accent aigu | AE47: Ú | AF47: &Uacute; | AG47: Ú | AH47: :%s/&Uacute;/Ú/gie
AD48: u accent circonflexe | AE48: û | AF48: &ucirc; | AG48: û | AH48: :%s/&ucirc;/û/gie
AD49: U accent circonflexe | AE49: Û | AF49: &Ucirc; | AG49: Û | AH49: :%s/&Ucirc;/Û/gie
AD50: u tréma | AE50: ü | AF50: &uuml; | AG50: ü | AH50: :%s/&uuml;/ü/gie
AD51: U tréma | AE51: Ü | AF51: &Uuml; | AG51: Ü | AH51: :%s/&Uuml;/Ü/gie
AD52: n tilde | AE52: ñ | AF52: &ntilde; | AG52: ñ | AH52: :%s/&ntilde;/ñ/gie
AD53: N tilde | AE53: Ñ | AF53: &Ntilde; | AG53: Ñ | AH53: :%s/&Ntilde;/Ñ/gie
AD54: c cédille | AE54: ç | AF54: &ccedil; | AG54: ç | AH54: :%s/&ccedil;/ç/gie
AD55: C cédille | AE55: Ç | AF55: &Ccedil; | AG55: Ç | AH55: :%s/&Ccedil;/Ç/gie
AD56: y accent aigu | AE56: ý | AF56: &yacute; | AG56: ý | AH56: :%s/&yacute;/ý/gie
AD57: Y accent aigu | AE57: Ý | AF57: &Yacute; | AG57: Ý | AH57: :%s/&Yacute;/Ý/gie
AD58: double s allemand | AE58: ß | AF58: &szlig; | AG58: ß | AH58: :%s/&szlig;/ß/gie
AD59: guillemet français ouvrant | AE59: « | AF59: &laquo; | AG59: « | AH59: :%s/&laquo;/«/gie
AD60: guillemet français fermant | AE60: » | AF60: &raquo; | AG60: » | AH60: :%s/&raquo;/»/gie
AD61: esperluette | AE61: & | AF61: &amp; | AG61: & | AH61: :%s/&amp;/&/gie
AD62: inférieur | AE62: < | AF62: &lt; | AG62: < | AH62: :%s/&lt;/</gie
AD63: supérieur | AE63: < | AF63: &gt; | AG63: < | AH63: :%s/&gt;/</gie
AD64: guillemet double | AE64: " | AF64: &quot; | AG64: " | AH64: :%s/&quot;/"/gie
AD65: paragraphe | AE65: § | AF65: &para; | AG65: § | AH65: :%s/&para;/§/gie
AD66: copyright | AE66: © | AF66: &copy; | AG66: © | AH66: :%s/&copy;/©/gie
AD67: espace blanc | AF67: &nbsp; | AH67: =CONCATENATE(":%s/",AF67,"/ /gie") -> :%s/&nbsp;/ /gie

Sheet xwork
F2: FOUR 3 | G2: KIC | H2: 1 | I2: 0.7 | J2: MPa rac (m)
G3: Profond | H3: 10 | I3: 20 | J3: µm
H4: =H2/(SQRT(PI()*H3*0.000001)) -> 178.4124116 | I4: =I2/(SQRT(PI()*I3*0.000001)) -> 88.30963827 | J4: MPa
P5: OK
F6: Pour l'exercice du four, question3: je fais sigma= K1c / racine( pi * a) = 178 MPa (comme en TD) et vous, vous trouvez 214 MPa
F8: Béton | G8: Contrainte | H8: 66 | I8: 12 | J8: MPa
G9: Profond | H9: 1.3 | I9: 2 | J9: mm
H10: =H8*SQRT(PI()*H9/2/1000) -> 2.982466335 | I10: =I8*SQRT(PI()*I9/2/1000) -> 0.672598946 | J10: MPa rac (m)
P11: OK
F12: Moi je trouve 2.98 pour une fissure de 1,3mm et une contrainte de 66MPa, mais je ne voie pas ou peut être mon erreur
F13: =Res_Meca*RACINE(PI()*Long_Fiss/2/1000) = 2.98 MPa m1/2
F15: Traction | G15: F | H15: 39 | I15: 34 | J15: N
G16: d | H16: 3.5 | I16: 7 | J16: mm
H17: =H15*1000/(PI()*H16^2/4) -> 4053.578959 | I17: =I15*1000/(PI()*I16^2/4) -> 883.4723372 | P17: OK
F18: Aussi, pour l'exercice de traction, pour la question a, je fais sigma= F/ S où F=39000N et S= (pi*3.5^2)/4 => sigma= 4054 MPa
F19: Mais vous trouvez 497MPa
F24: Enfin, pour le critère énergétique de Griffith, a correspond à la demi longueur mais je ne comprends pas ce que c'est. Par exemple, pour l'exercice 8, c'est 38µm /2?
F28: Contrainte | G28: Ordre | H28: ln sig exp | I28: LN(-LN(1- Ordre /10))
E29: 273 | F29: 161 | G29: 1 | H29: =LN(E29) -> 5.609471795 | I29: =LN(-LN(1-G29/10)) -> -2.250367327
E30: 273 | F30: 196 | G30: 2 | H30: =LN(E30) -> 5.609471795 | I30: =LN(-LN(1-G30/10)) -> -1.499939987 | K30: =LINEST(I29:I37,E29:E37,1,1) -> 0.02602994841 | L30: -8.941207144
E31: 302 | F31: 206 | G31: 3 | H31: 5.710427017 | I31: -1.030930433 | K31: 0.002143338861 | L31: 0.6998715244
E32: 311 | F32: 235 | G32: 4 | H32: 5.739792912 | I32: -0.6717269921
E33: 334 | F33: 262 | G33: 5 | H33: 5.811140993 | I33: -0.3665129206 | K33: =EXP(-L30/K30) -> 1.50944576e+149
E34: 344 | F34: 276 | G34: 6 | H34: 5.840641657 | I34: -0.08742157179
E35: 351 | F35: 296 | G35: 7 | H35: 5.860786223 | I35: 0.1856267589
E36: 358 | F36: 321 | G36: 8 | H36: 5.880532986 | I36: 0.4758849953
E37: 376 | F37: 347 | G37: 9 | H37: 5.929589143 | I37: 0.8340324452

Sheet xWeiPara
A1: catégorie_Wei | B1: WeiPara | C1: =CONCATENATE(" <!-- question XLQ ", titre_Wei, "-->") -> <!-- question XLQ WeiPara_Wei--> | F1: Valeur Mini_Wei | G1: Valeur Maxi_Wei | H1: Sig. Digit_Wei | I1: Val Choix_Wei | O1: rigoureux contrainte | P1: ln(-ln(1-p))
B2: WeiPara_Wei | C2: =CONCATENATE(" <question type=",CHAR(34),"category",CHAR(34),"><category><text>", categorie_Wei,"</text></category></question>)") -> <question type="category"><category><text>WeiPara</text></category></question>) | E2: V1._Wei | F2: =Contr_Rig*(1-Randm_Wei*RAND()) -> 5.313354378 | G2: =Contr_Rig*(1+Randm_Wei*RAND()/100) -> 5.328333748 | H2: -2 | I2: =ROUND(EXP(RANDBETWEEN(ValMini_Wei*10^-SigDig_Wei, ValMaxi_Wei*10^-SigDig_Wei)/10^-SigDig_Wei),0) -> 204 | K2: log Sig | L2: MPa | N2: 1 | O2: =(Proba_Wei-Ordonnee)/Module -> 5.327900871 | P2: =LN(-LN(1-N2/10)) -> -2.250367327 | S2: pente | T2: ordo
A3: Tag_Wei | B3: WeiPara_Wei | C3: <question type="cloze"> | E3: V2._Wei | F3: 5.482486873 | G3: 5.492111539 | H3: -2 | I3: 242 | K3: log Sig | L3: MPa | N3: 2 | O3: =(Proba_Wei-Ordonnee)/Module -> 5.49103725 | P3: -1.499939987 | S3: =LINEST(P2:P10,O2:O10,1,1) -> 4.6 | T3: -26.75871134 | CA3: <p>On r&eacute;alise des exp&eacute;riences traction sur un mat&eacute;riau fragile. On obtient un ensemble de contraintes &agrave; rupture suivant : "";V9._Wei;"", "";V7._Wei;"", "";V5._Wei;"", "";V3._Wei;"", "";V4._Wei;"", "";V6._Wei;"", "";V2._Wei;"", "";V8._Wei;"", "";V1._Wei;"" MPa. En deduire les param&egrave;tres de Weibull associ&eacute;s :</p><p><p>&nbsp;</p><p><p>Le module m="";Module;""</p><p><p>&nbsp;</p><p><p>&nbsp;</p><p><p>Le facteur d'&eacute;chelle Ko="";Facteur_Echelle;"" MPa</p><p><p>&nbsp;</p><p>
A4: idnumber_Wei | B4: =TEXT(NOW(),"aammjj-hhmmss.00") -> 210710-210812.04 | C4: =CONCATENATE(" <name><text>", titre_Wei, "</text></name>") -> <name><text>WeiPara_Wei</text></name> | E4: V3._Wei | F4: =Contr_Rig*(1-Randm_Wei*RAND()) -> 5.563040121 | G4: =Contr_Rig*(1+Randm_Wei*RAND()/100) -> 5.594152453 | H4: -2 | I4: =ROUND(EXP(RANDBETWEEN(ValMini_Wei*10^-SigDig_Wei, ValMaxi_Wei*10^-SigDig_Wei)/10^-SigDig_Wei),0) -> 268 | K4: log Sig | L4: MPa | N4: 3 | O4: =(Proba_Wei-Ordonnee)/Module -> 5.592995848 | P4: -1.030930433 | S4: 2.6878861e-15 | T4: 1.535891797e-14
A5: points_Wei | B5: 1 | C5: <questiontext format="html"> | E5: V4._Wei | F5: 5.621631831 | G5: 5.672147984 | H5: -2 | I5: 281 | K5: log Sig | L5: MPa | N5: 4 | O5: 5.671083553 | P5: -0.6717269921 | S5: 1 | T5: 1.628185352e-15
A6: tolérance_Wei | B6: 0.25 | C6: =CONCATENATE(" <text><![CDATA[<p>", question_Wei, "</p>]]></text>") -> <text><![CDATA[<p> On r&eacute;alise des exp&eacute;riences traction sur un mat&eacute;riau fragile. On obtient un ensemble de contraintes &agrave; rupture suivantes : 372, 347, 281, 268, 281, 327, 242, 351, 204 MPa. En deduire les param&egrave;tres de Weibull associ&eacute;s :</p><p><p>&nbsp;</p><p><p>Le module m={1:NUMERICAL:=4.60E+00:1.15E+00}</p><p><p>&nbsp;</p><p><p>&nbsp;</p><p><p>Lefacteur d'&eacute;chelle Ko={1:NUMERICAL:=3.23E+02:8.06E+01} MPa</p><p><p>&nbsp;</p><p></p>]]></text> | E6: V5._Wei | F6: 5.634478907 | G6: 5.738611824 | H6: -2 | I6: 281 | K6: log Sig | L6: MPa | N6: 5 | O6: 5.737434438 | P6: -0.3665129206 | S6: 2.92882849e+30 | T6: 7
A7: penalité_Wei | B7: 0.1 | C7: </questiontext> | E7: V6._Wei | F7: 5.762888198 | G7: 5.798867319 | H7: -2 | I7: 327 | K7: log Sig | L7: MPa | N7: 6 | O7: 5.79810647 | P7: -0.08742157179 | S7: 7.76428784 | T7: 1.855691279e-29
A8: feedback_Wei | B8: _ | C8: =CONCATENATE(" <defaultgrade>",points_Wei,"</defaultgrade><generalfeedback><text>",feedback_Wei,"</text></generalfeedback><penalty>",penalty_Wei,"</penalty><hidden>0</hidden>)") -> <defaultgrade>1</defaultgrade><generalfeedback><text>_</text></generalfeedback><penalty>0.1</penalty><hidden>0</hidden>) | E8: V7._Wei | F8: 5.765480529 | G8: 5.858467539 | H8: -2 | I8: 347 | K8: log Sig | L8: MPa | N8: 7 | O8: 5.857464803 | P8: 0.1856267589
A9: Cellule vides_Wei | B9: =COUNTBLANK(B1:B8) -> 0 | C9: =CONCATENATE(" <idnumber>",idnumber_Wei,"</idnumber><tags><tag><text>",Tag_Wei,"</text></tag></tags>") -> <idnumber>210710-210812.04</idnumber><tags><tag><text>WeiPara_Wei</text></tag></tags> | E9: V8._Wei | F9: 5.850491842 | G9: 5.920965909 | H9: -2 | I9: 351 | K9: log Sig | L9: MPa | N9: 8 | O9: 5.92056442 | P9: 0.4758849953 | T9: =EXP(-T3/S3) -> 336
A10: question format HTML_Wei | B10: =CONCATENATE(" ",B19,B20,B21,B22,B23,B24) -> On r&eacute;alise des exp&eacute;riences traction sur un mat&eacute;riau fragile. On obtient un ensemble de contraintes &agrave; rupture suivantes : 372, 347, 281, 268, 281, 327, 242, 351, 204 MPa. En deduire les param&egrave;tres de Weibull associ&eacute;s :</p><p><p>&nbsp;</p><p><p>Le module m={1:NUMERICAL:=4.60E+00:1.15E+00}</p><p><p>&nbsp;</p><p><p>&nbsp;</p><p><p>Lefacteur d'&eacute;chelle Ko={1:NUMERICAL:=3.23E+02:8.06E+01} MPa</p><p><p>&nbsp;</p><p> | C10: </question> | E10: V9._Wei | F10: 5.885599648 | G10: 5.9986739 | H10: -2 | I10: 372 | K10: log Sig | L10: MPa | N10: 9 | O10: 5.998422561 | P10: 0.8340324452
A11: Repere Var Rep | B11: _Wei | E11: 1-- V10._Wei | F11: 250 | G11: 350 | H11: 0 | I11: =RANDBETWEEN(ValMini_Wei*10^-SigDig_Wei, ValMaxi_Wei*10^-SigDig_Wei)/10^-SigDig_Wei -> 336 | J11: moyenne | K11: log Sig | L11: MPa
A12: HTML File | B12: =CONCATENATE(categorie_Wei,"_HTML.txt") -> WeiPara_HTML.txt
A13: Valide ? | E13: alea | F13: 1.8 | G13: 2.5 | H13: -1 | I13: =RANDBETWEEN(ValMini_Wei*10^-SigDig_Wei, ValMaxi_Wei*10^-SigDig_Wei)/10^-SigDig_Wei/100 -> 0.021
A14: https://html-online.com/editor/ | E14: 2-- Ordo | I14: =-Module*LN(V10._Wei) -> -26.75871134 | J14: ordonnée | L14: verif s | M14: =EXP(-I14/I15) -> 336 | R14: =100*ABS(R17/R16)+ABS(S17/S16) -> 6.111931062
C15: 9 | E15: 1 --m | F15: 1 | G15: 10 | H15: -1 | I15: =RANDBETWEEN(ValMini_Wei*10^-SigDig_Wei, ValMaxi_Wei*10^-SigDig_Wei)/10^-SigDig_Wei -> 4.6 | J15: pente | L15: Extracted s | M15: =EXP(-Ordonnee/Module) -> 336 | O15: sig exp | P15: ln exp | R15: pente | S15: ordo
A16: Var : | B16: # | C16: 7 | F16: Cible_Wei | G16: Toler_Wei | H16: PointsQuestion_Wei | O16: =LN(I2) -> 5.318119994 | P16: =P2 -> -2.250367327 | R16: =LINEST(P16:P24,O16:O24,1,1) -> 4.947293434 | S16: -28.57633066
A17: Res : | B17: $ | C17: 2 | E17: R1.Module_Wei | F17: =I15 -> 4.6 | G17: =tolerance_Wei*ValMini_Wei -> 1.15 | H17: 1 | I17: =CONCATENATE("{",PointsQuestion_Wei,":NUMERICAL:=",TEXT(Cible_Wei,"0.00E+00"),":",TEXT(ABS(Tolere_Wei),"0.00E+00"),"}") -> {1:NUMERICAL:=4.60E+00:1.15E+00} | O17: 5.488937726 | P17: -1.499939987 | R17: 0.2994306484 | S17: 1.700797767
E18: R2.Exp_Wei | F18: =Facteur_Echelle -> 322.5165276 | G18: =tolerance_Wei*ValMini_Wei -> 80.62913191 | H18: 1 | I18: =CONCATENATE("{",PointsQuestion_Wei,":NUMERICAL:=",TEXT(Cible_Wei,"0.00E+00"),":",TEXT(ABS(Tolere_Wei),"0.00E+00"),"}") -> {1:NUMERICAL:=3.23E+02:8.06E+01} | O18: 5.590986981 | P18: -1.030930433 | R18: 0.9749988882 | S18: 0.1665257716
B19: =CONCATENATE("On r&eacute;alise des exp&eacute;riences traction sur un mat&eacute;riau fragile. On obtient un ensemble de contraintes &agrave; rupture suivantes : ",V9._Wei,", ",V7._Wei,", ",V5._Wei,", ",V3._Wei,",") -> On r&eacute;alise des exp&eacute;riences traction sur un mat&eacute;riau fragile. On obtient un ensemble de contraintes &agrave; rupture suivantes : 372, 347, 281, 268, | C19: <p>On r&eacute;alise des exp&eacute;riences traction sur un mat&eacute;riau fragile. On obtient un ensemble de contraintes &agrave; rupture suivant : ";V9._Wei;", ";V7._Wei;", ";V5._Wei;", ";V3._Wei;", ";V4._Wei;", ";V6._Wei;", ";V2._Wei;", ";V8._Wei;", ";V1._Wei;" MPa. En deduire les param&egrave;tres de Weibull associ&eacute;s :</p> | O19: 5.638354669 | P19: -0.6717269921 | R19: 272.9875486 | S19: 7
B20: =CONCATENATE(" ",V4._Wei,", ",V6._Wei,", ",V2._Wei,", ",V8._Wei,", ",V1._Wei," MPa. En deduire les param&egrave;tres de Weibull associ&eacute;s :</p><p><p>&nbsp;</p><p><p>Le module m=",R1.Module_Wei,"</p><p><p>&nbsp;</p><p><p>&nbsp;</p><p><p>Le") -> 281, 327, 242, 351, 204 MPa. En deduire les param&egrave;tres de Weibull associ&eacute;s :</p><p><p>&nbsp;</p><p><p>Le module m={1:NUMERICAL:=4.60E+00:1.15E+00}</p><p><p>&nbsp;</p><p><p>&nbsp;</p><p><p>Le | C20: <p>&nbsp;</p> | O20: 5.638354669 | P20: -0.3665129206 | R20: 7.570172012 | S20: 0.1941158282
B21: =CONCATENATE("facteur d'&eacute;chelle Ko=",R2.Exp_Wei," MPa</p><p><p>&nbsp;</p><p>") -> facteur d'&eacute;chelle Ko={1:NUMERICAL:=3.23E+02:8.06E+01} MPa</p><p><p>&nbsp;</p><p> | C21: <p>Le module m=";Module;"</p> | O21: 5.789960171 | P21: -0.08742157179
B22: =CONCATENATE("") ->  | C22: <p>&nbsp;</p> | O22: 5.84932478 | P22: 0.1856267589
B23: =CONCATENATE("") ->  | C23: <p>&nbsp;</p> | O23: 5.860786223 | P23: 0.4758849953 | R23: Facteur Echelle | S23: =EXP(-S16/R16) -> 322.5165276
B24: =CONCATENATE("") ->  | C24: <p>Le facteur d'&eacute;chelle Ko=";Facteur_Echelle;" MPa</p> | O24: 5.918893854 | P24: 0.8340324452
C25: <p>&nbsp;</p>
O27: =CONCATENATE("On réalise des expériences traction sur un matériau fragile. On obtient un ensemble de contraintes à rupture suivant : ",V9._Wei,", ",V7._Wei,", ",V5._Wei,", ",V3._Wei,", ",V4._Wei,", ",V6._Wei,", ",V2._Wei,", ",V8._Wei,", ",V1._Wei," MPa. En deduire les paramètres de Weibull associés :\\") -> On réalise des expériences traction sur un matériau fragile. On obtient un ensemble de contraintes à rupture suivant : 372, 347, 281, 268, 281, 327, 242, 351, 204 MPa. En deduire les paramètres de Weibull associés :\\
O28: =CONCATENATE("Le module \minisol{m=",Module,"}\\") -> Le module \minisol{m=4.6}\\
O29: =CONCATENATE("Le facteur d'échelle Ko=\minisol{",ROUND(Facteur_Echelle,0),"} MPa") -> Le facteur d'échelle Ko=\minisol{323} MPa

Sheet xTauSonde
A1: catégorie_Tau | B1: Tau_Sonde | C1: =CONCATENATE(" <!-- question XLQ ", titre_Tau, "-->") -> <!-- question XLQ Chercher_le_temps_caracteristique--> | F1: Valeur Mini_Tau | G1: Valeur Maxi_Tau | H1: Sig. Digit_Tau | I1: Val Choix_Tau
A2: titre_Tau | B2: Chercher_le_temps_caracteristique | C2: =CONCATENATE(" <question type=",CHAR(34),"category",CHAR(34),"><category><text>", categorie_Tau,"</text></category></question>)") -> <question type="category"><category><text>Tau_Sonde</text></category></question>) | E2: V1.temps_Tau | F2: 1 | G2: 100 | H2: 0 | I2: =RANDBETWEEN(ValMini_Tau*10^-SigDig_Tau, ValMaxi_Tau*10^-SigDig_Tau)/10^-SigDig_Tau -> 29
A3: Tag_Tau | B3: Temps_Carac | C3: <question type="cloze"> | E3: V2.precision_Tau | F3: 1 | G3: 10000 | H3: 3 | I3: =RANDBETWEEN(ValMini_Tau*10^-SigDig_Tau, ValMaxi_Tau*10^-SigDig_Tau)/10^-SigDig_Tau -> 5000
A4: idnumber_Tau | B4: =TEXT(NOW(),"aammjj-hhmmss.00") -> 210710-210812.04 | C4: =CONCATENATE(" <name><text>", titre_Tau, "</text></name>") -> <name><text>Chercher_le_temps_caracteristique</text></name>
A5: points_Tau | B5: 1 | C5: <questiontext format="html"> | F5: Cible_Tau | G5: Tolér_Tau | H5: Sig. Digit_Tau
A6: tolérance_Tau | B6: 0.05 | C6: =CONCATENATE(" <text><![CDATA[<p>", question_Tau, "</p>]]></text>") -> <text><![CDATA[<p> <p>Une sonde a une constante de temps de 29 s. Au bout de combien de temps cette sonde donne-t-elle une r&eacute;ponse exacte &agrave; 1/5000 pr&egrave;s en valeur relative&nbsp;? &tau; = {1:NUMERICAL:=2.47E+02:1.23E+01}&nbsp;</p><p></p>]]></text> | E6: R1.TempsCarac_Tau | F6: =V1.temps_Tau*LN(V2.precision_Tau) -> 246.9986026 | G6: =tolerance_Tau*ValMini_Tau -> 12.34993013 | I6: =CONCATENATE("{1:NUMERICAL:=",TEXT(Cible_Tau,"0.00E+00"),":",TEXT(Tolere_Tau,"0.00E+00"),"}") -> {1:NUMERICAL:=2.47E+02:1.23E+01}
A7: penalité_Tau | B7: 0.1 | C7: </questiontext>
A8: feedback_Tau | B8: Temps_caracteristique | C8: =CONCATENATE(" <defaultgrade>",points_Tau,"</defaultgrade><generalfeedback><text>",feedback_Tau,"</text></generalfeedback><penalty>",penalty_Tau,"</penalty><hidden>0</hidden>)") -> <defaultgrade>1</defaultgrade><generalfeedback><text>Temps_caracteristique</text></generalfeedback><penalty>0.1</penalty><hidden>0</hidden>)
A9: Cellule vides_Tau | B9: =COUNTBLANK(B1:B8) -> 0 | C9: =CONCATENATE(" <idnumber>",idnumber_Tau,"</idnumber><tags><tag><text>",Tag_Tau,"</text></tag></tags>") -> <idnumber>210710-210812.04</idnumber><tags><tag><text>Temps_Carac</text></tag></tags>
A10: question format HTML_Tau | B10: =CONCATENATE(" ",C19,C20,C21,C22,C23) -> <p>Une sonde a une constante de temps de 29 s. Au bout de combien de temps cette sonde donne-t-elle une r&eacute;ponse exacte &agrave; 1/5000 pr&egrave;s en valeur relative&nbsp;? &tau; = {1:NUMERICAL:=2.47E+02:1.23E+01}&nbsp;</p><p> | C10: </question>
A11: Repere Var Rep | B11: _Trac
A12: HTML File | B12: TempsCarac.HTML.txt
A13: https://html-online.com/editor/
C15: 4
A16: Var : | B16: # | C16: 2
A17: Res : | B17: $ | C17: 1
C19: =CONCATENATE("<p>Une sonde a une constante de temps de ",V1.temps_Tau," s. Au ") -> <p>Une sonde a une constante de temps de 29 s. Au
C20: =CONCATENATE("bout de combien de temps cette sonde donne-t-elle ") -> bout de combien de temps cette sonde donne-t-elle
C21: =CONCATENATE("une r&eacute;ponse exacte &agrave; 1/",V2.precision_Tau," pr&egrave;") -> une r&eacute;ponse exacte &agrave; 1/5000 pr&egrave;
C22: =CONCATENATE("s en valeur relative&nbsp;? &tau; = ",R1.TempsCarac_Tau,"&nbsp;</p><p") -> s en valeur relative&nbsp;? &tau; = {1:NUMERICAL:=2.47E+02:1.23E+01}&nbsp;</p><p
C23: =CONCATENATE(">") -> >
B29: =question_Tau -> <p>Une sonde a une constante de temps de 29 s. Au bout de combien de temps cette sonde donne-t-elle une r&eacute;ponse exacte &agrave; 1/5000 pr&egrave;s en valeur relative&nbsp;? &tau; = {1:NUMERICAL:=2.47E+02:1.23E+01}&nbsp;</p><p>

Sheet xCaptLin
A1: catégorie_Cparties | B1: Capteur_Lin | C1: =CONCATENATE("<!-- question XLQ ", titre_Cparties, "-->") -> <!-- question XLQ Lin_par_parties--> | F1: Valeur Mini_Cparties | G1: Valeur Maxi_Cparties | H1: Sig. Digit_Cparties | I1: Val Choix_Cparties | J1: DT | K1: 0.5
A2: titre_Cparties | B2: Lin_par_parties | C2: =CONCATENATE(" <question type=",CHAR(34),"category",CHAR(34),"><category><text>", categorie_Cparties,"</text></category></question>)") -> <question type="category"><category><text>Capteur_Lin</text></category></question>) | E2: V1._Cparties | F2: =RANDBETWEEN(1,1000)/1000 -> 0.488 | G2: =F2+RANDBETWEEN(1,100)/100 -> 1.468 | H2: -2 | I2: =RANDBETWEEN(ValMini_Cparties*10^-SigDig_Cparties, ValMaxi_Cparties*10^-SigDig_Cparties)/10^-SigDig_Cparties -> 0.93
A3: Tag_Cparties | B3: Lineaire | C3: <question type="cloze"> | E3: V2._Cparties | F3: =V1._Cparties+DT_Cparties -> 1.43 | G3: =F3+RANDBETWEEN(1,100)/100 -> 2 | H3: -2 | I3: =RANDBETWEEN(ValMini_Cparties*10^-SigDig_Cparties, ValMaxi_Cparties*10^-SigDig_Cparties)/10^-SigDig_Cparties -> 1.6
A4: idnumber_Cparties | B4: =TEXT(NOW(),"aammjj-hhmmss.00") -> 210710-210812.04 | C4: =CONCATENATE(" <name><text>", titre_Cparties, "</text></name>") -> <name><text>Lin_par_parties</text></name> | E4: V3._Cparties | F4: =V2._Cparties+DT_Cparties -> 2.1 | G4: =F4+RANDBETWEEN(1,100)/100 -> 3.02 | H4: -2 | I4: =RANDBETWEEN(ValMini_Cparties*10^-SigDig_Cparties, ValMaxi_Cparties*10^-SigDig_Cparties)/10^-SigDig_Cparties -> 2.22
A5: points_Cparties | B5: 1 | C5: <questiontext format="html"> | E5: V4.Ini_Cparties | F5: 200 | G5: 2500 | H5: 2 | I5: =RANDBETWEEN(ValMini_Cparties*10^-SigDig_Cparties, ValMaxi_Cparties*10^-SigDig_Cparties)/10^-SigDig_Cparties -> 1400
A6: tolérance_Cparties | B6: 0.05 | C6: =CONCATENATE(" <text><![CDATA[<p>", question_Cparties, "</p>]]></text>") -> <text><![CDATA[<p> <p>On dispose d'un capteur non lin&eacute;aire de temp&eacute;ratures dans la gamme 0-300&deg;C, de sensibilit&eacute; moyenne 0.93mV/&deg;C de 0 &agrave; 80 &deg;C, 1.6 mV/&deg;C de 80 &agrave; 180&deg;C, 2.22 mV/&deg;C de 180 &agrave; 300&deg;C. Ce capteur fournit une tension de 1400 mV &agrave; 0&deg;C.</p><p><p>Quelle est son indication &agrave; 300 &deg;C&nbsp;? {1:NUMERICAL:=1.90E+03:9.50E+01}</p><p><p>On d&eacute;sire convertir le signal de sortie avec un CAN &agrave; approximations successives. Quelle tension de r&eacute;f&eacute;rence conseillez-vous pour pouvoir r&eacute;aliser des mesures entre 0 et 300 &deg;C&nbsp;? {1:NUMERICAL:=2.00E+00:1.00E-01}</p><p><p>&nbsp;</p><p></p>]]></text>
A7: penalité_Cparties | B7: 0 | C7: </questiontext> | F7: Cible_Cparties | G7: Tolér_Cparties | H7: Sig. Digit_Cparties
A8: feedback_Cparties | B8: sensibilite | C8: =CONCATENATE(" <defaultgrade>",points_Cparties,"</defaultgrade><generalfeedback><text>",feedback_Cparties,"</text></generalfeedback><penalty>",penalty_Cparties,"</penalty><hidden>0</hidden>)") -> <defaultgrade>1</defaultgrade><generalfeedback><text>sensibilite</text></generalfeedback><penalty>0</penalty><hidden>0</hidden>) | E8: R1._Cparties | F8: =V3.Ini_Cparties+V1._Cparties*80+V2._Cparties*100+V3._Cparties*120 -> 1900.8 | G8: =tolerance_Cparties*ValMini_Cparties -> 95.04 | I8: =CONCATENATE("{1:NUMERICAL:=",TEXT(Cible_Cparties,"0.00E+00"),":",TEXT(Tolere_Cparties,"0.00E+00"),"}") -> {1:NUMERICAL:=1.90E+03:9.50E+01}
A9: Cellule vides_Trac | B9: =COUNTBLANK(B1:B8) -> 0 | C9: =CONCATENATE(" <idnumber>",idnumber_Cparties,"</idnumber><tags><tag><text>",Tag_Cparties,"</text></tag></tags>") -> <idnumber>210710-210812.04</idnumber><tags><tag><text>Lineaire</text></tag></tags> | E9: R2._Cparties | F9: =ROUNDUP(F8/1000,0) -> 2 | G9: =tolerance_Cparties*ValMini_Cparties -> 0.1 | I9: =CONCATENATE("{1:NUMERICAL:=",TEXT(Cible_Cparties,"0.00E+00"),":",TEXT(Tolere_Cparties,"0.00E+00"),"}") -> {1:NUMERICAL:=2.00E+00:1.00E-01}
A10: question format HTML_Cparties | B10: =CONCATENATE(" ",B19,B20,B21,B22,B23,B24,B25,B26,B27,B28,B29,B30,B31) -> <p>On dispose d'un capteur non lin&eacute;aire de temp&eacute;ratures dans la gamme 0-300&deg;C, de sensibilit&eacute; moyenne 0.93mV/&deg;C de 0 &agrave; 80 &deg;C, 1.6 mV/&deg;C de 80 &agrave; 180&deg;C, 2.22 mV/&deg;C de 180 &agrave; 300&deg;C. Ce capteur fournit une tension de 1400 mV &agrave; 0&deg;C.</p><p><p>Quelle est son indication &agrave; 300 &deg;C&nbsp;? {1:NUMERICAL:=1.90E+03:9.50E+01}</p><p><p>On d&eacute;sire convertir le signal de sortie avec un CAN &agrave; approximations successives. Quelle tension de r&eacute;f&eacute;rence conseillez-vous pour pouvoir r&eacute;aliser des mesures entre 0 et 300 &deg;C&nbsp;? {1:NUMERICAL:=2.00E+00:1.00E-01}</p><p><p>&nbsp;</p><p> | C10: </question>
A11: Cases vides | B11: =COUNTBLANK(B1:B10) -> 0
A12: Repere Var Rep | B12: _Cparties
A13: HTML File | B13: Capteur.HTML.txt
A14: https://html-online.com/editor/
C15: 5
A16: Var : | B16: # | C16: 3
A17: Res : | B17: $ | C17: 1
B19: =CONCATENATE("<p>On dispose d'un capteur non lin&eacute;aire de ") -> <p>On dispose d'un capteur non lin&eacute;aire de | C19: <p>On dispose d'un capteur non lin&eacute;aire de temp&eacute;ratures dans la gamme 0-300&deg;C, de sensibilit&eacute; moyenne #1#mV/&deg;C de 0 &agrave; 80 &deg;C, #2# mV/&deg;C de 80 &agrave; 180&deg;C, #3# mV/&deg;C de 180 &agrave; 300&deg;C. Ce capteur fournit une tension de #4# mV &agrave; 0&deg;C.</p>
B20: =CONCATENATE("temp&eacute;ratures dans la gamme 0-300&deg;C, de ") -> temp&eacute;ratures dans la gamme 0-300&deg;C, de | C20: <p>Quelle est son indication &agrave; 300 &deg;C&nbsp;? $1$</p>
B21: =CONCATENATE("sensibilit&eacute; moyenne ",V1._Cparties,"mV/&deg;C de 0 &agra") -> sensibilit&eacute; moyenne 0.93mV/&deg;C de 0 &agra | C21: <p>On d&eacute;sire convertir le signal de sortie avec un CAN &agrave; approximations successives. Quelle tension de r&eacute;f&eacute;rence conseillez-vous pour pouvoir r&eacute;aliser des mesures entre 0 et 300 &deg;C&nbsp;? $2$</p>
B22: =CONCATENATE("ve; 80 &deg;C, ",V2._Cparties," mV/&deg;C de 80 &agrave; 180&de") -> ve; 80 &deg;C, 1.6 mV/&deg;C de 80 &agrave; 180&de | C22: <p>&nbsp;</p>
B23: =CONCATENATE("g;C, ",V3._Cparties," mV/&deg;C de 180 &agrave; 300&deg;C. Ce c") -> g;C, 2.22 mV/&deg;C de 180 &agrave; 300&deg;C. Ce c
B24: =CONCATENATE("apteur fournit une tension de ",V4.Ini_Cparties," mV &agrave; 0&de") -> apteur fournit une tension de 1400 mV &agrave; 0&de
B25: =CONCATENATE("g;C.</p><p><p>Quelle est son indication &agrave; 3") -> g;C.</p><p><p>Quelle est son indication &agrave; 3
B26: =CONCATENATE("00 &deg;C&nbsp;? ",R1._Cparties,"</p><p><p>On d&eacute;sire con") -> 00 &deg;C&nbsp;? {1:NUMERICAL:=1.90E+03:9.50E+01}</p><p><p>On d&eacute;sire con
B27: =CONCATENATE("vertir le signal de sortie avec un CAN &agrave; ap") -> vertir le signal de sortie avec un CAN &agrave; ap
B28: =CONCATENATE("proximations successives. Quelle tension de r&eacu") -> proximations successives. Quelle tension de r&eacu
B29: =CONCATENATE("te;f&eacute;rence conseillez-vous pour pouvoir r&e") -> te;f&eacute;rence conseillez-vous pour pouvoir r&e
B30: =CONCATENATE("acute;aliser des mesures entre 0 et 300 &deg;C&nbs") -> acute;aliser des mesures entre 0 et 300 &deg;C&nbs
B31: =CONCATENATE("p;? ",R2._Cparties,"</p><p><p>&nbsp;</p><p>") -> p;? {1:NUMERICAL:=2.00E+00:1.00E-01}</p><p><p>&nbsp;</p><p>

Sheet Capt_Pt-Rh
A1: catégorie_PtRh | B1: Capteur_PtRh | C1: =CONCATENATE(" <!-- question XLQ ", titre_PtRh, "-->") -> <!-- question XLQ Capteur_PtRh--> | F1: Valeur Mini_PtRh | G1: Valeur Maxi_PtRh | H1: Sig. Digit_PtRh | I1: Val Choix_PtRh
A2: titre_PtRh | B2: Capteur_PtRh | C2: =CONCATENATE(" <question type=",CHAR(34),"category",CHAR(34),"><category><text>", categorie_PtRh,"</text></category></question>)") -> <question type="category"><category><text>Capteur_PtRh</text></category></question>) | E2: V1.a_PtRh | F2: -1.5 | G2: -1.3 | H2: -3 | I2: =RANDBETWEEN(ValMini_PtRh*10^-SigDig_PtRh, ValMaxi_PtRh*10^-SigDig_PtRh)/10^-SigDig_PtRh -> -1.469
A3: Tag_PtRh | B3: PtRh | C3: <question type="cloze"> | E3: V2.b_PtRh | F3: 101 | G3: 121 | H3: -1 | I3: =RANDBETWEEN(ValMini_PtRh*10^-SigDig_PtRh, ValMaxi_PtRh*10^-SigDig_PtRh)/10^-SigDig_PtRh -> 114.8
A4: idnumber_PtRh | B4: =TEXT(NOW(),"aammjj-hhmmss.00") -> 210710-210812.04 | C4: =CONCATENATE(" <name><text>", titre_PtRh, "</text></name>") -> <name><text>Capteur_PtRh</text></name> | E4: V3.c_PtRh | F4: 50 | G4: 65 | H4: -1 | I4: =RANDBETWEEN(ValMini_PtRh*10^-SigDig_PtRh, ValMaxi_PtRh*10^-SigDig_PtRh)/10^-SigDig_PtRh -> 55.3
A5: points_PtRh | B5: 2 | C5: <questiontext format="html">
A6: tolérance_PtRh | B6: 0.5 | C6: =CONCATENATE(" <text><![CDATA[<p>", question_PtRh, "</p>]]></text>") -> <text><![CDATA[<p> <p>Entre 630 et 1064&deg;C, la f.e.m. du thermocouple Pt-Rh 10% / Pt peut &ecirc;tre reli&eacute;e &agrave; la temp&eacute;rature au vingti&egrave;me de degr&eacute; pr&egrave;s par la fonction simple &Theta; =&nbsp;ae<sup>2</sup>&nbsp;+&nbsp;be&nbsp;+&nbsp;c o&ugrave; a&nbsp;=&nbsp;-1.469 , b&nbsp;=&nbsp;114.8 et c&nbsp;= 55.3. Dans cette formule, les f.e.m. sont en mV et les temp&eacute;ratures en &deg;C. Quelle est la sensibilit&eacute; du thermocouple Pt-Rh 10 % / Pt au voisinage de 1000 &deg;C&nbsp;? {2:NUMERICAL:=-2.82E+03:-1.41E+03}</p><p></p>]]></text> | F6: Cible_PtRh | G6: Toler_PtRh | H6: PointsQuestion_PtRh
A7: penalité_PtRh | B7: 0.1 | C7: </questiontext> | E7: R1.sens_PtRh | F7: =2*V1.a_PtRh*1000+V2.b_PtRh -> -2823.2 | G7: =tolerance_PtRh*ValMini_PtRh -> -1411.6 | H7: 2 | I7: =CONCATENATE("{",PointsQuestion_PtRh,":NUMERICAL:=",TEXT(Cible_PtRh,"0.00E+00"),":",TEXT(Tolere_PtRh,"0.00E+00"),"}") -> {2:NUMERICAL:=-2.82E+03:-1.41E+03}
A8: feedback_PtRh | B8: Regardez_definition_de_la_sensibilite_cest_la_variation_relative_entre_entree_et_sortie | C8: =CONCATENATE(" <defaultgrade>",points_PtRh,"</defaultgrade><generalfeedback><text>",feedback_PtRh,"</text></generalfeedback><penalty>",penalty_PtRh,"</penalty><hidden>0</hidden>)") -> <defaultgrade>2</defaultgrade><generalfeedback><text>Regardez_definition_de_la_sensibilite_cest_la_variation_relative_entre_entree_et_sortie</text></generalfeedback><penalty>0.1</penalty><hidden>0</hidden>)
A9: Cellule vides_PtRh | B9: =COUNTBLANK(B1:B8) -> 0 | C9: =CONCATENATE(" <idnumber>",idnumber_PtRh,"</idnumber><tags><tag><text>",Tag_PtRh,"</text></tag></tags>") -> <idnumber>210710-210812.04</idnumber><tags><tag><text>PtRh</text></tag></tags>
A10: question format HTML_PtRh | B10: =CONCATENATE(" ",B19,B20,B21) -> <p>Entre 630 et 1064&deg;C, la f.e.m. du thermocouple Pt-Rh 10% / Pt peut &ecirc;tre reli&eacute;e &agrave; la temp&eacute;rature au vingti&egrave;me de degr&eacute; pr&egrave;s par la fonction simple &Theta; =&nbsp;ae<sup>2</sup>&nbsp;+&nbsp;be&nbsp;+&nbsp;c o&ugrave; a&nbsp;=&nbsp;-1.469 , b&nbsp;=&nbsp;114.8 et c&nbsp;= 55.3. Dans cette formule, les f.e.m. sont en mV et les temp&eacute;ratures en &deg;C. Quelle est la sensibilit&eacute; du thermocouple Pt-Rh 10 % / Pt au voisinage de 1000 &deg;C&nbsp;? {2:NUMERICAL:=-2.82E+03:-1.41E+03}</p><p> | C10: </question>
A11: Repere Var Rep | B11: _PtRh
A12: HTML File
A13: https://html-online.com/editor/
C15: 5 | G15: Entre 630 et 1064°C, la f.e.m. du thermocouple Pt-Rh 10% / Pt peut être reliée à la température au vingtième de degré près par la fonction simple
A16: Var : | B16: # | C16: 3 | G16: q = ae2 + be + c où a = -1,225 , b = 110,1 et c = 57,3. Dans cette formule, les f.e.m. sont en mV et les températures en °C.
A17: Res : | B17: $ | C17: 1 | G17: Quelle est la sensibilité du thermocouple Pt-Rh 10 % / Pt au voisinage de 1000 °C ?
B19: =CONCATENATE("<p>Entre 630 et 1064&deg;C, la f.e.m. du thermocouple Pt-Rh 10% / Pt peut &ecirc;tre reli&eacute;e &agrave; la temp&eacute;rature au vingti&egrave;me de degr&eacute; pr&egrave;s par la fonction simple &Theta; =&nbsp;ae<s") -> <p>Entre 630 et 1064&deg;C, la f.e.m. du thermocouple Pt-Rh 10% / Pt peut &ecirc;tre reli&eacute;e &agrave; la temp&eacute;rature au vingti&egrave;me de degr&eacute; pr&egrave;s par la fonction simple &Theta; =&nbsp;ae<s | C19: <p>Entre 630 et 1064&deg;C, la f.e.m. du thermocouple Pt-Rh 10% / Pt peut &ecirc;tre reli&eacute;e &agrave; la temp&eacute;rature au vingti&egrave;me de degr&eacute; pr&egrave;s par la fonction simple &Theta; =&nbsp;ae<sup>2</sup>&nbsp;+&nbsp;be&nbsp;+&nbsp;c o&ugrave; a&nbsp;=&nbsp;#1# , b&nbsp;=&nbsp;#2# et c&nbsp;= #3#. Dans cette formule, les f.e.m. sont en mV et les temp&eacute;ratures en &deg;C. Quelle est la sensibilit&eacute; du thermocouple Pt-Rh 10 % / Pt au voisinage de 1000 &deg;C&nbsp;? $1$</p>
B20: =CONCATENATE("up>2</sup>&nbsp;+&nbsp;be&nbsp;+&nbsp;c o&ugrave; a&nbsp;=&nbsp;",V1.a_PtRh," , b&nbsp;=&nbsp;",V2.b_PtRh," et c&nbsp;= ",V3.c_PtRh,". Dans cette formule, les f.e.m. sont en mV et les temp&eacute;ratures en &deg;C. Quelle est la sensibilit&eacute; du") -> up>2</sup>&nbsp;+&nbsp;be&nbsp;+&nbsp;c o&ugrave; a&nbsp;=&nbsp;-1.469 , b&nbsp;=&nbsp;114.8 et c&nbsp;= 55.3. Dans cette formule, les f.e.m. sont en mV et les temp&eacute;ratures en &deg;C. Quelle est la sensibilit&eacute; du
B21: =CONCATENATE(" thermocouple Pt-Rh 10 % / Pt au voisinage de 1000 &deg;C&nbsp;? ",R1.sens_PtRh,"</p><p>") -> thermocouple Pt-Rh 10 % / Pt au voisinage de 1000 &deg;C&nbsp;? {2:NUMERICAL:=-2.82E+03:-1.41E+03}</p><p>

Sheet Stat
A1: catégorie_Stat | B1: Incert_Stat | C1: =CONCATENATE(" <!-- question XLQ ", titre_Stat, "-->") -> <!-- question XLQ Moy_et_Ecart--> | F1: Valeur Mini_Stat | G1: Valeur Maxi_Stat | H1: Sig. Digit_Stat | I1: Val Choix_Stat | M1: 1 | N1: =CONCATENATE("#",M1," ; ") -> #1 ;
A2: titre_Stat | B2: Moy_et_Ecart | C2: =CONCATENATE(" <question type=",CHAR(34),"category",CHAR(34),"><category><text>", categorie_Stat,"</text></category></question>)") -> <question type="category"><category><text>Incert_Stat</text></category></question>) | E2: V1._Stat | F2: 1 | G2: 10 | H2: -1 | I2: =RANDBETWEEN(ValMini_Stat*10^-SigDig_Stat, ValMaxi_Stat*10^-SigDig_Stat)/10^-SigDig_Stat -> 6.7 | M2: 2 | N2: #2 ;
A3: Tag_Stat | B3: M-STDV | C3: <question type="cloze"> | E3: V2._Stat | F3: 1 | G3: 20 | H3: -1 | I3: 14.8 | M3: 3 | N3: #3 ;
A4: idnumber_Stat | B4: =TEXT(NOW(),"aammjj-hhmmss.00") -> 210710-210812.04 | C4: =CONCATENATE(" <name><text>", titre_Stat, "</text></name>") -> <name><text>Moy_et_Ecart</text></name> | E4: V3._Stat | F4: 1 | G4: 30 | H4: -1 | I4: 7.9 | M4: 4 | N4: #4 ;
A5: points_Stat | B5: 1 | C5: <questiontext format="html"> | E5: V4._Stat | F5: 1 | G5: 100 | H5: 0 | I5: 89 | M5: 5 | N5: #5 ;
A6: tolérance_Stat | B6: 0.05 | C6: =CONCATENATE(" <text><![CDATA[<p>", question_Stat, "</p>]]></text>") -> <text><![CDATA[<p>Pour cet ensemble de valeurs : 6.7 ; 14.8 ; 7.9 ; 89 ; 6.1 ; 86.6 ; 15.7 ; 23 ; 30 ; 11.9 ; 8.1 ; 11 , calculez la moyenne : {1:NUMERICAL:=2.59E+01:1.30E+00} et l'ecart type : {1:NUMERICAL:=2.98E+01:1.49E+00}<p></p>]]></text> | E6: V5._Stat | F6: 6 | G6: 16 | H6: -1 | I6: 6.1 | M6: 6 | N6: #6 ;
A7: penalité_Stat | B7: 0.1 | C7: </questiontext> | E7: V6._Stat | F7: 1 | G7: 99 | H7: -1 | I7: 86.6 | M7: 7 | N7: #7 ;
A8: feedback_Stat | B8: Cf._cours_de_statistiques | C8: =CONCATENATE(" <defaultgrade>",points_Stat,"</defaultgrade><generalfeedback><text>",feedback_Stat,"</text></generalfeedback><penalty>",penalty_Stat,"</penalty><hidden>0</hidden>)") -> <defaultgrade>1</defaultgrade><generalfeedback><text>Cf._cours_de_statistiques</text></generalfeedback><penalty>0.1</penalty><hidden>0</hidden>) | E8: V7._Stat | F8: 1 | G8: 22 | H8: -1 | I8: 15.7 | M8: 8 | N8: #8 ;
A9: Cellule vides_Stat | B9: =COUNTBLANK(B1:B8) -> 0 | C9: =CONCATENATE(" <idnumber>",idnumber_Stat,"</idnumber><tags><tag><text>",Tag_Stat,"</text></tag></tags>") -> <idnumber>210710-210812.04</idnumber><tags><tag><text>M-STDV</text></tag></tags> | E9: V8._Stat | F9: 1 | G9: 74 | H9: 0 | I9: 23 | M9: 9 | N9: #9 ;
A10: question format HTML_Stat | B10: =CONCATENATE(C19, C20, C21, C22) -> Pour cet ensemble de valeurs : 6.7 ; 14.8 ; 7.9 ; 89 ; 6.1 ; 86.6 ; 15.7 ; 23 ; 30 ; 11.9 ; 8.1 ; 11 , calculez la moyenne : {1:NUMERICAL:=2.59E+01:1.30E+00} et l'ecart type : {1:NUMERICAL:=2.98E+01:1.49E+00}<p> | C10: </question> | E10: V9._Stat | F10: 5 | G10: 35 | H10: 1 | I10: 30 | M10: 10 | N10: #10 ;
A11: Repere Var Rep | B11: _Stat | E11: V10._Stat | F11: 9 | G11: 26 | H11: -1 | I11: 11.9 | M11: 11 | N11: #11 ;
A12: HTML File | B12: Stats.txt | E12: V11._Stat | F12: 3 | G12: 12 | H12: -1 | I12: 8.1 | M12: 12 | N12: #12 ;
A13: Valide ? | B13: =ISNUMBER(H18) -> TRUE | E13: V12._Stat | F13: 4 | G13: 12 | H13: 0 | I13: 11
A14: https://html-online.com/editor/ | M14: =CONCATENATE("Pour cet ensemble de valeurs : ",N1,N2,N3,N4,N5,N6,N7,N8,N9,N10,N11,N12,", calculez la moyenne : $1 et l'ecart type : $2.") -> Pour cet ensemble de valeurs : #1 ; #2 ; #3 ; #4 ; #5 ; #6 ; #7 ; #8 ; #9 ; #10 ; #11 ; #12 ; , calculez la moyenne : $1 et l'ecart type : $2.
A15: https://html5-editor.net/ | C15: 14 | F15: Cible_Stat | G15: Tolér_Stat | H15: Sig. Digit_Stat | M15: Pour cet ensemble de valeurs : #1 ; #2 ; #3 ; #4 ; #5 ; #6 ; #7 ; #8 ; #9 ; #10 ; #11 ; #12 , calculez la moyenne : $1 et l'ecart type : $2
A16: Var : | B16: # | C16: 12 | E16: R1.Moy_Stat | F16: =AVERAGE(I2:I13) -> 25.9 | G16: =tolerance_Stat*ValMini_Stat -> 1.295 | H16: 1 | I16: =CONCATENATE("{1:NUMERICAL:=",TEXT(Cible_Stat,"0.00E+00"),":",TEXT(Tolere_Stat,"0.00E+00"),"}") -> {1:NUMERICAL:=2.59E+01:1.30E+00}
A17: Res : | B17: $ | C17: 2 | E17: R2.Ecart_Stat | F17: =STDEV(I2:I13) -> 29.75368579 | G17: =tolerance_Stat*ValMini_Stat -> 1.48768429 | H17: 1 | I17: =CONCATENATE("{1:NUMERICAL:=",TEXT(Cible_Stat,"0.00E+00"),":",TEXT(Tolere_Stat,"0.00E+00"),"}") -> {1:NUMERICAL:=2.98E+01:1.49E+00}
H18: =SUM(F16:H17) -> 60.43637008
C19: =CONCATENATE("Pour cet ensemble de valeurs : ",V1._Stat," ; ",V2._Stat," ; ",V3._Stat," ;") -> Pour cet ensemble de valeurs : 6.7 ; 14.8 ; 7.9 ;
C20: =CONCATENATE(" ",V4._Stat," ; ",V5._Stat," ; ",V6._Stat," ; ",V7._Stat," ; ",V8._Stat," ; ",V9._Stat," ; ",V10._Stat," ;") -> 89 ; 6.1 ; 86.6 ; 15.7 ; 23 ; 30 ; 11.9 ;
C21: =CONCATENATE(" ",V11._Stat," ; ",V12._Stat," , calculez la moyenne : ",R1.Moy_Stat," et l'ecar") -> 8.1 ; 11 , calculez la moyenne : {1:NUMERICAL:=2.59E+01:1.30E+00} et l'ecar
C22: =CONCATENATE("t type : ",R2.Ecart_Stat,"<p>") -> t type : {1:NUMERICAL:=2.98E+01:1.49E+00}<p>
E23: 7.8 | F23: 19.9 | G23: 19.3 | H23: 82 | I23: 14.2 | J23: 80.1 | K23: 10.4 | L23: 72 | M23: 10 | N23: 22.8 | O23: 8.4 | P23: 9
E24: =AVERAGE(E23:P23) -> 29.65833333
E25: =STDEV(E23:P23) -> 29.66349021

Sheet Expr
A1: catégorie_EPhy | B1: Expr_Phys | C1: =CONCATENATE(" <!-- question XLQ ", titre_EPhy, "-->") -> <!-- question XLQ Expr_Phys--> | F1: Valeur Mini | G1: Valeur Maxi | H1: Sig. Digit | I1: Val Choix | J1: ODG | P1: u
A2: titre_EPhy | B2: Expr_Phys | C2: =CONCATENATE(" <question type=",CHAR(34),"category",CHAR(34),"><category><text>", categorie_EPhy,"</text></category></question>)") -> <question type="category"><category><text>Expr_Phys</text></category></question>) | E2: VarA_EPhy | F2: =RAND()*10^(J2) -> 5.087266322e-07 | G2: =ROUND(F2,1-INT(LOG10(ABS(M2)))) -> 5.087e-07 | J2: -6 | L2: DeltA_EPhy | M2: =F2*10^(-3*(RAND()+0.1)) -> 2.711987602e-09 | N2: =ROUNDUP(M2,1-INT(LOG10(ABS(M2)))) -> 2.8e-09
A3: Tag_EPhy | B3: Ecriture_correcte | C3: <question type="cloze"> | E3: VarB_EPhy | F3: =RAND()*10^(J3) -> 0.0005752064781 | G3: =ROUND(F3,1-INT(LOG10(ABS(M3)))) -> 0.000575 | J3: -3 | L3: DelB_EPhy | M3: =F3*10^(-3*(RAND()+0.1)) -> 2.540216688e-05 | N3: =ROUNDUP(M3,1-INT(LOG10(ABS(M3)))) -> 2.6e-05
A4: idnumber_EPhy | B4: =TEXT(NOW(),"aammjj-hhmmss.00") -> 210710-210812.04 | C4: =CONCATENATE(" <name><text>", titre_EPhy, "</text></name>") -> <name><text>Expr_Phys</text></name> | E4: VarC_EPhy | F4: =RAND()*10^(J4) -> 13.00727303 | G4: =ROUND(F4,1-INT(LOG10(ABS(M4)))) -> 13.007 | J4: 3 | L4: DeltC_EPhy | M4: =F4*10^(-3*(RAND()+0.1)) -> 0.01358344353 | N4: =ROUNDUP(M4,1-INT(LOG10(ABS(M4)))) -> 0.014
A5: points_EPhy | B5: 1 | C5: <questiontext format="html"> | E5: VarD_EPhy | F5: =RAND()*10^(J5) -> 217247.3196 | G5: =ROUND(F5,1-INT(LOG10(ABS(M5)))) -> 217000 | J5: 6 | L5: DeltD_EPhy | M5: =F5*10^(-3*(RAND()+0.1)) -> 34592.98093 | N5: =ROUNDUP(M5,1-INT(LOG10(ABS(M5)))) -> 35000
A6: tolérance_EPhy | B6: 0.05 | C6: =CONCATENATE(" <text><![CDATA[<p>", question_EPhy, "</p>]]></text>") -> <text><![CDATA[<p><p>Exprimer correctement ces r&eacute;sultats num&eacute;riques (valeur, incertitude et pr&eacute;fixe : f,n,u,m,-,k,M,G,T) :</p><ul><li>127707693256.582+/-5531663612.31812={1:NUMERICAL:=127.7:12.77}+/-{1:NUMERICAL:=5.6:0.56}{1:SHORTANSWER:=G}<BR>217247.319617359+/-34592.9809308333={1:NUMERICAL:=217:21.7}+/-{1:NUMERICAL:=35:3.5}{1:SHORTANSWER:=k}<BR>13.0072730251639+/-0.0135834435276917={1:NUMERICAL:=13007:1300.7}+/-{1:NUMERICAL:=14:1.4}{1:SHORTANSWER:=m}<BR>0.000575206478062141+/-2.54021668787887E-05={1:NUMERICAL:=575:57.5}+/-{1:NUMERICAL:=26:2.6}{1:SHORTANSWER:=u}<BR>5.08726632185026E-07+/-2.71198760233501E-09={1:NUMERICAL:=508.7:50.87}+/-{1:NUMERICAL:=2.8:0.28}{1:SHORTANSWER:=n}<BR></li></ul></p>]]></text> | E6: VarE_EPhy | F6: =RAND()*10^(J6) -> 1.277076933e+11 | G6: =ROUND(F6,1-INT(LOG10(ABS(M6)))) -> 127700000000 | J6: 12 | L6: DeltE_EPhy | M6: =F6*10^(-3*(RAND()+0.1)) -> 5531663612 | N6: =ROUNDUP(M6,1-INT(LOG10(ABS(M6)))) -> 5600000000
A7: penalité_EPhy | B7: 0.1 | C7: </questiontext>
A8: feedback_EPhy | B8: Vous_avez_le_cours_ou_le_fichier_exce_de_demo_des_videos | C8: =CONCATENATE(" <defaultgrade>",points_EPhy,"</defaultgrade><generalfeedback><text>",feedback_EPhy,"</text></generalfeedback><penalty>",penalty_EPhy,"</penalty><hidden>0</hidden>)") -> <defaultgrade>1</defaultgrade><generalfeedback><text>Vous_avez_le_cours_ou_le_fichier_exce_de_demo_des_videos</text></generalfeedback><penalty>0.1</penalty><hidden>0</hidden>)
A9: Cellule vides_Ephys | B9: =COUNTBLANK(B1:B8) -> 0 | C9: =CONCATENATE(" <idnumber>",idnumber_EPhy,"</idnumber><tags><tag><text>",Tag_EPhy,"</text></tag></tags>") -> <idnumber>210710-210812.04</idnumber><tags><tag><text>Ecriture_correcte</text></tag></tags>
A10: question format HTML_EPhy | B10: =CONCATENATE("<p>Exprimer correctement ces r&eacute;sultats num&eacute;riques (valeur, incertitude et pr&eacute;fixe : f,n,u,m,-,k,M,G,T) :</p><ul><li>",TRIM(I20),"</li></ul>") -> <p>Exprimer correctement ces r&eacute;sultats num&eacute;riques (valeur, incertitude et pr&eacute;fixe : f,n,u,m,-,k,M,G,T) :</p><ul><li>127707693256.582+/-5531663612.31812={1:NUMERICAL:=127.7:12.77}+/-{1:NUMERICAL:=5.6:0.56}{1:SHORTANSWER:=G}<BR>217247.319617359+/-34592.9809308333={1:NUMERICAL:=217:21.7}+/-{1:NUMERICAL:=35:3.5}{1:SHORTANSWER:=k}<BR>13.0072730251639+/-0.0135834435276917={1:NUMERICAL:=13007:1300.7}+/-{1:NUMERICAL:=14:1.4}{1:SHORTANSWER:=m}<BR>0.000575206478062141+/-2.54021668787887E-05={1:NUMERICAL:=575:57.5}+/-{1:NUMERICAL:=26:2.6}{1:SHORTANSWER:=u}<BR>5.08726632185026E-07+/-2.71198760233501E-09={1:NUMERICAL:=508.7:50.87}+/-{1:NUMERICAL:=2.8:0.28}{1:SHORTANSWER:=n}<BR></li></ul> | C10: </question>
A11: Repere Var Rep | B11: _Ephys
A12: HTML File | B12: Expression.HTML.txt
A13: Valide ? | B13: =ISNUMBER(G19) -> TRUE | F13: Resltat X | G13: Delta X
A14: https://html-online.com/editor/ | E14: ResA_EPhy | F14: =CONCATENATE( IF(N2<1000000000000000,IF(N2>=1000000000000,CONCATENATE(ABS(G2)/1000000000000,""),""),""), IF(N2<1000000000000,IF(N2>=1000000000,CONCATENATE(ABS(G2)/1000000000,""),""),""), IF(N2<1000000000,IF(N2>=1000000,CONCATENATE(ABS(G2)/1000000,""),""),""), IF(N2<1000000,IF(N2>=1000,CONCATENATE(ABS(G2)/1000,""),""),""), IF(N2<1000,IF(N2>=1,CONCATENATE(ABS(G2)/1,""),""),""), IF(N2<1,IF(N2>=0.001,CONCATENATE(ABS(G2)/0.001,""),""),""), IF(N2<0.001,IF(N2>=0.000001,CONCATENATE(ABS(G2)/0.000001,""),""),""), IF(N2<0.000001,IF(N2>=0.000000001,CONCATENATE(ABS(G2)/0.000000001,""),""),""), IF(N2<0.000000001,IF(N2>=0.000000000001,CONCATENATE(ABS(G2)/0.000000000001,""),""),"")) -> 508.7 | G14: =CONCATENATE( IF(N2<1000000000000000,IF(N2>=1000000000000,CONCATENATE(ABS(N2)/1000000000000,""),""),""), IF(N2<1000000000000,IF(N2>=1000000000,CONCATENATE(ABS(N2)/1000000000,""),""),""), IF(N2<1000000000,IF(N2>=1000000,CONCATENATE(ABS(N2)/1000000,""),""),""), IF(N2<1000000,IF(N2>=1000,CONCATENATE(ABS(N2)/1000,""),""),""), IF(N2<1000,IF(N2>=1,CONCATENATE(ABS(N2)/1,""),""),""), IF(N2<1,IF(N2>=0.001,CONCATENATE(ABS(N2)/0.001,""),""),""), IF(N2<0.001,IF(N2>=0.000001,CONCATENATE(ABS(N2)/0.000001,""),""),""), IF(N2<0.000001,IF(N2>=0.000000001,CONCATENATE(ABS(N2)/0.000000001,""),""),""), IF(N2<0.000000001,IF(N2>=0.000000000001,CONCATENATE(ABS(N2)/0.000000000001,""),""),""), ) -> 2.8 | H14: =CONCATENATE( IF(N2<1000000000000000,IF(N2>=1000000000000,"T",""),""), IF(N2<1000000000000,IF(N2>=1000000000,"G",""),""), IF(N2<1000000000,IF(N2>=1000000,"M",""),""), IF(N2<1000000,IF(N2>=1000,"k",""),""), IF(N2<1000,IF(N2>=1,"-",""),""), IF(N2<1,IF(N2>=0.001,"m",""),""), IF(N2<0.001,IF(N2>=0.000001,"u",""),""), IF(N2<0.000001,IF(N2>=0.000000001,"n",""),""), IF(N2<0.000000001,IF(N2>=0.000000000001,"p",""),""), ) -> n | I14: =IF(ISNA(G14),"",TRIM(CONCATENATE(F2,"+/-",M2,"={1:NUMERICAL:=",F14,":",F14/10,"}+/-{1:NUMERICAL:=",G14,":",G14/10,"}{1:SHORTANSWER:=",H14,"}<BR>"))) -> 5.08726632185026E-07+/-2.71198760233501E-09={1:NUMERICAL:=508.7:50.87}+/-{1:NUMERICAL:=2.8:0.28}{1:SHORTANSWER:=n}<BR>
C15: 3 | E15: ResB_EPhy | F15: =CONCATENATE( IF(N3<1000000000000000,IF(N3>=1000000000000,CONCATENATE(ABS(G3)/1000000000000,""),""),""), IF(N3<1000000000000,IF(N3>=1000000000,CONCATENATE(ABS(G3)/1000000000,""),""),""), IF(N3<1000000000,IF(N3>=1000000,CONCATENATE(ABS(G3)/1000000,""),""),""), IF(N3<1000000,IF(N3>=1000,CONCATENATE(ABS(G3)/1000,""),""),""), IF(N3<1000,IF(N3>=1,CONCATENATE(ABS(G3)/1,""),""),""), IF(N3<1,IF(N3>=0.001,CONCATENATE(ABS(G3)/0.001,""),""),""), IF(N3<0.001,IF(N3>=0.000001,CONCATENATE(ABS(G3)/0.000001,""),""),""), IF(N3<0.000001,IF(N3>=0.000000001,CONCATENATE(ABS(G3)/0.000000001,""),""),""), IF(N3<0.000000001,IF(N3>=0.000000000001,CONCATENATE(ABS(G3)/0.000000000001,""),""),"")) -> 575 | G15: =CONCATENATE( IF(N3<1000000000000000,IF(N3>=1000000000000,CONCATENATE(ABS(N3)/1000000000000,""),""),""), IF(N3<1000000000000,IF(N3>=1000000000,CONCATENATE(ABS(N3)/1000000000,""),""),""), IF(N3<1000000000,IF(N3>=1000000,CONCATENATE(ABS(N3)/1000000,""),""),""), IF(N3<1000000,IF(N3>=1000,CONCATENATE(ABS(N3)/1000,""),""),""), IF(N3<1000,IF(N3>=1,CONCATENATE(ABS(N3)/1,""),""),""), IF(N3<1,IF(N3>=0.001,CONCATENATE(ABS(N3)/0.001,""),""),""), IF(N3<0.001,IF(N3>=0.000001,CONCATENATE(ABS(N3)/0.000001,""),""),""), IF(N3<0.000001,IF(N3>=0.000000001,CONCATENATE(ABS(N3)/0.000000001,""),""),""), IF(N3<0.000000001,IF(N3>=0.000000000001,CONCATENATE(ABS(N3)/0.000000000001,""),""),""), ) -> 26 | H15: =CONCATENATE( IF(N3<1000000000000000,IF(N3>=1000000000000,"T",""),""), IF(N3<1000000000000,IF(N3>=1000000000,"G",""),""), IF(N3<1000000000,IF(N3>=1000000,"M",""),""), IF(N3<1000000,IF(N3>=1000,"k",""),""), IF(N3<1000,IF(N3>=1,"-",""),""), IF(N3<1,IF(N3>=0.001,"m",""),""), IF(N3<0.001,IF(N3>=0.000001,"u",""),""), IF(N3<0.000001,IF(N3>=0.000000001,"n",""),""), IF(N3<0.000000001,IF(N3>=0.000000000001,"p",""),""), ) -> u | I15: =IF(ISNA(G15),"",TRIM(CONCATENATE(F3,"+/-",M3,"={1:NUMERICAL:=",F15,":",F15/10,"}+/-{1:NUMERICAL:=",G15,":",G15/10,"}{1:SHORTANSWER:=",H15,"}<BR>"))) -> 0.000575206478062141+/-2.54021668787887E-05={1:NUMERICAL:=575:57.5}+/-{1:NUMERICAL:=26:2.6}{1:SHORTANSWER:=u}<BR>
A16: Var : | B16: # | C16: 0 | E16: ResC_EPhy | F16: =CONCATENATE( IF(N4<1000000000000000,IF(N4>=1000000000000,CONCATENATE(ABS(G4)/1000000000000,""),""),""), IF(N4<1000000000000,IF(N4>=1000000000,CONCATENATE(ABS(G4)/1000000000,""),""),""), IF(N4<1000000000,IF(N4>=1000000,CONCATENATE(ABS(G4)/1000000,""),""),""), IF(N4<1000000,IF(N4>=1000,CONCATENATE(ABS(G4)/1000,""),""),""), IF(N4<1000,IF(N4>=1,CONCATENATE(ABS(G4)/1,""),""),""), IF(N4<1,IF(N4>=0.001,CONCATENATE(ABS(G4)/0.001,""),""),""), IF(N4<0.001,IF(N4>=0.000001,CONCATENATE(ABS(G4)/0.000001,""),""),""), IF(N4<0.000001,IF(N4>=0.000000001,CONCATENATE(ABS(G4)/0.000000001,""),""),""), IF(N4<0.000000001,IF(N4>=0.000000000001,CONCATENATE(ABS(G4)/0.000000000001,""),""),"")) -> 13007 | G16: =CONCATENATE( IF(N4<1000000000000000,IF(N4>=1000000000000,CONCATENATE(ABS(N4)/1000000000000,""),""),""), IF(N4<1000000000000,IF(N4>=1000000000,CONCATENATE(ABS(N4)/1000000000,""),""),""), IF(N4<1000000000,IF(N4>=1000000,CONCATENATE(ABS(N4)/1000000,""),""),""), IF(N4<1000000,IF(N4>=1000,CONCATENATE(ABS(N4)/1000,""),""),""), IF(N4<1000,IF(N4>=1,CONCATENATE(ABS(N4)/1,""),""),""), IF(N4<1,IF(N4>=0.001,CONCATENATE(ABS(N4)/0.001,""),""),""), IF(N4<0.001,IF(N4>=0.000001,CONCATENATE(ABS(N4)/0.000001,""),""),""), IF(N4<0.000001,IF(N4>=0.000000001,CONCATENATE(ABS(N4)/0.000000001,""),""),""), IF(N4<0.000000001,IF(N4>=0.000000000001,CONCATENATE(ABS(N4)/0.000000000001,""),""),""), ) -> 14 | H16: =CONCATENATE( IF(N4<1000000000000000,IF(N4>=1000000000000,"T",""),""), IF(N4<1000000000000,IF(N4>=1000000000,"G",""),""), IF(N4<1000000000,IF(N4>=1000000,"M",""),""), IF(N4<1000000,IF(N4>=1000,"k",""),""), IF(N4<1000,IF(N4>=1,"-",""),""), IF(N4<1,IF(N4>=0.001,"m",""),""), IF(N4<0.001,IF(N4>=0.000001,"u",""),""), IF(N4<0.000001,IF(N4>=0.000000001,"n",""),""), IF(N4<0.000000001,IF(N4>=0.000000000001,"p",""),""), ) -> m | I16: =IF(ISNA(G16),"",TRIM(CONCATENATE(F4,"+/-",M4,"={1:NUMERICAL:=",F16,":",F16/10,"}+/-{1:NUMERICAL:=",G16,":",G16/10,"}{1:SHORTANSWER:=",H16,"}<BR>"))) -> 13.0072730251639+/-0.0135834435276917={1:NUMERICAL:=13007:1300.7}+/-{1:NUMERICAL:=14:1.4}{1:SHORTANSWER:=m}<BR>
A17: Res : | B17: $ | C17: 10 | E17: ResD_EPhy | F17: =CONCATENATE( IF(N5<1000000000000000,IF(N5>=1000000000000,CONCATENATE(ABS(G5)/1000000000000,""),""),""), IF(N5<1000000000000,IF(N5>=1000000000,CONCATENATE(ABS(G5)/1000000000,""),""),""), IF(N5<1000000000,IF(N5>=1000000,CONCATENATE(ABS(G5)/1000000,""),""),""), IF(N5<1000000,IF(N5>=1000,CONCATENATE(ABS(G5)/1000,""),""),""), IF(N5<1000,IF(N5>=1,CONCATENATE(ABS(G5)/1,""),""),""), IF(N5<1,IF(N5>=0.001,CONCATENATE(ABS(G5)/0.001,""),""),""), IF(N5<0.001,IF(N5>=0.000001,CONCATENATE(ABS(G5)/0.000001,""),""),""), IF(N5<0.000001,IF(N5>=0.000000001,CONCATENATE(ABS(G5)/0.000000001,""),""),""), IF(N5<0.000000001,IF(N5>=0.000000000001,CONCATENATE(ABS(G5)/0.000000000001,""),""),"")) -> 217 | G17: =CONCATENATE( IF(N5<1000000000000000,IF(N5>=1000000000000,CONCATENATE(ABS(N5)/1000000000000,""),""),""), IF(N5<1000000000000,IF(N5>=1000000000,CONCATENATE(ABS(N5)/1000000000,""),""),""), IF(N5<1000000000,IF(N5>=1000000,CONCATENATE(ABS(N5)/1000000,""),""),""), IF(N5<1000000,IF(N5>=1000,CONCATENATE(ABS(N5)/1000,""),""),""), IF(N5<1000,IF(N5>=1,CONCATENATE(ABS(N5)/1,""),""),""), IF(N5<1,IF(N5>=0.001,CONCATENATE(ABS(N5)/0.001,""),""),""), IF(N5<0.001,IF(N5>=0.000001,CONCATENATE(ABS(N5)/0.000001,""),""),""), IF(N5<0.000001,IF(N5>=0.000000001,CONCATENATE(ABS(N5)/0.000000001,""),""),""), IF(N5<0.000000001,IF(N5>=0.000000000001,CONCATENATE(ABS(N5)/0.000000000001,""),""),""), ) -> 35 | H17: =CONCATENATE( IF(N5<1000000000000000,IF(N5>=1000000000000,"T",""),""), IF(N5<1000000000000,IF(N5>=1000000000,"G",""),""), IF(N5<1000000000,IF(N5>=1000000,"M",""),""), IF(N5<1000000,IF(N5>=1000,"k",""),""), IF(N5<1000,IF(N5>=1,"-",""),""), IF(N5<1,IF(N5>=0.001,"m",""),""), IF(N5<0.001,IF(N5>=0.000001,"u",""),""), IF(N5<0.000001,IF(N5>=0.000000001,"n",""),""), IF(N5<0.000000001,IF(N5>=0.000000000001,"p",""),""), ) -> k | I17: =IF(ISNA(G17),"",TRIM(CONCATENATE(F5,"+/-",M5,"={1:NUMERICAL:=",F17,":",F17/10,"}+/-{1:NUMERICAL:=",G17,":",G17/10,"}{1:SHORTANSWER:=",H17,"}<BR>"))) -> 217247.319617359+/-34592.9809308333={1:NUMERICAL:=217:21.7}+/-{1:NUMERICAL:=35:3.5}{1:SHORTANSWER:=k}<BR>
E18: ResE_EPhy | F18: =CONCATENATE( IF(N6<1000000000000000,IF(N6>=1000000000000,CONCATENATE(ABS(G6)/1000000000000,""),""),""), IF(N6<1000000000000,IF(N6>=1000000000,CONCATENATE(ABS(G6)/1000000000,""),""),""), IF(N6<1000000000,IF(N6>=1000000,CONCATENATE(ABS(G6)/1000000,""),""),""), IF(N6<1000000,IF(N6>=1000,CONCATENATE(ABS(G6)/1000,""),""),""), IF(N6<1000,IF(N6>=1,CONCATENATE(ABS(G6)/1,""),""),""), IF(N6<1,IF(N6>=0.001,CONCATENATE(ABS(G6)/0.001,""),""),""), IF(N6<0.001,IF(N6>=0.000001,CONCATENATE(ABS(G6)/0.000001,""),""),""), IF(N6<0.000001,IF(N6>=0.000000001,CONCATENATE(ABS(G6)/0.000000001,""),""),""), IF(N6<0.000000001,IF(N6>=0.000000000001,CONCATENATE(ABS(G6)/0.000000000001,""),""),"")) -> 127.7 | G18: =CONCATENATE( IF(N6<1000000000000000,IF(N6>=1000000000000,CONCATENATE(ABS(N6)/1000000000000,""),""),""), IF(N6<1000000000000,IF(N6>=1000000000,CONCATENATE(ABS(N6)/1000000000,""),""),""), IF(N6<1000000000,IF(N6>=1000000,CONCATENATE(ABS(N6)/1000000,""),""),""), IF(N6<1000000,IF(N6>=1000,CONCATENATE(ABS(N6)/1000,""),""),""), IF(N6<1000,IF(N6>=1,CONCATENATE(ABS(N6)/1,""),""),""), IF(N6<1,IF(N6>=0.001,CONCATENATE(ABS(N6)/0.001,""),""),""), IF(N6<0.001,IF(N6>=0.000001,CONCATENATE(ABS(N6)/0.000001,""),""),""), IF(N6<0.000001,IF(N6>=0.000000001,CONCATENATE(ABS(N6)/0.000000001,""),""),""), IF(N6<0.000000001,IF(N6>=0.000000000001,CONCATENATE(ABS(N6)/0.000000000001,""),""),""), ) -> 5.6 | H18: =CONCATENATE( IF(N6<1000000000000000,IF(N6>=1000000000000,"T",""),""), IF(N6<1000000000000,IF(N6>=1000000000,"G",""),""), IF(N6<1000000000,IF(N6>=1000000,"M",""),""), IF(N6<1000000,IF(N6>=1000,"k",""),""), IF(N6<1000,IF(N6>=1,"-",""),""), IF(N6<1,IF(N6>=0.001,"m",""),""), IF(N6<0.001,IF(N6>=0.000001,"u",""),""), IF(N6<0.000001,IF(N6>=0.000000001,"n",""),""), IF(N6<0.000000001,IF(N6>=0.000000000001,"p",""),""), ) -> G | I18: =IF(ISNA(G18),"",TRIM(CONCATENATE(F6,"+/-",M6,"={1:NUMERICAL:=",F18,":",F18/10,"}+/-{1:NUMERICAL:=",G18,":",G18/10,"}{1:SHORTANSWER:=",H18,"}<BR>"))) -> 127707693256.582+/-5531663612.31812={1:NUMERICAL:=127.7:12.77}+/-{1:NUMERICAL:=5.6:0.56}{1:SHORTANSWER:=G}<BR>
C19: <p>Exprimer correctement ces résultats numériques :</p><ul><li>#1 +/- #6 = $1 +/- $6 </li><li>#2 +/- #7 = $2 +/- $7</li><li>#3 +/- #8 = $3 +/- $8 </li><li>#4 +/- #9 = $4 +/- $9 </li><li>#5 +/- #10 = $5 +/- $10 </li></ul> | G19: =SUM(F14:G18) -> 0
I20: =CONCATENATE(TRIM(ResE_EPhy),TRIM(ResD_EPhy),TRIM(ResC_EPhy),TRIM(ResB_EPhy),TRIM(ResA_EPhy)) -> 127707693256.582+/-5531663612.31812={1:NUMERICAL:=127.7:12.77}+/-{1:NUMERICAL:=5.6:0.56}{1:SHORTANSWER:=G}<BR>217247.319617359+/-34592.9809308333={1:NUMERICAL:=217:21.7}+/-{1:NUMERICAL:=35:3.5}{1:SHORTANSWER:=k}<BR>13.0072730251639+/-0.0135834435276917={1:NUMERICAL:=13007:1300.7}+/-{1:NUMERICAL:=14:1.4}{1:SHORTANSWER:=m}<BR>0.000575206478062141+/-2.54021668787887E-05={1:NUMERICAL:=575:57.5}+/-{1:NUMERICAL:=26:2.6}{1:SHORTANSWER:=u}<BR>5.08726632185026E-07+/-2.71198760233501E-09={1:NUMERICAL:=508.7:50.87}+/-{1:NUMERICAL:=2.8:0.28}{1:SHORTANSWER:=n}<BR>
I22: 12.4/10.1 + 7.5/3.7
H24: val | I24: D | J24: %
G25: A | H25: 12.4 | I25: =1/POWER(10,LEN(H25)-LEN(INT(H25))-(H25<>INT(H25))*1) -> 0.1 | J25: =I25/H25 -> 0.008064516129 | O25: Favorable | P25: : | Q25: 5 | R25: voix
G26: B | H26: 10.1 | I26: =1/POWER(10,LEN(H26)-LEN(INT(H26))-(H26<>INT(H26))*1) -> 0.1 | J26: =I26/H26 -> 0.009900990099 | O26: Défavorable | P26: : | Q26: 0 | R26: voix
G27: C | H27: 7.5 | I27: =1/POWER(10,LEN(H27)-LEN(INT(H27))-(H27<>INT(H27))*1) -> 0.1 | J27: =I27/H27 -> 0.01333333333 | O27: Abstention | P27: : | Q27: 1 | R27: voix
G28: D | H28: 3.7 | I28: =1/POWER(10,LEN(H28)-LEN(INT(H28))-(H28<>INT(H28))*1) -> 0.1 | J28: =I28/H28 -> 0.02702702703
G29: A/B | H29: =H25/H26 -> 1.227722772 | I29: =H29*J29 -> 0.2205666111 | J29: =J25/I25+J26/I26 -> 0.1796550623
G30: C/D | H30: =H27/H28 -> 2.027027027 | I30: =H30*J30 -> 0.8181154127 | J30: =J27/I27+J28/I28 -> 0.4036036036
G31: Moy | H31: =H25/H26+H27/H28 -> 3.254749799
G32: Ratio

Sheet Capa
A1: catégorie_capa | B1: ChargeCapa | C1: =CONCATENATE(" <!-- question XLQ ", titre_capa, "-->") -> <!-- question XLQ ChargeCapa--> | F1: Valeur Mini_capa | G1: Valeur Maxi_capa | H1: Sig. Digit_capa | I1: Val Choix_capa
A2: titre_capa | B2: ChargeCapa | C2: =CONCATENATE(" <question type=",CHAR(34),"category",CHAR(34),"><category><text>", categorie_capa,"</text></category></question>)") -> <question type="category"><category><text>ChargeCapa</text></category></question>) | E2: V1.Charge_capa | F2: 0.5 | G2: 7.5 | H2: =RANDBETWEEN(-2,0) -> -1 | I2: =RANDBETWEEN(ValMini_capa*10^-SigDig_capa, ValMaxi_capa*10^-SigDig_capa)/10^-SigDig_capa -> 7 | J2: pF | K2: =10^(H2) -> 0.1
A3: Tag_capa | B3: Condo | C3: <question type="cloze"> | E3: V2.Tension_capa | F3: 1 | G3: 150 | H3: =RANDBETWEEN(-1,0) -> 0 | I3: =RANDBETWEEN(ValMini_capa*10^-SigDig_capa, ValMaxi_capa*10^-SigDig_capa)/10^-SigDig_capa -> 132 | J3: kV | K3: =10^(H3) -> 1
A4: idnumber_capa | B4: =TEXT(NOW(),"aammjj-hhmmss.00") -> 210710-210812.04 | C4: =CONCATENATE(" <name><text>", titre_capa, "</text></name>") -> <name><text>ChargeCapa</text></name>
A5: points_capa | B5: 1 | C5: <questiontext format="html"> | F5: Cible_capa | G5: Toler_capa | H5: PointsQuestion_capa
A6: tolérance_capa | B6: 0.05 | C6: =CONCATENATE(" <text><![CDATA[<p>", question_capa, "</p>]]></text>") -> <text><![CDATA[<p> <p>La charge d'un condensateur de capacit&eacute; C sous la tension U s'exprime Q = C.U. Si C = 7 pF et U = 132 kV, trouver Q = {1:NUMERICAL:=9.24E+02:4.62E+01} +/- {2:NUMERICAL:=2.02E+01:1.01E+00} C.</p><p></p>]]></text> | E6: R1.Q_capa | F6: =V1.Charge_capa*V2.Tension_capa -> 924 | G6: =tolerance_capa*ValMini_capa -> 46.2 | H6: 1 | I6: =CONCATENATE("{",PointsQuestion_capa,":NUMERICAL:=",TEXT(Cible_capa,"0.00E+00"),":",TEXT(Tolere_capa,"0.00E+00"),"}") -> {1:NUMERICAL:=9.24E+02:4.62E+01}
A7: penalité_capa | B7: 0.1 | C7: </questiontext> | E7: R2.DQ_capa | F7: =F6*(K2/V1.Charge_capa+K3/V2.Tension_capa) -> 20.2 | G7: =tolerance_capa*ValMini_capa -> 1.01 | H7: 2 | I7: =CONCATENATE("{",PointsQuestion_capa,":NUMERICAL:=",TEXT(Cible_capa,"0.00E+00"),":",TEXT(Tolere_capa,"0.00E+00"),"}") -> {2:NUMERICAL:=2.02E+01:1.01E+00}
A8: feedback_capa | B8: Capacite | C8: =CONCATENATE(" <defaultgrade>",points_capa,"</defaultgrade><generalfeedback><text>",feedback_capa,"</text></generalfeedback><penalty>",penalty_capa,"</penalty><hidden>0</hidden>)") -> <defaultgrade>1</defaultgrade><generalfeedback><text>Capacite</text></generalfeedback><penalty>0.1</penalty><hidden>0</hidden>) | F8: =F7/F6 -> 0.02186147186 | H8: =SUM(F6:H7) -> 994.41
A9: Cellule vides_capa | B9: =COUNTBLANK(B1:B8) -> 0 | C9: =CONCATENATE(" <idnumber>",idnumber_capa,"</idnumber><tags><tag><text>",Tag_capa,"</text></tag></tags>") -> <idnumber>210710-210812.04</idnumber><tags><tag><text>Condo</text></tag></tags>
A10: question format HTML_capa | B10: =CONCATENATE(" ",B19,B20) -> <p>La charge d'un condensateur de capacit&eacute; C sous la tension U s'exprime Q = C.U. Si C = 7 pF et U = 132 kV, trouver Q = {1:NUMERICAL:=9.24E+02:4.62E+01} +/- {2:NUMERICAL:=2.02E+01:1.01E+00} C.</p><p> | C10: </question>
A11: Repere Var Rep | B11: _capa
A12: HTML File | B12: =CONCATENATE(categorie_capa,"_HTML.txt") -> ChargeCapa_HTML.txt
A13: Valide ? | B13: =ISNUMBER(H8) -> TRUE
A14: https://html-online.com/editor/
C15: 4
A16: Var : | B16: # | C16: 2
A17: Res : | B17: $ | C17: 2
B19: =CONCATENATE("<p>La charge d'un condensateur de capacit&eacute; C sous la tension U s'exprime Q = C.U. Si C = ",V1.Charge_capa," pF et U = ",V2.Tension_capa," kV, trouver Q = ",R1.Q_capa," +/- ",R2.DQ_capa," C.</p><p>") -> <p>La charge d'un condensateur de capacit&eacute; C sous la tension U s'exprime Q = C.U. Si C = 7 pF et U = 132 kV, trouver Q = {1:NUMERICAL:=9.24E+02:4.62E+01} +/- {2:NUMERICAL:=2.02E+01:1.01E+00} C.</p><p> | C19: <p>La charge d'un condensateur de capacit&eacute; C sous la tension U s'exprime Q = C.U. Si C = #1# pF et U = #2# kV, trouver Q = $1$ +/- $2$.</p>
B20: =CONCATENATE("") -> 
C41: <p>La charge d'un condensateur de capacit&eacute; C sous la tension U s'exprime Q = C.U. Si C = ",V1.Charge_capa," pF et U = ",V2.Tension_capa," kV, trouver Q = ",R1.Q_capa," +/- ",R2.DQ_capa,".</p><p>

Sheet AbsRel
A1: catégorie_AbRe | B1: Rel_abs | C1: =CONCATENATE(" <!-- question XLQ ", titre_AbRe, "-->") -> <!-- question XLQ Rel_abs--> | F1: Valeur Mini_AbRe | G1: Valeur Maxi_AbRe | H1: Sig. Digit_AbRe | I1: Val Choix_AbRe
A2: titre_AbRe | B2: Rel_abs | C2: =CONCATENATE(" <question type=",CHAR(34),"category",CHAR(34),"><category><text>", categorie_AbRe,"</text></category></question>)") -> <question type="category"><category><text>Rel_abs</text></category></question>) | E2: V1._AbRe | F2: 1 | G2: 63 | I2: =RANDBETWEEN(ValMini_AbRe*10^-SigDig_AbRe, ValMaxi_AbRe*10^-SigDig_AbRe)/10^-SigDig_AbRe -> 13 | J2: =I4 -> 6 | K2: =J2/V1._AbRe*100 -> 46.15384615
A3: Tag_AbRe | B3: Incertitude | C3: <question type="cloze"> | E3: V2._AbRe | F3: 1 | G3: 128 | I3: =RANDBETWEEN(ValMini_AbRe*10^-SigDig_AbRe, ValMaxi_AbRe*10^-SigDig_AbRe)/10^-SigDig_AbRe -> 5 | J3: =IncertAbsV1 -> 6 | K3: =J3/V1._AbRe*100 -> 46.15384615
A4: idnumber_AbRe | B4: =TEXT(NOW(),"aammjj-hhmmss.00") -> 210710-210812.04 | C4: =CONCATENATE(" <name><text>", titre_AbRe, "</text></name>") -> <name><text>Rel_abs</text></name> | E4: V3._AbRe | F4: 1 | G4: 6 | H4: 0 | I4: =RANDBETWEEN(ValMini_AbRe*10^-SigDig_AbRe, ValMaxi_AbRe*10^-SigDig_AbRe)/10^-SigDig_AbRe -> 6 | K4: =(K3+K2)*V2._AbRe*V1._AbRe/100 -> 60 | L4: =G3*G2 -> 8064 | M4: =K4/L4 -> 0.00744047619
A5: points_AbRe | B5: 1 | C5: <questiontext format="html"> | F5: Cible_AbRe | G5: Tolér_AbRe | H5: Sig. Digit_AbRe
A6: tolérance_AbRe | B6: 0.05 | C6: =CONCATENATE(" <text><![CDATA[<p>", question_AbRe, "</p>]]></text>") -> <text><![CDATA[<p> <p>Calculer les <strong>incertitudes</strong> relative et absolue sur le produit p = A.B, le quotient q = A/B et la somme A+B, dont chaque terme est&nbsp;connu &agrave; une unit&eacute; pr&egrave;s. Application num&eacute;rique, A = 13, B = 5.&nbsp;</p><table><tbody><tr><td>&nbsp;</td><td>Somme</td><td>Ratio</td><td>Produit</td></tr><tr><td>Absolue</td><td>{1:NUMERICAL:=1.20E+01:6.00E-01}</td><td>{1:NUMERICAL:=4.32E+00:2.16E-01}</td><td>{1:NUMERICAL:=1.08E+02:5.40E+00}</td></tr><tr><td>Relative</td><td>{1:NUMERICAL:=6.67E-01:3.33E-02}</td><td>{1:NUMERICAL:=1.66E+00:8.31E-02}</td><td>{1:NUMERICAL:=1.66E+00:8.31E-02}</td></tr></tbody></table><p>&nbsp;</p></p>]]></text> | E6: R1.AbsSomme_AbRe | F6: =IncertAbsV1+IncertAbsV2 -> 12 | G6: =tolerance_AbRe*ValMini_AbRe -> 0.6 | H6: 1 | I6: =CONCATENATE("{",SigDig_AbRe,":NUMERICAL:=",TEXT(Cible_AbRe,"0.00E+00"),":",TEXT(Tolere_AbRe,"0.00E+00"),"}") -> {1:NUMERICAL:=1.20E+01:6.00E-01}
A7: penalité_AbRe | B7: 0.1 | C7: </questiontext> | E7: R2.AbsRatio_AbRe | F7: =(V1._AbRe/V2._AbRe)*(IncertAbsV1/V1._AbRe+IncertAbsV2/V2._AbRe) -> 4.32 | G7: 0.216 | H7: 1 | I7: {1:NUMERICAL:=4.32E+00:2.16E-01}
A8: feedback_AbRe | B8: Propagation | C8: =CONCATENATE(" <defaultgrade>",points_AbRe,"</defaultgrade><generalfeedback><text>",feedback_AbRe,"</text></generalfeedback><penalty>",penalty_AbRe,"</penalty><hidden>0</hidden>)") -> <defaultgrade>1</defaultgrade><generalfeedback><text>Propagation</text></generalfeedback><penalty>0.1</penalty><hidden>0</hidden>) | E8: R3.AbsProd_AbRe | F8: =V2._AbRe*V1._AbRe*(IncertAbsV1/V1._AbRe+IncertAbsV2/V2._AbRe) -> 108 | G8: 5.4 | H8: 1 | I8: {1:NUMERICAL:=1.08E+02:5.40E+00}
A9: Cellule vides_Trac | B9: =COUNTBLANK(B1:B8) -> 0 | C9: =CONCATENATE(" <idnumber>",idnumber_AbRe,"</idnumber><tags><tag><text>",Tag_AbRe,"</text></tag></tags>") -> <idnumber>210710-210812.04</idnumber><tags><tag><text>Incertitude</text></tag></tags> | E9: R4.RelSomme_AbRe | F9: =(IncertAbsV1+IncertAbsV2)/(V2._AbRe+V1._AbRe) -> 0.6666666667 | G9: 0.03333333333 | H9: 1 | I9: {1:NUMERICAL:=6.67E-01:3.33E-02}
A10: question format HTML_AbRe | B10: =CONCATENATE(" ",C19,C20,C21,C22,C23,C24,C25,C26,C27,C28) -> <p>Calculer les <strong>incertitudes</strong> relative et absolue sur le produit p = A.B, le quotient q = A/B et la somme A+B, dont chaque terme est&nbsp;connu &agrave; une unit&eacute; pr&egrave;s. Application num&eacute;rique, A = 13, B = 5.&nbsp;</p><table><tbody><tr><td>&nbsp;</td><td>Somme</td><td>Ratio</td><td>Produit</td></tr><tr><td>Absolue</td><td>{1:NUMERICAL:=1.20E+01:6.00E-01}</td><td>{1:NUMERICAL:=4.32E+00:2.16E-01}</td><td>{1:NUMERICAL:=1.08E+02:5.40E+00}</td></tr><tr><td>Relative</td><td>{1:NUMERICAL:=6.67E-01:3.33E-02}</td><td>{1:NUMERICAL:=1.66E+00:8.31E-02}</td><td>{1:NUMERICAL:=1.66E+00:8.31E-02}</td></tr></tbody></table><p>&nbsp;</p> | C10: </question> | E10: R5.RelRatio_AbRe | F10: =IncertAbsV1/V1._AbRe+IncertAbsV2/V2._AbRe -> 1.661538462 | G10: 0.08307692308 | H10: 1 | I10: {1:NUMERICAL:=1.66E+00:8.31E-02}
A11: Repere Var Rep | B11: _AbRe | E11: R6.RelProd_AbRe | F11: =IncertAbsV1/V1._AbRe+IncertAbsV2/V2._AbRe -> 1.661538462 | G11: 0.08307692308 | H11: 1 | I11: {1:NUMERICAL:=1.66E+00:8.31E-02}
A12: HTML File | B12: Delta.HTML.txt
A13: Valide ? | B13: =ISNUMBER(H13) -> TRUE | H13: =SUM(F6:H11) -> 140.7252308
A14: https://html-online.com/editor/
C15: 4
A16: Var : | B16: # | C16: 2
A17: Res : | B17: $ | C17: 6 | H17: 12.4/10.1 + 7.5/3.7
C19: =CONCATENATE("<p>Calculer les <strong>incertitudes</strong> relative et absolue s") -> <p>Calculer les <strong>incertitudes</strong> relative et absolue s
C20: =CONCATENATE("ur le produit p = A.B, le quotient q = A/B et la s") -> ur le produit p = A.B, le quotient q = A/B et la s
C21: =CONCATENATE("omme A+B, dont chaque terme est&nbsp;connu &agrave") -> omme A+B, dont chaque terme est&nbsp;connu &agrave
C22: =CONCATENATE("; une unit&eacute; pr&egrave;s. Application num&ea") -> ; une unit&eacute; pr&egrave;s. Application num&ea
C23: =CONCATENATE("cute;rique, A = ",V1._AbRe,", B = ",V2._AbRe,".&nbsp;</p><table><tbody") -> cute;rique, A = 13, B = 5.&nbsp;</p><table><tbody
C24: =CONCATENATE("><tr><td>&nbsp;</td><td>Somme</td><td>Ratio</td><t") -> ><tr><td>&nbsp;</td><td>Somme</td><td>Ratio</td><t
C25: =CONCATENATE("d>Produit</td></tr><tr><td>Absolue</td><td>",R1.AbsSomme_AbRe,"</td>") -> d>Produit</td></tr><tr><td>Absolue</td><td>{1:NUMERICAL:=1.20E+01:6.00E-01}</td>
C26: =CONCATENATE("<td>",R2.AbsRatio_AbRe,"</td><td>",R3.AbsProd_AbRe,"</td></tr><tr><td>Relative</td><t") -> <td>{1:NUMERICAL:=4.32E+00:2.16E-01}</td><td>{1:NUMERICAL:=1.08E+02:5.40E+00}</td></tr><tr><td>Relative</td><t
C27: =CONCATENATE("d>",R4.RelSomme_AbRe,"</td><td>",R5.RelRatio_AbRe,"</td><td>",R5.RelRatio_AbRe,"</td></tr></tbody></tabl") -> d>{1:NUMERICAL:=6.67E-01:3.33E-02}</td><td>{1:NUMERICAL:=1.66E+00:8.31E-02}</td><td>{1:NUMERICAL:=1.66E+00:8.31E-02}</td></tr></tbody></tabl
C28: =CONCATENATE("e><p>&nbsp;</p>") -> e><p>&nbsp;</p>
B32: =question_AbRe -> <p>Calculer les <strong>incertitudes</strong> relative et absolue sur le produit p = A.B, le quotient q = A/B et la somme A+B, dont chaque terme est&nbsp;connu &agrave; une unit&eacute; pr&egrave;s. Application num&eacute;rique, A = 13, B = 5.&nbsp;</p><table><tbody><tr><td>&nbsp;</td><td>Somme</td><td>Ratio</td><td>Produit</td></tr><tr><td>Absolue</td><td>{1:NUMERICAL:=1.20E+01:6.00E-01}</td><td>{1:NUMERICAL:=4.32E+00:2.16E-01}</td><td>{1:NUMERICAL:=1.08E+02:5.40E+00}</td></tr><tr><td>Relative</td><td>{1:NUMERICAL:=6.67E-01:3.33E-02}</td><td>{1:NUMERICAL:=1.66E+00:8.31E-02}</td><td>{1:NUMERICAL:=1.66E+00:8.31E-02}</td></tr></tbody></table><p>&nbsp;</p>

Sheet FourCyl
A1: catégorie_FourC | B1: Four_parabolique | C1: =CONCATENATE(" <!-- question XLQ ", titre_FourC, "-->") -> <!-- question XLQ Four_parabolique--> | F1: Valeur Mini_FourC | G1: Valeur Maxi_FourC | H1: Sig. Digit_FourC | I1: Val Choix_FourC | K1: Milieu = | L1: =-V2._FourC/(2*V1._FourC) -> 11.79012346 | M1: =-b/2a | P1: =CONCATENATE("<p>Dans un four cylindrique sym&eacute;trique et h") -> <p>Dans un four cylindrique sym&eacute;trique et h
A2: titre_FourC | B2: Four_parabolique | C2: =CONCATENATE(" <question type=",CHAR(34),"category",CHAR(34),"><category><text>", categorie_FourC,"</text></category></question>)") -> <question type="category"><category><text>Four_parabolique</text></category></question>) | E2: V1._FourC | F2: -0.9 | G2: -0.5 | H2: -2 | I2: =RANDBETWEEN(ValMini_FourC*10^-SigDig_FourC, ValMaxi_FourC*10^-SigDig_FourC)/10^-SigDig_FourC -> -0.81 | J2: a | K2: Temp Milieu | L2: =V1._FourC*L1^2+V2._FourC*L1+V3._FourC -> 583.595679 | P2: =CONCATENATE("orizontal, la temp&eacute;rature&nbsp;&Theta; est ") -> orizontal, la temp&eacute;rature&nbsp;&Theta; est
A3: Tag_FourC | B3: Four_parabolique | C3: <question type="cloze"> | E3: V2._FourC | F3: 12 | G3: 24 | H3: -1 | I3: =RANDBETWEEN(ValMini_FourC*10^-SigDig_FourC, ValMaxi_FourC*10^-SigDig_FourC)/10^-SigDig_FourC -> 19.1 | J3: b | K3: T faux | L3: =V1._FourC*(L1+V4._FourC)^2+V2._FourC*(L1+V4._FourC)+V3._FourC -> 580.355679 | P3: =CONCATENATE("donn&eacute;e en fonction de la position x dans le") -> donn&eacute;e en fonction de la position x dans le | CA3: <p>Dans un four cylindrique sym&eacute;trique et horizontal, la temp&eacute;rature&nbsp;&Theta; est donn&eacute;e en fonction de la position x dans le four par la relation <strong>&Theta; =&nbsp;ax<sup>2</sup> + bx + c</strong>, avec a=#1#, b=#2# , c=#3#, o&ugrave; &Theta; est exprim&eacute;e en &deg;C et x en cm. Une pi&egrave;ce de petites dimensions est introduite au point le plus chaud (donc au centre du four), mais sa position n'est connue qu'&agrave; #4#cm pr&egrave;s.</p><p><p>- Quelle taille du four ? $1$ cm.</p><p><p>- Quelle est la temp&eacute;rature au milieu du four ? $2$&deg;C.</p><p><p>- Quelle est l'incertitude (induite par la g&eacute;om&eacute;trie) sur la mesure de la temp&eacute;rature &nbsp;? $3$&deg;C.</p><p><p>&nbsp;</p><p>
A4: idnumber_FourC | B4: =TEXT(NOW(),"aammjj-hhmmss.00") -> 210710-210812.04 | C4: =CONCATENATE(" <name><text>", titre_FourC, "</text></name>") -> <name><text>Four_parabolique</text></name> | E4: V3._FourC | F4: 400 | G4: 550 | H4: 0 | I4: =RANDBETWEEN(ValMini_FourC*10^-SigDig_FourC, ValMaxi_FourC*10^-SigDig_FourC)/10^-SigDig_FourC -> 471 | J4: c | P4: =CONCATENATE(" four par la relation &Theta; =&nbsp;ax<sup>2</sup") -> four par la relation &Theta; =&nbsp;ax<sup>2</sup
A5: points_FourC | B5: 1 | C5: <questiontext format="html"> | E5: V4._FourC | F5: 2 | G5: 7 | H5: 0 | I5: =RANDBETWEEN(ValMini_FourC*10^-SigDig_FourC, ValMaxi_FourC*10^-SigDig_FourC)/10^-SigDig_FourC -> 2 | J5: Dx | P5: =CONCATENATE(">&nbsp;+&nbsp;bx&nbsp;+&nbsp;c avec a&nbsp;= ",V1._FourC," ,") -> >&nbsp;+&nbsp;bx&nbsp;+&nbsp;c avec a&nbsp;= -0.81 ,
A6: tolérance_FourC | B6: 0.05 | C6: =CONCATENATE(" <text><![CDATA[<p>", question_FourC, "</p>]]></text>") -> <text><![CDATA[<p> <p>Dans un four cylindrique sym&eacute;trique et horizontal, la temp&eacute;rature&nbsp;&Theta; est donn&eacute;e en fonction de la position x dans le four par la relation <strong>&Theta; =&nbsp;ax<sup>2</sup>+ bx + c</strong>, avec a=-0.81, b=19.1 , c=471, o&ugrave; &Theta; est exprim&eacute;e en &deg;C et x en cm. Une pi&egrave;ce de petites dimensions est introduite au point le plus chaud (donc au centre du four), mais sa position n'est connue qu'&agrave; 2cm pr&egrave;s.</p><p><p>- Quelle taille du four ? {2:NUMERICAL:=2.36E+01:1.18E+00} cm.</p><p><p>- Quelle est la temp&eacute;rature au milieu du four ? {1:NUMERICAL:=5.84E+02:2.92E+01}&deg;C.</p><p><p>- Quelle est l'incertitude (induite par la g&eacute;om&eacute;trie) sur la mesure de la temp&eacute;rature &nbsp;? {2:NUMERICAL:=3.24E+00:1.62E-01}&deg;C.</p><p><p>&nbsp;</p><p></p>]]></text> | P6: =CONCATENATE(" b&nbsp;= ",V2._FourC," , c&nbsp;= ",V3._FourC,", o&ugrave;&nbsp;&Thet") -> b&nbsp;= 19.1 , c&nbsp;= 471, o&ugrave;&nbsp;&Thet
A7: penalité_FourC | B7: 0.1 | C7: </questiontext> | F7: Cible_FourC | G7: Tolér_FourC | H7: Points_FourC | I7: Question | P7: =CONCATENATE("a; est exprim&eacute;e en &deg;C et x en cm. Une p") -> a; est exprim&eacute;e en &deg;C et x en cm. Une p
A8: feedback_FourC | B8: cest_une_parabole | C8: =CONCATENATE(" <defaultgrade>",points_FourC,"</defaultgrade><generalfeedback><text>",feedback_FourC,"</text></generalfeedback><penalty>",penalty_FourC,"</penalty><hidden>0</hidden>)") -> <defaultgrade>1</defaultgrade><generalfeedback><text>cest_une_parabole</text></generalfeedback><penalty>0.1</penalty><hidden>0</hidden>) | E8: R1._FourC | F8: =2*L1 -> 23.58024691 | G8: =tolerance_FourC*ValMini_FourC -> 1.179012346 | H8: 2 | I8: =CONCATENATE("{",PointsQuestion_FourC,":NUMERICAL:=",TEXT(Cible_FourC,"0.00E+00"),":",TEXT(Tolere_FourC,"0.00E+00"),"}") -> {2:NUMERICAL:=2.36E+01:1.18E+00} | L8: cm | M8: taille four | P8: =CONCATENATE("i&egrave;ce de petites dimensions est introduite au milieu (au sommet de la parabole) j") -> i&egrave;ce de petites dimensions est introduite au milieu (au sommet de la parabole) j
A9: Cellule vides_FourC | B9: =COUNTBLANK(B1:B8) -> 0 | C9: =CONCATENATE(" <idnumber>",idnumber_FourC,"</idnumber><tags><tag><text>",Tag_FourC,"</text></tag></tags>") -> <idnumber>210710-210812.04</idnumber><tags><tag><text>Four_parabolique</text></tag></tags> | E9: R2._FourC | F9: =L2 -> 583.595679 | G9: =tolerance_FourC*ValMini_FourC -> 29.17978395 | H9: 1 | I9: =CONCATENATE("{",PointsQuestion_FourC,":NUMERICAL:=",TEXT(Cible_FourC,"0.00E+00"),":",TEXT(Tolere_FourC,"0.00E+00"),"}") -> {1:NUMERICAL:=5.84E+02:2.92E+01} | L9: °C | M9: Temp milieu | P9: =CONCATENATE("usqu'au centre du four, mais sa position n'est con") -> usqu'au centre du four, mais sa position n'est con
A10: question format HTML_FourC | B10: =CONCATENATE(" ",B19,B20,B21,B22,B23,B24,B25,B26) -> <p>Dans un four cylindrique sym&eacute;trique et horizontal, la temp&eacute;rature&nbsp;&Theta; est donn&eacute;e en fonction de la position x dans le four par la relation <strong>&Theta; =&nbsp;ax<sup>2</sup>+ bx + c</strong>, avec a=-0.81, b=19.1 , c=471, o&ugrave; &Theta; est exprim&eacute;e en &deg;C et x en cm. Une pi&egrave;ce de petites dimensions est introduite au point le plus chaud (donc au centre du four), mais sa position n'est connue qu'&agrave; 2cm pr&egrave;s.</p><p><p>- Quelle taille du four ? {2:NUMERICAL:=2.36E+01:1.18E+00} cm.</p><p><p>- Quelle est la temp&eacute;rature au milieu du four ? {1:NUMERICAL:=5.84E+02:2.92E+01}&deg;C.</p><p><p>- Quelle est l'incertitude (induite par la g&eacute;om&eacute;trie) sur la mesure de la temp&eacute;rature &nbsp;? {2:NUMERICAL:=3.24E+00:1.62E-01}&deg;C.</p><p><p>&nbsp;</p><p> | C10: </question> | E10: R3._FourC | F10: =F9-L3 -> 3.24 | G10: =tolerance_FourC*ValMini_FourC -> 0.162 | H10: 2 | I10: =CONCATENATE("{",PointsQuestion_FourC,":NUMERICAL:=",TEXT(Cible_FourC,"0.00E+00"),":",TEXT(Tolere_FourC,"0.00E+00"),"}") -> {2:NUMERICAL:=3.24E+00:1.62E-01} | L10: cm | M10: Delta Temp | P10: =CONCATENATE("nue qu'&agrave; ",V4._FourC," cm pr&egrave;s.</p><p>Quelle e") -> nue qu'&agrave; 2 cm pr&egrave;s.</p><p>Quelle e
A11: Repere Var Rep | B11: _FourC | H11: =SUM(F8:H10) -> 645.9367222 | P11: =CONCATENATE("st la temp&eacute;rature au milieu du four ? ",R2._FourC,"</") -> st la temp&eacute;rature au milieu du four ? {1:NUMERICAL:=5.84E+02:2.92E+01}</
A12: HTML File | B12: FourHTML.txt | P12: =CONCATENATE("p><p>Quelle taille du four ? ",R1._FourC,"</p><p>Quel est l'") -> p><p>Quelle taille du four ? {2:NUMERICAL:=2.36E+01:1.18E+00}</p><p>Quel est l'
A13: Valide ? | B13: =ISNUMBER(H11) -> TRUE | P13: =CONCATENATE("incertitude sur la mesure de la temp&eacute;rature") -> incertitude sur la mesure de la temp&eacute;rature
A14: https://html-online.com/editor/ | P14: =CONCATENATE("&nbsp;? R&eacute;ponse : ",R3._FourC,"</p>") -> &nbsp;? R&eacute;ponse : {2:NUMERICAL:=3.24E+00:1.62E-01}</p>
C15: 6
A16: Var : | B16: # | C16: 4
A17: Res : | B17: $ | C17: 3
B19: =CONCATENATE("<p>Dans un four cylindrique sym&eacute;trique et horizontal, la temp&eacute;rature&nbsp;&Theta; est donn&eacute;e en fonction de la position x dans le four par la relation <strong>&Theta; =&nbsp;ax<sup>2</sup>") -> <p>Dans un four cylindrique sym&eacute;trique et horizontal, la temp&eacute;rature&nbsp;&Theta; est donn&eacute;e en fonction de la position x dans le four par la relation <strong>&Theta; =&nbsp;ax<sup>2</sup> | C19: <p>Dans un four cylindrique sym&eacute;trique et horizontal, la temp&eacute;rature&nbsp;&Theta; est donn&eacute;e en fonction de la position x dans le four par la relation <strong>&Theta; =&nbsp;ax<sup>2</sup> + bx + c</strong>, avec a=#1#, b=#2# , c=#3#, o&ugrave; &Theta; est exprim&eacute;e en &deg;C et x en cm. Une pi&egrave;ce de petites dimensions est introduite au point le plus chaud (donc au centre du four), mais sa position n'est connue qu'&agrave; #4#cm pr&egrave;s.</p>
B20: =CONCATENATE("+ bx + c</strong>, avec a=",V1._FourC,", b=",V2._FourC," , c=",V3._FourC,", o&ugrave; &Theta; est exprim&eacute;e en &deg;C et x en cm. Une pi&egrave;ce de petites dimensions est introduite au point le plus chaud (donc au centre du") -> + bx + c</strong>, avec a=-0.81, b=19.1 , c=471, o&ugrave; &Theta; est exprim&eacute;e en &deg;C et x en cm. Une pi&egrave;ce de petites dimensions est introduite au point le plus chaud (donc au centre du | C20: <p>- Quelle taille du four ? $1$ cm.</p>
B21: =CONCATENATE(" four), mais sa position n'est connue qu'&agrave; ",V4._FourC,"cm pr&egrave;s.</p><p><p>- Quelle taille du four ? ",R1._FourC," cm.</p><p><p>- Quelle est la temp&eacute;rature au milieu du four ? ",R2._FourC,"&deg;C.</p><p><p>- Quelle") -> four), mais sa position n'est connue qu'&agrave; 2cm pr&egrave;s.</p><p><p>- Quelle taille du four ? {2:NUMERICAL:=2.36E+01:1.18E+00} cm.</p><p><p>- Quelle est la temp&eacute;rature au milieu du four ? {1:NUMERICAL:=5.84E+02:2.92E+01}&deg;C.</p><p><p>- Quelle | C21: <p>- Quelle est la temp&eacute;rature au milieu du four ? $2$&deg;C.</p>
B22: =CONCATENATE(" est l'incertitude (induite par la g&eacute;om&eacute;trie) sur la mesure de la temp&eacute;rature &nbsp;? ",R3._FourC,"&deg;C.</p><p><p>&nbsp;</p><p>") -> est l'incertitude (induite par la g&eacute;om&eacute;trie) sur la mesure de la temp&eacute;rature &nbsp;? {2:NUMERICAL:=3.24E+00:1.62E-01}&deg;C.</p><p><p>&nbsp;</p><p> | C22: <p>- Quelle est l'incertitude (induite par la g&eacute;om&eacute;trie) sur la mesure de la temp&eacute;rature &nbsp;? $3$&deg;C.</p>
B23: =CONCATENATE("") ->  | C23: <p>&nbsp;</p>
B24: =CONCATENATE("") -> 
B25: =CONCATENATE("") ->  | E25: =MAX(G26:G58) -> 11.79012346 | F25: =MAX(I26:I58) -> 583.595679
B26: =CONCATENATE("") ->  | G26: =IF(I26=$F$25,H26,0) -> 0 | H26: 0 | I26: =V1._FourC*H26*H26+V2._FourC*H26+V3._FourC -> 471
G27: 0 | H27: =H26+$L$1/15 -> 0.7860082305 | I27: 485.512332
G28: 0 | H28: 1.572016461 | I28: 499.0238134
G29: 0 | H29: 2.358024691 | I29: 511.5344444
G30: 0 | H30: 3.144032922 | I30: 523.044225
G31: 0 | H31: 3.930041152 | I31: 533.553155
G32: 0 | H32: 4.716049383 | I32: 543.0612346
G33: 0 | H33: 5.502057613 | I33: 551.5684636
G34: 0 | H34: 6.288065844 | I34: 559.0748422
G35: 0 | H35: 7.074074074 | I35: 565.5803704
G36: 0 | H36: 7.860082305 | I36: 571.085048
G37: 0 | H37: 8.646090535 | I37: 575.5888752
G38: 0 | H38: 9.432098765 | I38: 579.0918519
G39: 0 | H39: 10.218107 | I39: 581.5939781
G40: 0 | H40: 11.00411523 | I40: 583.0952538
G41: 11.79012346 | H41: 11.79012346 | I41: 583.595679
G42: 0 | H42: 12.57613169 | I42: 583.0952538
G43: 0 | H43: 13.36213992 | I43: 581.5939781
G44: 0 | H44: 14.14814815 | I44: 579.0918519
G45: 0 | H45: 14.93415638 | I45: 575.5888752
G46: 0 | H46: 15.72016461 | I46: 571.085048
G47: 0 | H47: 16.50617284 | I47: 565.5803704
G48: 0 | H48: 17.29218107 | I48: 559.0748422
G49: 0 | H49: 18.0781893 | I49: 551.5684636
G50: 0 | H50: 18.86419753 | I50: 543.0612346
G51: 0 | H51: 19.65020576 | I51: 533.553155
G52: 0 | H52: 20.43621399 | I52: 523.044225
G53: 0 | H53: 21.22222222 | I53: 511.5344444
G54: 0 | H54: 22.00823045 | I54: 499.0238134
G55: 0 | H55: 22.79423868 | I55: 485.512332
G56: 0 | H56: 23.58024691 | I56: 471
G57: 0 | H57: 24.36625514 | I57: 455.4868176
G58: 0 | H58: 25.15226337 | I58: 438.9727846

Sheet Mobile-VQEc
A1: catégorie_VQE | B1: Mobile-VQEc_VQE | C1: =CONCATENATE(" <!-- question XLQ ", titre_VQE, "-->") -> <!-- question XLQ Mobile-VQEc_VQE--> | F1: Valeur Mini_VQE | G1: Valeur Maxi_VQE | H1: Sig. Digit_VQE | I1: Val Choix_VQE | K1: max | L1: min | M1: Moy | N1: Delta | O1: Delta Rel
B2: Mobile-VQEc_VQE | C2: =CONCATENATE(" <question type=",CHAR(34),"category",CHAR(34),"><category><text>", categorie_VQE,"</text></category></question>)") -> <question type="category"><category><text>Mobile-VQEc_VQE</text></category></question>) | E2: V1.distance_VQE | F2: 250 | G2: 750 | H2: 0 | I2: =RANDBETWEEN(ValMini_VQE*10^-SigDig_VQE, ValMaxi_VQE*10^-SigDig_VQE)/10^-SigDig_VQE -> 527 | J2: m | K2: =V1.distance_VQE*(1+V3.Deltad_VQE/100) -> 606.05 | L2: =V1.distance_VQE*(1-V3.Deltad_VQE/100) -> 447.95 | M2: =AVERAGE(K2,L2) -> 527 | N2: =(K2-L2)/2 -> 79.05 | O2: =N2/M2 -> 0.15
A3: Tag_VQE | B3: Mobile-VQEc_VQE | C3: <question type="cloze"> | E3: V2.temps_VQE | F3: =V1.distance_VQE/10 -> 52.7 | G3: =V1.distance_VQE/2 -> 263.5 | H3: 0 | I3: 97 | J3: s | K3: =V2.temps_VQE*(1+V4.Deltat_VQE/100) -> 100.88 | L3: =V2.temps_VQE*(1-V4.Deltat_VQE/100) -> 93.12 | M3: =AVERAGE(K3,L3) -> 97 | N3: =(K3-L3)/2 -> 3.88 | O3: =N3/M3 -> 0.04 | CA3: Afin d'accéder à la vitesse v d'un mobile, on mesure la distance d = #1# <p>parcourue durant un intervalle de temps t : #2#. Les incertitudes sont<p>supposées indépendantes (de #3#% et #4#% respectivement). <p>On cherche à connaitre la vitesse de ce mobile : <p>En calculant pour les valeurs maximum Vmax=$1$ et minimum Vmin=$2$ de la vitesse, on peut déduire la vitess la plus probable $3$ et son incertitude $4$.<p>Si la masse du mobile est m=#5# +/- #6# kg, on peut en déterminer la quantité de mouvement $p=mv$ = $5$ +/- $6$ kg.ms-1.<p>et son énergie cinétique : $Ec=1/2 mv2$ ^= $7$ +/- $8$ J.<p>
A4: idnumber_VQE | B4: =TEXT(NOW(),"aammjj-hhmmss.00") -> 210710-210812.04 | C4: =CONCATENATE(" <name><text>", titre_VQE, "</text></name>") -> <name><text>Mobile-VQEc_VQE</text></name> | E4: V3.Deltad_VQE | F4: =G4/2 -> 11.04 | G4: =1+V1.distance_VQE/25 -> 22.08 | H4: 0 | I4: 15 | J4: %
A5: points_VQE | B5: 1 | C5: <questiontext format="html"> | E5: V4.Deltat_VQE | F5: =G5/3 -> 1.95 | G5: =1+V2.temps_VQE/20 -> 5.85 | H5: 0 | I5: 4 | J5: %
A6: tolérance_VQE | B6: 0.05 | C6: =CONCATENATE(" <text><![CDATA[<p>", question_VQE, "</p>]]></text>") -> <text><![CDATA[<p> Afin d'acc&eacute;der &agrave; la vitesse v d'un mobile, on mesure la distance d = 527m <p>parcourue durant un intervalle de temps t : 97s. Les incertitudes sont<p>suppos&eacute;es ind&eacute;pendantes (de 15% et 4% respectivement).<p>Calculez les valeurs maximum Vmax={1:NUMERICAL:=6.51E+00:3.25E-01}m/s et minimum Vmin={1:NUMERICAL:=4.44E+00:2.22E-01}m/s de la vitesse, la vitess la plus probable {1:NUMERICAL:=5.43E+00:2.72E-01}m/s et son incertitude{2:NUMERICAL:=1.03E+00:5.16E-02}m/s.<p>Si la masse du mobile est m=77 +/- 11 kg, on peut en d&eacute;terminer la quantit&eacute; de mouvement p=mv = {1:NUMERICAL:=4.18E+02:2.09E+01} +/- {2:NUMERICAL:=1.39E+02:6.96E+00} kg.ms-1.<p>et son &eacute;nergie cin&eacute;tique: Ec=1/2 mv<sup>2</sup> = {1:NUMERICAL:=1.14E+03:5.68E+01} +/- {2:NUMERICAL:=5.94E+02:2.97E+01} J.<p></p>]]></text> | E6: V5.masse_VQE | F6: 10 | G6: 100 | H6: 0 | I6: 77 | J6: kg
A7: penalité_VQE | B7: 0.1 | C7: </questiontext> | E7: V6.Deltam_VQE | F7: =ROUND(V5.masse_VQE/10,0) -> 8 | G7: =V5.masse_VQE/7 -> 11 | H7: 0 | I7: 11 | J7: kg | N7: V | O7: =M2/M3 -> 5.432989691 | P7: m/s
A8: feedback_VQE | B8: _ | C8: =CONCATENATE(" <defaultgrade>",points_VQE,"</defaultgrade><generalfeedback><text>",feedback_VQE,"</text></generalfeedback><penalty>",penalty_VQE,"</penalty><hidden>0</hidden>)") -> <defaultgrade>1</defaultgrade><generalfeedback><text>_</text></generalfeedback><penalty>0.1</penalty><hidden>0</hidden>) | I8: 0 | N8: Delta V | O8: =O2+O3 -> 0.19
A9: Cellule vides_VQE | B9: =COUNTBLANK(B1:B8) -> 0 | C9: =CONCATENATE(" <idnumber>",idnumber_VQE,"</idnumber><tags><tag><text>",Tag_VQE,"</text></tag></tags>") -> <idnumber>210710-210812.04</idnumber><tags><tag><text>Mobile-VQEc_VQE</text></tag></tags> | F9: Cible_VQE | G9: Toler_VQE | H9: PointsQuestion_VQE | N9: Delta m | O9: =V6.Deltam_VQE/V5.masse_VQE -> 0.1428571429
A10: question format HTML_VQE | B10: =CONCATENATE(" ",B19,B20,B21,B22,B23,B24,B25) -> Afin d'acc&eacute;der &agrave; la vitesse v d'un mobile, on mesure la distance d = 527m <p>parcourue durant un intervalle de temps t : 97s. Les incertitudes sont<p>suppos&eacute;es ind&eacute;pendantes (de 15% et 4% respectivement).<p>Calculez les valeurs maximum Vmax={1:NUMERICAL:=6.51E+00:3.25E-01}m/s et minimum Vmin={1:NUMERICAL:=4.44E+00:2.22E-01}m/s de la vitesse, la vitess la plus probable {1:NUMERICAL:=5.43E+00:2.72E-01}m/s et son incertitude{2:NUMERICAL:=1.03E+00:5.16E-02}m/s.<p>Si la masse du mobile est m=77 +/- 11 kg, on peut en d&eacute;terminer la quantit&eacute; de mouvement p=mv = {1:NUMERICAL:=4.18E+02:2.09E+01} +/- {2:NUMERICAL:=1.39E+02:6.96E+00} kg.ms-1.<p>et son &eacute;nergie cin&eacute;tique: Ec=1/2 mv<sup>2</sup> = {1:NUMERICAL:=1.14E+03:5.68E+01} +/- {2:NUMERICAL:=5.94E+02:2.97E+01} J.<p> | C10: </question> | E10: R1.Vmax_VQE | F10: =K2/L3 -> 6.5082689 | G10: =tolerance_VQE*ValMini_VQE -> 0.325413445 | H10: 1 | I10: =CONCATENATE("{",PointsQuestion_VQE,":NUMERICAL:=",TEXT(Cible_VQE,"0.00E+00"),":",TEXT(ABS(Tolere_VQE),"0.00E+00"),"}") -> {1:NUMERICAL:=6.51E+00:3.25E-01}
A11: Repere Var Rep | B11: _VQE | E11: R2.Vmin_VQE | F11: =L2/K3 -> 4.440424266 | G11: 0.2220212133 | H11: 1 | I11: {1:NUMERICAL:=4.44E+00:2.22E-01} | N11: Delta Q | O11: =F15/F14 -> 0.3328571429
A12: HTML File | B12: =CONCATENATE(categorie_VQE,"_HTML.txt") -> Mobile-VQEc_VQE_HTML.txt | E12: R3.Vmoy_VQE | F12: =V1.distance_VQE/V2.temps_VQE -> 5.432989691 | G12: 0.2716494845 | H12: 1 | I12: {1:NUMERICAL:=5.43E+00:2.72E-01} | N12: Delta Ec | O12: =F17/F16 -> 0.5228571429
A13: Valide ? | B13: =AND(ISNUMBER(P32),P30<50) -> TRUE | E13: R4.DeltaVmoy_VQE | F13: =F12*DV -> 1.032268041 | G13: 0.05161340206 | H13: 2 | I13: {2:NUMERICAL:=1.03E+00:5.16E-02}
A14: https://html-online.com/editor/ | E14: R5.QuMouv_VQE | F14: =Vmoy*V5.masse_VQE -> 418.3402062 | G14: 20.91701031 | H14: 1 | I14: {1:NUMERICAL:=4.18E+02:2.09E+01}
C15: 8 | E15: R6.DeltaQ_VQE | F15: =F14*(DV+DM) -> 139.2475258 | G15: 6.962376289 | H15: 2 | I15: {2:NUMERICAL:=1.39E+02:6.96E+00}
A16: Var : | B16: # | C16: 6 | E16: R7.EnergCin_VQE | F16: =0.5*V5.masse_VQE*Vmoy^2 -> 1136.419014 | G16: 56.82095069 | H16: 1 | I16: {1:NUMERICAL:=1.14E+03:5.68E+01}
A17: Res : | B17: $ | C17: 8 | E17: R8.DeltaEc_VQE | F17: =F16*(DM+2*DV) -> 594.1847986 | G17: 29.70923993 | H17: 2 | I17: {2:NUMERICAL:=5.94E+02:2.97E+01}
B19: =CONCATENATE("Afin d'acc&eacute;der &agrave; la vitesse v d'un mobile, on mesure la distance d = ",V1.distance_VQE,"m <p>parcourue durant un intervalle de temps t : ",V2.temps_VQE,"s. Les incertitudes sont<p>suppos&eacute;es ind&eacute;pendantes (de ",V3.Deltad_VQE,"% et ",V4.Deltat_VQE,"% respectivement).") -> Afin d'acc&eacute;der &agrave; la vitesse v d'un mobile, on mesure la distance d = 527m <p>parcourue durant un intervalle de temps t : 97s. Les incertitudes sont<p>suppos&eacute;es ind&eacute;pendantes (de 15% et 4% respectivement). | C19: Afin d'accéder à la vitesse v d'un mobile, on mesure la distance d = #1#
B20: =CONCATENATE("<p>Calculez les valeurs maximum Vmax=",R1.Vmax_VQE,"m/s et minimum Vmin=",R2.Vmin_VQE,"m/s de la vitesse, la vitess la plus probable ",R3.Vmoy_VQE,"m/s et son incertitude") -> <p>Calculez les valeurs maximum Vmax={1:NUMERICAL:=6.51E+00:3.25E-01}m/s et minimum Vmin={1:NUMERICAL:=4.44E+00:2.22E-01}m/s de la vitesse, la vitess la plus probable {1:NUMERICAL:=5.43E+00:2.72E-01}m/s et son incertitude | C20: parcourue durant un intervalle de temps t : #2#. Les incertitudes sont
B21: =CONCATENATE("",R4.DeltaVmoy_VQE,"m/s.<p>Si la masse du mobile est m=",V5.masse_VQE," +/- ",V6.Deltam_VQE," kg, on peut en d&eacute;terminer la quantit&eacute; de mouvement p=mv = ",R5.QuMouv_VQE," +/- ",R6.DeltaQ_VQE," kg.ms-1.<p>et son &eacute;nergie cin&eacute;tique: Ec=1/2 mv<sup>2</sup> = ",R7.EnergCin_VQE," +/- ",R8.DeltaEc_VQE," J.<p>") -> {2:NUMERICAL:=1.03E+00:5.16E-02}m/s.<p>Si la masse du mobile est m=77 +/- 11 kg, on peut en d&eacute;terminer la quantit&eacute; de mouvement p=mv = {1:NUMERICAL:=4.18E+02:2.09E+01} +/- {2:NUMERICAL:=1.39E+02:6.96E+00} kg.ms-1.<p>et son &eacute;nergie cin&eacute;tique: Ec=1/2 mv<sup>2</sup> = {1:NUMERICAL:=1.14E+03:5.68E+01} +/- {2:NUMERICAL:=5.94E+02:2.97E+01} J.<p> | C21: supposées indépendantes (de #3#% et #4#% respectivement).
B22: =CONCATENATE("") ->  | F22: val | G22: delta | H22: %
B23: =CONCATENATE("") ->  | C23: On cherche à connaitre la vitesse de ce mobile : | E23: d | F23: 357 | G23: =H23*F23/100 -> 24.99 | H23: 7
B24: =CONCATENATE("") ->  | E24: t | F24: 135 | G24: =H24*F24/100 -> 5.4 | H24: 4 | N24: val | O24: delta | P24: %
B25: =CONCATENATE("") ->  | C25: En calculant pour les valeurs maximum Vmax=$1$ et minimum Vmin=$2$ de la vitesse, on peut déduire la vitess la plus probable $3$ et son incertitude $4$. | E25: m | F25: 37 | G25: 5 | H25: =G25*100/F25 -> 13.51351351 | M25: d | N25: =V1.distance_VQE -> 527 | O25: =V3.Deltad_VQE -> 15 | P25: =O25*100/N25 -> 2.84629981
E26: v | F26: =F23/F24 -> 2.644444444 | G26: =F26*H26/100 -> 0.2908888889 | H26: =H24+H23 -> 11 | M26: t | N26: =V2.temps_VQE -> 97 | O26: =V4.Deltat_VQE -> 4 | P26: =O26*100/N26 -> 4.12371134
C27: Si la masse du mobile est m=#5# +/- #6# kg, on peut en déterminer la quantité de mouvement $p=mv$ = $5$ +/- $6$ kg.ms-1. | E27: p | F27: =F25*F26 -> 97.84444444 | G27: =H27*F27/100 -> 17.136 | H27: =H25+H24 -> 17.51351351 | M27: m | N27: =V5.masse_VQE -> 77 | O27: =V6.Deltam_VQE -> 11 | P27: =O27*100/N27 -> 14.28571429
E28: Ec | F28: =0.5*F25*(F23/F24)^2 -> 129.3720988 | G28: =H28*F28/100 -> 45.94457778 | H28: =H25+2*H26 -> 35.51351351 | M28: v | N28: =N25/N26 -> 5.432989691 | O28: =N28*P28/100 -> 0.3786799872 | P28: =P26+P25 -> 6.97001115
C29: et son énergie cinétique : $Ec=1/2 mv2$ ^= $7$ +/- $8$ J. | M29: p | N29: =N27*N28 -> 418.3402062 | O29: =P29*N29/100 -> 77.01402912 | P29: =P27+P26 -> 18.40942563
M30: Ec | N30: =0.5*N27*(N25/N26)^2 -> 1136.419014 | O30: =P30*N30/100 -> 320.7626373 | P30: =P27+2*P28 -> 28.22573659
P32: =SUM(M25:P30) -> 2764.208455

Sheet ExpFonctions
A1: catégorie_Fon | B1: ExpFonctions | C1: =CONCATENATE(" <!-- question XLQ ", titre_Fon, "-->") -> <!-- question XLQ ExpFonctions_Fon--> | F1: Valeur Mini_Fon | G1: Valeur Maxi_Fon | H1: Sig. Digit_Fon | I1: Val Choix_Fon | J1: Least significant | M1: maxi | N1: mini | O1: Delta
B2: ExpFonctions_Fon | C2: =CONCATENATE(" <question type=",CHAR(34),"category",CHAR(34),"><category><text>", categorie_Fon,"</text></category></question>)") -> <question type="category"><category><text>ExpFonctions</text></category></question>) | E2: V1._Fon | F2: 0.02 | G2: 0.97 | H2: -2 | I2: =RANDBETWEEN(ValMini_Fon*10^-SigDig_Fon, ValMaxi_Fon*10^-SigDig_Fon)/10^-SigDig_Fon -> 0.6 | J2: =1/POWER(10,LEN(I2)-LEN(INT(I2))-(I2<>INT(I2))*1) -> 0.1 | K2: ln | L2: =J2/V1._Fon -> 0.1666666667 | M2: =LN(V1._Fon+J2) -> -0.3566749439 | N2: =LN(V1._Fon-J2) -> -0.6931471806 | O2: =ABS(M2-N2)/2 -> 0.1682361183
A3: Tag_Fon | B3: ExpFonctions_Fon | C3: <question type="cloze"> | E3: V2._Fon | F3: 25 | G3: 75 | H3: 0 | I3: =RANDBETWEEN(ValMini_Fon*10^-SigDig_Fon, ValMaxi_Fon*10^-SigDig_Fon)/10^-SigDig_Fon -> 59 | J3: =1/POWER(10,LEN(I3)-LEN(INT(I3))-(I3<>INT(I3))*1) -> 1 | K3: cos | L3: =J3/V2._Fon -> 0.01694915254 | M3: =COS(RADIANS((V2._Fon+J3))) -> 0.5 | N3: =COS(RADIANS((V2._Fon-J3))) -> 0.5299192642 | O3: =ABS(M3-N3)/2 -> 0.01495963212 | CA3: Exprimer les résultats suivants : <p>ln(#1#) = $1$ +/- $2$ <p>cos(#2#) = $3$ +/- $4$ <p>sin(#3#) = $5$ +/- $6$ <p>exp(#4#) = $7$ +/- $8$ <p>
A4: idnumber_Fon | B4: =TEXT(NOW(),"aammjj-hhmmss.00") -> 210710-210812.04 | C4: =CONCATENATE(" <name><text>", titre_Fon, "</text></name>") -> <name><text>ExpFonctions_Fon</text></name> | E4: V3._Fon | F4: 38 | G4: 73 | H4: -1 | I4: =RANDBETWEEN(ValMini_Fon*10^-SigDig_Fon, ValMaxi_Fon*10^-SigDig_Fon)/10^-SigDig_Fon -> 45.5 | J4: =1/POWER(10,LEN(I4)-LEN(INT(I4))-(I4<>INT(I4))*1) -> 0.1 | K4: sin | L4: =J4/V3._Fon -> 0.002197802198 | M4: =SIN(RADIANS((V3._Fon+J4))) -> 0.7144726796 | N4: =SIN(RADIANS((V3._Fon-J4))) -> 0.712026046 | O4: =ABS(M4-N4)/2 -> 0.001223316821
A5: points_Fon | B5: 1 | C5: <questiontext format="html"> | E5: V4._Fon | F5: -1 | G5: 2 | H5: -2 | I5: =IF(I6=0,RANDBETWEEN(0.1,0.77),I6) -> 0.78 | J5: =1/POWER(10,LEN(I5)-LEN(INT(I5))-(I5<>INT(I5))*1) -> 0.01 | K5: exp | L5: =J5/V4._Fon -> 0.01282051282 | M5: =EXP(V4._Fon+J5) -> 2.203396426 | N5: =EXP(V4._Fon-J5) -> 2.159766254 | O5: =ABS(M5-N5)/2 -> 0.02181508624
A6: tolérance_Fon | B6: 0.05 | C6: =CONCATENATE(" <text><![CDATA[<p>", question_Fon, "</p>]]></text>") -> <text><![CDATA[<p> Exprimer correctement les resultats suivants : <p>ln(0.6) = {1:NUMERICAL:=-5.11E-01:2.55E-02} +/- {1:NUMERICAL:=1.67E-01:8.33E-03} <p>cos(59) = {1:NUMERICAL:=5.15E-01:2.58E-02} +/- {2:NUMERICAL:=1.50E-02:7.48E-04} <p>sin(45.5) = {1:NUMERICAL:=7.13E-01:3.57E-02} +/- {2:NUMERICAL:=1.22E-03:6.12E-05} <p>exp(0.78) = {1:NUMERICAL:=2.18E+00:1.09E-01} +/- {2:NUMERICAL:=2.18E-02:1.09E-03} <p></p>]]></text> | F6: =F5 -> -1 | G6: =G5 -> 2 | H6: =H5 -> -2 | I6: =RANDBETWEEN(ValMini_Fon*10^-SigDig_Fon, ValMaxi_Fon*10^-SigDig_Fon)/10^-SigDig_Fon+0.1 -> 0.78
A7: penalité_Fon | B7: 0.1 | C7: </questiontext> | F7: Cible_Fon | G7: Toler_Fon | H7: PointsQuestion_Fon
A8: feedback_Fon | B8: _ | C8: =CONCATENATE(" <defaultgrade>",points_Fon,"</defaultgrade><generalfeedback><text>",feedback_Fon,"</text></generalfeedback><penalty>",penalty_Fon,"</penalty><hidden>0</hidden>)") -> <defaultgrade>1</defaultgrade><generalfeedback><text>_</text></generalfeedback><penalty>0.1</penalty><hidden>0</hidden>) | E8: R1._Fon | F8: =LN(V1._Fon) -> -0.5108256238 | G8: =tolerance_Fon*ValMini_Fon -> -0.02554128119 | H8: 1 | I8: =CONCATENATE("{",PointsQuestion_Fon,":NUMERICAL:=",TEXT(Cible_Fon,"0.00E+00"),":",TEXT(ABS(Tolere_Fon),"0.00E+00"),"}") -> {1:NUMERICAL:=-5.11E-01:2.55E-02} | K8: ln
A9: Cellule vides_Fon | B9: =COUNTBLANK(B1:B8) -> 0 | C9: =CONCATENATE(" <idnumber>",idnumber_Fon,"</idnumber><tags><tag><text>",Tag_Fon,"</text></tag></tags>") -> <idnumber>210710-210812.04</idnumber><tags><tag><text>ExpFonctions_Fon</text></tag></tags> | E9: R2._Fon | F9: =ABS(J2/V1._Fon) -> 0.1666666667 | G9: 0.008333333333 | H9: 1 | I9: {1:NUMERICAL:=1.67E-01:8.33E-03} | K9: D ln | L9: =F9 -> 0.1666666667 | O9: =ABS((O2-L9)/L9) -> 0.009416709864
A10: question format HTML_Fon | B10: =CONCATENATE(" ",B19,B20) -> Exprimer correctement les resultats suivants : <p>ln(0.6) = {1:NUMERICAL:=-5.11E-01:2.55E-02} +/- {1:NUMERICAL:=1.67E-01:8.33E-03} <p>cos(59) = {1:NUMERICAL:=5.15E-01:2.58E-02} +/- {2:NUMERICAL:=1.50E-02:7.48E-04} <p>sin(45.5) = {1:NUMERICAL:=7.13E-01:3.57E-02} +/- {2:NUMERICAL:=1.22E-03:6.12E-05} <p>exp(0.78) = {1:NUMERICAL:=2.18E+00:1.09E-01} +/- {2:NUMERICAL:=2.18E-02:1.09E-03} <p> | C10: </question> | E10: R3._Fon | F10: =COS(RADIANS(V2._Fon)) -> 0.5150380749 | G10: 0.02575190375 | H10: 1 | I10: {1:NUMERICAL:=5.15E-01:2.58E-02} | K10: cos
A11: Repere Var Rep | B11: _Fon | E11: R4._Fon | F11: =ABS(SIN(RADIANS(V2._Fon)))*RADIANS(J3) -> 0.01496039164 | G11: 0.0007480195819 | H11: 2 | I11: {2:NUMERICAL:=1.50E-02:7.48E-04} | K11: D cos | L11: =F11 -> 0.01496039164 | O11: =ABS((ABS(O3)-ABS(L11))/ABS(L11)) -> 5.076879671e-05
A12: HTML File | B12: =CONCATENATE(categorie_Fon,"_HTML.txt") -> ExpFonctions_HTML.txt | E12: R5._Fon | F12: =SIN(RADIANS(V3._Fon)) -> 0.7132504492 | G12: 0.03566252246 | H12: 1 | I12: {1:NUMERICAL:=7.13E-01:3.57E-02} | K12: sin
A13: Valide ? | B13: =AND(ISNUMBER(L16),SUM(O9:O15<0.1)) -> TRUE | E13: R6._Fon | F13: =ABS(COS(RADIANS(V3._Fon)))*RADIANS(J4) -> 0.001223317442 | G13: 6.11658721e-05 | H13: 2 | I13: {2:NUMERICAL:=1.22E-03:6.12E-05} | K13: D sin | L13: =F13 -> 0.001223317442 | O13: =ABS((O4-L13)/L13) -> 5.076956338e-07
A14: https://html-online.com/editor/ | E14: R7._Fon | F14: =EXP(V4._Fon) -> 2.181472265 | G14: 0.1090736133 | H14: 1 | I14: {1:NUMERICAL:=2.18E+00:1.09E-01} | K14: exp
C15: 6 | E15: R8._Fon | F15: =ABS(EXP(V4._Fon))*J5 -> 0.02181472265 | G15: 0.001090736133 | H15: 2 | I15: {2:NUMERICAL:=2.18E-02:1.09E-03} | K15: D exp | L15: =F15 -> 0.02181472265 | O15: =ABS((O5-L15)/L15) -> 1.666675e-05
A16: Var : | B16: # | C16: 4 | L16: =SUM(L2:L15) -> 0.4032992326 | M16: Vérifie que ça fonctionne
A17: Res : | B17: $ | C17: 8 | F17: https://www.excel-pratique.com/fr/index_des_fonctions/traduction_formule
B19: =CONCATENATE("Exprimer correctement les resultats suivants : <p>ln(",V1._Fon,") = ",R1._Fon," +/- ",R2._Fon," <p>cos(",V2._Fon,") = ",R3._Fon," +/- ",R4._Fon," <p>sin(",V3._Fon,") = ",R5._Fon," +/- ",R6._Fon," <p>exp(",V4._Fon,") = ",R7._Fon," +/- ",R8._Fon," <p>") -> Exprimer correctement les resultats suivants : <p>ln(0.6) = {1:NUMERICAL:=-5.11E-01:2.55E-02} +/- {1:NUMERICAL:=1.67E-01:8.33E-03} <p>cos(59) = {1:NUMERICAL:=5.15E-01:2.58E-02} +/- {2:NUMERICAL:=1.50E-02:7.48E-04} <p>sin(45.5) = {1:NUMERICAL:=7.13E-01:3.57E-02} +/- {2:NUMERICAL:=1.22E-03:6.12E-05} <p>exp(0.78) = {1:NUMERICAL:=2.18E+00:1.09E-01} +/- {2:NUMERICAL:=2.18E-02:1.09E-03} <p> | C19: Exprimer les résultats suivants :
B20: =CONCATENATE("") -> 
C21: ln(#1#) = $1$ +/- $2$
C23: cos(#2#) = $3$ +/- $4$
J24: 2.1215 | K24: =1/POWER(10,LEN(J24)-LEN(INT(J24))-(J24<>INT(J24))*1) -> 0.0001
C25: sin(#3#) = $5$ +/- $6$
C27: exp(#4#) = $7$ +/- $8$
C41: Exprimer les résultats suivants : <p>ln(",V1._Fon,") = ",R1._Fon," +/- ",R2._Fon," <p>cos(",V2._Fon,") = ",R3._Fon," +/- ",R4._Fon," <p>sin(",V3._Fon,") = ",R5._Fon," +/- ",R6._Fon," <p>exp(",V4._Fon,") = ",R7._Fon," +/- ",R8._Fon," <p>

Sheet Somme-Fraction
A1: catégorie_Fra | B1: Somme-Fraction_Fra | C1: =CONCATENATE(" <!-- question XLQ ", titre_Fra, "-->") -> <!-- question XLQ Somme-Fraction_Fra--> | F1: Valeur Mini_Fra | G1: Valeur Maxi_Fra | H1: Sig. Digit_Fra | I1: Val Choix_Fra | J1: Least significant | L1: rel | M1: somme rel | N1: total | O1: moy | P1: min | Q1: max | R1: ratio max | S1: ratio min | T1: Delta
B2: Somme-Fraction_Fra | C2: =CONCATENATE(" <question type=",CHAR(34),"category",CHAR(34),"><category><text>", categorie_Fra,"</text></category></question>)") -> <question type="category"><category><text>Somme-Fraction_Fra</text></category></question>) | E2: V1._Fra | F2: 2 | G2: 13 | H2: -1 | I2: =RANDBETWEEN(ValMini_Fra*10^-SigDig_Fra, ValMaxi_Fra*10^-SigDig_Fra)/10^-SigDig_Fra -> 9 | J2: =1/POWER(10,LEN(I2)-LEN(INT(I2))-(I2<>INT(I2))*1) -> 1 | L2: =LeastSign/V1._Fra -> 0.1111111111 | M2: =L2+L3 -> 0.1267361111 | O2: =V1._Fra/V2._Fra -> 1.40625 | P2: =V1._Fra+J2 -> 10 | Q2: =V1._Fra-J2 -> 8 | R2: =P2/Q3 -> 1.587301587 | S2: =Q2/P3 -> 1.230769231 | T2: =(R2-S2)/2 -> 0.1782661783 | U2: =T2*M2 -> 0.02259276218
A3: Tag_Fra | B3: Somme-Fraction_Fra | C3: <question type="cloze"> | E3: V2._Fra | F3: 2 | G3: 13 | H3: -1 | I3: =RANDBETWEEN(ValMini_Fra*10^-SigDig_Fra, ValMaxi_Fra*10^-SigDig_Fra)/10^-SigDig_Fra -> 6.4 | J3: =1/POWER(10,LEN(I3)-LEN(INT(I3))-(I3<>INT(I3))*1) -> 0.1 | L3: =LeastSign/V2._Fra -> 0.015625 | P3: =V2._Fra+J3 -> 6.5 | Q3: =V2._Fra-J3 -> 6.3 | CA3: Calculer : #1#/#2# + #3#/#4# = $1$ +/- $2$<p>
A4: idnumber_Fra | B4: =TEXT(NOW(),"aammjj-hhmmss.00") -> 210710-210812.04 | C4: =CONCATENATE(" <name><text>", titre_Fra, "</text></name>") -> <name><text>Somme-Fraction_Fra</text></name> | E4: V3._Fra | F4: 2 | G4: 13 | H4: -1 | I4: =RANDBETWEEN(ValMini_Fra*10^-SigDig_Fra, ValMaxi_Fra*10^-SigDig_Fra)/10^-SigDig_Fra -> 10.3 | J4: =1/POWER(10,LEN(I4)-LEN(INT(I4))-(I4<>INT(I4))*1) -> 0.1 | L4: =LeastSign/V3._Fra -> 0.009708737864 | M4: =L4+L5 -> 0.02583777012 | O4: =V3._Fra/V4._Fra -> 1.661290323 | P4: =V3._Fra+J4 -> 10.4 | Q4: =V3._Fra-J4 -> 10.2 | R4: =P4/Q5 -> 1.704918033 | S4: =Q4/P5 -> 1.619047619 | T4: =(R4-S4)/2 -> 0.04293520687 | U4: =T4*M4 -> 0.001109350005
A5: points_Fra | B5: 1 | C5: <questiontext format="html"> | E5: V4._Fra | F5: 2 | G5: 13 | H5: -1 | I5: =RANDBETWEEN(ValMini_Fra*10^-SigDig_Fra, ValMaxi_Fra*10^-SigDig_Fra)/10^-SigDig_Fra -> 6.2 | J5: =1/POWER(10,LEN(I5)-LEN(INT(I5))-(I5<>INT(I5))*1) -> 0.1 | L5: =LeastSign/V4._Fra -> 0.01612903226 | P5: =V4._Fra+J5 -> 6.3 | Q5: =V4._Fra-J5 -> 6.1
A6: tolérance_Fra | B6: 0.05 | C6: =CONCATENATE(" <text><![CDATA[<p>", question_Fra, "</p>]]></text>") -> <text><![CDATA[<p> Calculer : 9/6.4 + 10.3/6.2 = {1:NUMERICAL:=3.07E+00:1.53E-01} +/- {2:NUMERICAL:=7.27E-02:3.64E-03}<p></p>]]></text>
A7: penalité_Fra | B7: 0.1 | C7: </questiontext> | F7: Cible_Fra | G7: Toler_Fra | H7: PointsQuestion_Fra | T7: Erreur | U7: =SUM(U2:U4) -> 0.02370211218
A8: feedback_Fra | B8: _ | C8: =CONCATENATE(" <defaultgrade>",points_Fra,"</defaultgrade><generalfeedback><text>",feedback_Fra,"</text></generalfeedback><penalty>",penalty_Fra,"</penalty><hidden>0</hidden>)") -> <defaultgrade>1</defaultgrade><generalfeedback><text>_</text></generalfeedback><penalty>0.1</penalty><hidden>0</hidden>) | E8: R1._Fra | F8: =V1._Fra/V2._Fra+V3._Fra/V4._Fra -> 3.067540323 | G8: =tolerance_Fra*ValMini_Fra -> 0.1533770161 | H8: 1 | I8: =CONCATENATE("{",PointsQuestion_Fra,":NUMERICAL:=",TEXT(Cible_Fra,"0.00E+00"),":",TEXT(ABS(Tolere_Fra),"0.00E+00"),"}") -> {1:NUMERICAL:=3.07E+00:1.53E-01}
A9: Cellule vides_Fra | B9: =COUNTBLANK(B1:B8) -> 0 | C9: =CONCATENATE(" <idnumber>",idnumber_Fra,"</idnumber><tags><tag><text>",Tag_Fra,"</text></tag></tags>") -> <idnumber>210710-210812.04</idnumber><tags><tag><text>Somme-Fraction_Fra</text></tag></tags> | E9: R2._Fra | F9: =F8*U7 -> 0.07270718485 | G9: =tolerance_Fra*ValMini_Fra -> 0.003635359242 | H9: 2 | I9: =CONCATENATE("{",PointsQuestion_Fra,":NUMERICAL:=",TEXT(Cible_Fra,"0.00E+00"),":",TEXT(ABS(Tolere_Fra),"0.00E+00"),"}") -> {2:NUMERICAL:=7.27E-02:3.64E-03} | L9: =SUM(L2:U5) -> 73.55962805
A10: question format HTML_Fra | B10: =CONCATENATE(" ",B19) -> Calculer : 9/6.4 + 10.3/6.2 = {1:NUMERICAL:=3.07E+00:1.53E-01} +/- {2:NUMERICAL:=7.27E-02:3.64E-03}<p> | C10: </question>
A11: Repere Var Rep | B11: _Fra
A12: HTML File | B12: =CONCATENATE(categorie_Fra,"_HTML.txt") -> Somme-Fraction_Fra_HTML.txt
A13: Valide ? | B13: =ISNUMBER(L9) -> TRUE
A14: https://html-online.com/editor/
C15: 6
A16: Var : | B16: # | C16: 4
A17: Res : | B17: $ | C17: 2
B19: =CONCATENATE("Calculer : ",V1._Fra,"/",V2._Fra," + ",V3._Fra,"/",V4._Fra," = ",R1._Fra," +/- ",R2._Fra,"<p>") -> Calculer : 9/6.4 + 10.3/6.2 = {1:NUMERICAL:=3.07E+00:1.53E-01} +/- {2:NUMERICAL:=7.27E-02:3.64E-03}<p> | C19: Calculer : #1#/#2# + #3#/#4# = $1$ +/- $2$

Sheet Ohms
A1: catégorie_Ohm | B1: Ohms_Ohm | C1: =CONCATENATE(" <!-- question XLQ ", titre_Ohm, "-->") -> <!-- question XLQ Ohms_Ohm--> | F1: Valeur Mini_Ohm | G1: Valeur Maxi_Ohm | H1: Sig. Digit_Ohm | I1: Val Choix_Ohm
B2: Ohms_Ohm | C2: =CONCATENATE(" <question type=",CHAR(34),"category",CHAR(34),"><category><text>", categorie_Ohm,"</text></category></question>)") -> <question type="category"><category><text>Ohms_Ohm</text></category></question>) | E2: V1.I_Ohm | F2: 12 | G2: 53 | H2: -1 | I2: =RANDBETWEEN(ValMini_Ohm*10^-SigDig_Ohm, ValMaxi_Ohm*10^-SigDig_Ohm)/10^-SigDig_Ohm -> 23.5 | J2: mA | K2: Di/i | L2: DR/R
A3: Tag_Ohm | B3: Ohms_Ohm | C3: <question type="cloze"> | E3: V2.DI_Ohm | F3: =V1.I_Ohm/20 -> 1.175 | G3: =F3*3 -> 3.525 | H3: -1 | I3: =RANDBETWEEN(ValMini_Ohm*10^-SigDig_Ohm, ValMaxi_Ohm*10^-SigDig_Ohm)/10^-SigDig_Ohm -> 1.5 | J3: D mA | K3: =V2.DI_Ohm/V1.I_Ohm -> 0.06382978723 | L3: =K3+K5 -> 0.2266204849 | CA3: <p>&nbsp;On &eacute;tudie une chute ohmique aux bornes d'une r&eacute;sistance. Le mesurage du courant traversant la<br />r&eacute;sistance et la tension aux bornes de celle-ci conduit &agrave; I = #1# +/- #2#mA et U = #3# +/- #4#V . Les incertitudes<br />sont ind&eacute;pendantes.<br />1. Calculez la valeur de la r&eacute;sistance R = $1$ +/- $2$ Ohms <br />2. Calculez la puissance (P = UI) dissip&eacute;e dans la r&eacute;sistance P = $3$ +/- $4$ W <br />3. Calculer P &agrave; partir de la relation P = RI =&gt; Delta P = $5$ +/- $6$ W</p>
A4: idnumber_Ohm | B4: =TEXT(NOW(),"aammjj-hhmmss.00") -> 210710-210812.04 | C4: =CONCATENATE(" <name><text>", titre_Ohm, "</text></name>") -> <name><text>Ohms_Ohm</text></name> | E4: V3.V_Ohm | F4: 20 | G4: 53 | H4: -1 | I4: =RANDBETWEEN(ValMini_Ohm*10^-SigDig_Ohm, ValMaxi_Ohm*10^-SigDig_Ohm)/10^-SigDig_Ohm -> 21.5 | J4: V | K4: DV/V | L4: Dpu/Pu
A5: points_Ohm | B5: 1 | C5: <questiontext format="html"> | E5: V4.DV_Ohm | F5: =V1.I_Ohm/20 -> 1.175 | G5: =F5*3 -> 3.525 | H5: -1 | I5: =RANDBETWEEN(ValMini_Ohm*10^-SigDig_Ohm, ValMaxi_Ohm*10^-SigDig_Ohm)/10^-SigDig_Ohm -> 3.5 | J5: D V | K5: =V4.DV_Ohm/V3.V_Ohm -> 0.1627906977 | L5: =L3+K3 -> 0.2904502721
A6: tolérance_Ohm | B6: 0.05 | C6: =CONCATENATE(" <text><![CDATA[<p>", question_Ohm, "</p>]]></text>") -> <text><![CDATA[<p> <p>&nbsp;On &eacute;tudie une chute ohmique aux bornes d'une r&eacute;sistance. Le mesurage du courant traversant la<br />r&eacute;sistance et la tension aux bornes de celle-ci conduit &agrave; I = 23.5+/- 1.5mA et U = 21.5 +/- 3.5V . Les incertitudes<br />sont ind&eacute;pendantes.<br />1. Calculez la valeur de la r&eacute;sistance R = {1:NUMERICAL:=9.15E-01:4.57E-02} +/- {1:NUMERICAL:=2.07E-01:1.04E-02} Ohms <br />2. Calculez la puissance (P = UI) dissip&eacute;edans la r&eacute;sistance P = {1:NUMERICAL:=5.05E+02:2.53E+01} +/- {1:NUMERICAL:=1.15E+02:5.73E+00} W <br />3. Calculer P &agrave; partir de la relation P = RI<sup>2</sup> =&gt; Delta P = {1:NUMERICAL:=5.05E+02:2.53E+01} +/- {2:NUMERICAL:=1.47E+02:7.34E+00} W</p></p>]]></text>
A7: penalité_Ohm | B7: 0.1 | C7: </questiontext> | F7: Cible_Ohm | G7: Toler_Ohm | H7: PointsQuestion_Ohm
A8: feedback_Ohm | B8: _ | C8: =CONCATENATE(" <defaultgrade>",points_Ohm,"</defaultgrade><generalfeedback><text>",feedback_Ohm,"</text></generalfeedback><penalty>",penalty_Ohm,"</penalty><hidden>0</hidden>)") -> <defaultgrade>1</defaultgrade><generalfeedback><text>_</text></generalfeedback><penalty>0.1</penalty><hidden>0</hidden>) | E8: R1.R_Ohm | F8: =V3.V_Ohm/V1.I_Ohm -> 0.914893617 | G8: =tolerance_Ohm*ValMini_Ohm -> 0.04574468085 | H8: 1 | I8: =CONCATENATE("{",PointsQuestion_Ohm,":NUMERICAL:=",TEXT(Cible_Ohm,"0.00E+00"),":",TEXT(ABS(Tolere_Ohm),"0.00E+00"),"}") -> {1:NUMERICAL:=9.15E-01:4.57E-02} | J8: Ohm | K8: R = U/i
A9: Cellule vides_Ohm | B9: =COUNTBLANK(B1:B8) -> 0 | C9: =CONCATENATE(" <idnumber>",idnumber_Ohm,"</idnumber><tags><tag><text>",Tag_Ohm,"</text></tag></tags>") -> <idnumber>210710-210812.04</idnumber><tags><tag><text>Ohms_Ohm</text></tag></tags> | E9: R2.DR_Ohm | F9: =L3*F8 -> 0.2073336351 | G9: 0.01036668176 | H9: 1 | I9: {1:NUMERICAL:=2.07E-01:1.04E-02} | J9: Ohm
A10: question format HTML_Ohm | B10: =CONCATENATE(" ",B19,B20,B21,B22,B23,B24) -> <p>&nbsp;On &eacute;tudie une chute ohmique aux bornes d'une r&eacute;sistance. Le mesurage du courant traversant la<br />r&eacute;sistance et la tension aux bornes de celle-ci conduit &agrave; I = 23.5+/- 1.5mA et U = 21.5 +/- 3.5V . Les incertitudes<br />sont ind&eacute;pendantes.<br />1. Calculez la valeur de la r&eacute;sistance R = {1:NUMERICAL:=9.15E-01:4.57E-02} +/- {1:NUMERICAL:=2.07E-01:1.04E-02} Ohms <br />2. Calculez la puissance (P = UI) dissip&eacute;edans la r&eacute;sistance P = {1:NUMERICAL:=5.05E+02:2.53E+01} +/- {1:NUMERICAL:=1.15E+02:5.73E+00} W <br />3. Calculer P &agrave; partir de la relation P = RI<sup>2</sup> =&gt; Delta P = {1:NUMERICAL:=5.05E+02:2.53E+01} +/- {2:NUMERICAL:=1.47E+02:7.34E+00} W</p> | C10: </question> | E10: R3.P_Ohm | F10: =V1.I_Ohm*V3.V_Ohm -> 505.25 | G10: 25.2625 | H10: 1 | I10: {1:NUMERICAL:=5.05E+02:2.53E+01} | J10: W | K10: P=Ui
A11: Repere Var Rep | B11: _Ohm | E11: R4.DP_Ohm | F11: =F10*L3 -> 114.5 | G11: 5.725 | H11: 1 | I11: {1:NUMERICAL:=1.15E+02:5.73E+00} | J11: W
A12: HTML File | B12: sansaccent.txt | E12: R5.Pui_Ohm | F12: =F10 -> 505.25 | G12: 25.2625 | H12: 1 | I12: {1:NUMERICAL:=5.05E+02:2.53E+01} | J12: W | K12: P=Ri
A13: Valide ? | B13: =ISNUMBER(H15) -> TRUE | E13: R6.DPui_Ohm | F13: =F12*L5 -> 146.75 | G13: 7.3375 | H13: 2 | I13: {2:NUMERICAL:=1.47E+02:7.34E+00} | J13: W
A14: https://html-online.com/editor/
C15: 6 | H15: =SUM(F8:H13) -> 1343.515839
A16: Var : | B16: # | C16: 4
A17: Res : | B17: $ | C17: 6
B19: =CONCATENATE("<p>&nbsp;On &eacute;tudie une chute ohmique aux bornes d'une r&eacute;sistance. Le mesurage du courant traversant la<br />r&eacute;sistance et la tension aux bornes de celle-ci conduit &agrave; I = ",V1.I_Ohm,"") -> <p>&nbsp;On &eacute;tudie une chute ohmique aux bornes d'une r&eacute;sistance. Le mesurage du courant traversant la<br />r&eacute;sistance et la tension aux bornes de celle-ci conduit &agrave; I = 23.5 | C19: <p>&nbsp;On &eacute;tudie une chute ohmique aux bornes d'une r&eacute;sistance. Le mesurage du courant traversant la<br />r&eacute;sistance et la tension aux bornes de celle-ci conduit &agrave; I = #1# +/- #2#mA et U = #3# +/- #4#V . Les incertitudes<br />sont ind&eacute;pendantes.<br />1. Calculez la valeur de la r&eacute;sistance R = $1$ +/- $2$ Ohms <br />2. Calculez la puissance (P = UI) dissip&eacute;e dans la r&eacute;sistance P = $3$ +/- $4$ W <br />3. Calculer P &agrave; partir de la relation P = RI =&gt; Delta P = $5$ +/- $6$ W</p>
B20: =CONCATENATE("+/- ",V2.DI_Ohm,"mA et U = ",V3.V_Ohm," +/- ",V4.DV_Ohm,"V . Les incertitudes<br />sont ind&eacute;pendantes.<br />1. Calculez la valeur de la r&eacute;sistance R = ",R1.R_Ohm," +/- ",R2.DR_Ohm," Ohms <br />2. Calculez la puissance (P = UI) dissip&eacute;e") -> +/- 1.5mA et U = 21.5 +/- 3.5V . Les incertitudes<br />sont ind&eacute;pendantes.<br />1. Calculez la valeur de la r&eacute;sistance R = {1:NUMERICAL:=9.15E-01:4.57E-02} +/- {1:NUMERICAL:=2.07E-01:1.04E-02} Ohms <br />2. Calculez la puissance (P = UI) dissip&eacute;e | C20: résistance et la tension aux bornes de celle-ci conduit à I = #1# +/- #2#mA et U = #3# +/- #4#V . Les incertitudes
B21: =CONCATENATE("dans la r&eacute;sistance P = ",R3.P_Ohm," +/- ",R4.DP_Ohm," W <br />3. Calculer P &agrave; partir de la relation P = RI<sup>2</sup> =&gt; Delta P = ",R5.Pui_Ohm," +/- ",R6.DPui_Ohm," W</p>") -> dans la r&eacute;sistance P = {1:NUMERICAL:=5.05E+02:2.53E+01} +/- {1:NUMERICAL:=1.15E+02:5.73E+00} W <br />3. Calculer P &agrave; partir de la relation P = RI<sup>2</sup> =&gt; Delta P = {1:NUMERICAL:=5.05E+02:2.53E+01} +/- {2:NUMERICAL:=1.47E+02:7.34E+00} W</p> | C21: sont indépendantes.
B22: =CONCATENATE("") ->  | C22: 1. Calculez la valeur de la résistance R = $1$ +/- $2$ Ohms
B23: =CONCATENATE("") ->  | C23: 2. Calculez la puissance (P = UI) dissipée dans la résistance P = $3$ +/- $4$ W
B24: =CONCATENATE("") ->  | C24: 3. Calculer P à partir de la relation P = RI => Delta P = $5$ +/- $6$ W

Sheet Sphere-Creuse
A1: catégorie_Sph | B1: Sphere-Creuse | C1: =CONCATENATE(" <!-- question XLQ ", titre_Sph, "-->") -> <!-- question XLQ Sphere-Creuse_Sph--> | F1: Valeur Mini_Sph | G1: Valeur Maxi_Sph | H1: Sig. Digit_Sph | I1: Val Choix_Sph | J1: Least significant | K1: V | L1: Max | M1: Min | N1: DV | O1: DV/V | P1: DR/R
B2: Sphere-Creuse_Sph | C2: =CONCATENATE(" <question type=",CHAR(34),"category",CHAR(34),"><category><text>", categorie_Sph,"</text></category></question>)") -> <question type="category"><category><text>Sphere-Creuse</text></category></question>) | E2: V1.R_Sph | F2: 11 | G2: 49 | H2: 1 | I2: =RANDBETWEEN(ValMini_Sph*10^-SigDig_Sph, ValMaxi_Sph*10^-SigDig_Sph)/10^-SigDig_Sph+ROUND(RANDBETWEEN(1,9),0) -> 27 | J2: =1/POWER(10,LEN(I2)-LEN(INT(I2))-(I2<>INT(I2))*1) -> 1 | K2: =4*PI()*(V1.R_Sph^3) -> 247343.8728 | L2: =4*PI()*((V1.R_Sph+J2)^3) -> 275856.9677 | M2: =4*PI()*((V1.R_Sph-J2)^3) -> 220866.5299 | N2: =(L2-M2)/2 -> 27495.2189 | O2: =N2/K2 -> 0.1111619164 | P2: =J2/V1.R_Sph -> 0.03703703704 | Q2: =O2/P2 -> 3.001371742
A3: Tag_Sph | B3: Sphere-Creuse_Sph | C3: <question type="cloze"> | E3: V2.r_Sph | F3: =V1.R_Sph/50 -> 0.54 | G3: =V1.R_Sph/10 -> 2.7 | H3: -1 | I3: =RANDBETWEEN(ValMini_Sph*10^-SigDig_Sph, ValMaxi_Sph*10^-SigDig_Sph)/10^-SigDig_Sph -> 1.2 | J3: =1/POWER(10,LEN(I3)-LEN(INT(I3))-(I3<>INT(I3))*1) -> 0.1 | K3: =4*PI()*(V2.r_Sph^3) -> 21.71468842 | L3: =4*PI()*((V2.r_Sph+J3)^3) -> 27.60831624 | M3: =4*PI()*((V2.r_Sph-J3)^3) -> 16.72583929 | N3: =(L3-M3)/2 -> 5.441238476 | O3: =N3/K3 -> 0.2505787037 | P3: =J3/V2.r_Sph -> 0.08333333333 | Q3: =O3/P3 -> 3.006944444 | CA3: Une sphère creuse a pour rayon extérieur #1#cm ; <p>la cavité est également une sphère de rayon #2#cm. <p>Exprimez le volume de la partie pleine V= $1$ +/- $2$ cm3.<p>un volume de la partie pleine V= "",R1.S_Sph,"" +/- "",R2.DS_Sph,"" cm3.</p><p><p>
A4: idnumber_Sph | B4: =TEXT(NOW(),"aammjj-hhmmss.00") -> 210710-210812.04 | C4: =CONCATENATE(" <name><text>", titre_Sph, "</text></name>") -> <name><text>Sphere-Creuse_Sph</text></name> | I4: =RANDBETWEEN(ValMini_Sph*10^-SigDig_Sph, ValMaxi_Sph*10^-SigDig_Sph)/10^-SigDig_Sph -> 0
A5: points_Sph | B5: 1 | C5: <questiontext format="html"> | O5: V | P5: =K2-K3 -> 247322.1581
A6: tolérance_Sph | B6: 0.05 | C6: =CONCATENATE(" <text><![CDATA[<p>", question_Sph, "</p>]]></text>") -> <text><![CDATA[<p> Une sph&egrave;re creuse a pour rayon ext&eacute;rieur 27cm. La cavit&eacute; est &eacute;galement une sph&egrave;re de rayon 1.2cm. Exprimez le volume de la partie pleine V= {1:NUMERICAL:=2.47E+05:1.24E+04} +/- {2:NUMERICAL:=2.75E+04:1.38E+03} cm3.</p>]]></text> | F6: Cible_Sph | G6: Toler_Sph | H6: PointsQuestion_Sph | O6: DV | P6: =N3+N2 -> 27500.66014
A7: penalité_Sph | B7: 0.1 | C7: </questiontext> | E7: R1.S_Sph | F7: =K2-K3 -> 247322.1581 | G7: =tolerance_Sph*ValMini_Sph -> 12366.10791 | H7: 1 | I7: =CONCATENATE("{",PointsQuestion_Sph,":NUMERICAL:=",TEXT(Cible_Sph,"0.00E+00"),":",TEXT(ABS(Tolere_Sph),"0.00E+00"),"}") -> {1:NUMERICAL:=2.47E+05:1.24E+04} | P7: =P6/P5 -> 0.1111936769
A8: feedback_Sph | B8: _ | C8: =CONCATENATE(" <defaultgrade>",points_Sph,"</defaultgrade><generalfeedback><text>",feedback_Sph,"</text></generalfeedback><penalty>",penalty_Sph,"</penalty><hidden>0</hidden>)") -> <defaultgrade>1</defaultgrade><generalfeedback><text>_</text></generalfeedback><penalty>0.1</penalty><hidden>0</hidden>) | E8: R2.DS_Sph | F8: =P6 -> 27500.66014 | G8: =tolerance_Sph*ValMini_Sph -> 1375.033007 | H8: 2 | I8: =CONCATENATE("{",PointsQuestion_Sph,":NUMERICAL:=",TEXT(Cible_Sph,"0.00E+00"),":",TEXT(ABS(Tolere_Sph),"0.00E+00"),"}") -> {2:NUMERICAL:=2.75E+04:1.38E+03}
A9: Cellule vides_Sph | B9: =COUNTBLANK(B1:B8) -> 0 | C9: =CONCATENATE(" <idnumber>",idnumber_Sph,"</idnumber><tags><tag><text>",Tag_Sph,"</text></tag></tags>") -> <idnumber>210710-210812.04</idnumber><tags><tag><text>Sphere-Creuse_Sph</text></tag></tags> | I9: =SUM(F7:H8) -> 288566.9592
A10: question format HTML_Sph | B10: =CONCATENATE(" ",B19,B20,B21) -> Une sph&egrave;re creuse a pour rayon ext&eacute;rieur 27cm. La cavit&eacute; est &eacute;galement une sph&egrave;re de rayon 1.2cm. Exprimez le volume de la partie pleine V= {1:NUMERICAL:=2.47E+05:1.24E+04} +/- {2:NUMERICAL:=2.75E+04:1.38E+03} cm3. | C10: </question>
A11: Repere Var Rep | B11: _Sph
A12: HTML File | B12: =CONCATENATE(categorie_Sph,"_HTML.txt") -> Sphere-Creuse_HTML.txt
A13: Valide ? | B13: =ISNUMBER(I9) -> TRUE | F13: Pour ne pas que I2 se termine par "0" : +ARRONDI(ALEA.ENTRE.BORNES(1;9);0)
A14: https://html-online.com/editor/
C15: 5
A16: Var : | B16: # | C16: 3 | K16: =4*PI()*(32.5)^3 -> 431379.9412
A17: Res : | B17: $ | C17: 2 | K17: =4*PI()*(0.2)^3 -> 0.1005309649
K18: =K16-K17 -> 431379.8407
B19: =CONCATENATE("Une sph&egrave;re creuse a pour rayon ext&eacute;rieur ",V1.R_Sph,"cm. La cavit&eacute; est &eacute;galement une sph&egrave;re de rayon ",V2.r_Sph,"cm. Exprimez le volume de la partie pleine V= ",R1.S_Sph," +/- ",R2.DS_Sph," cm3.") -> Une sph&egrave;re creuse a pour rayon ext&eacute;rieur 27cm. La cavit&eacute; est &eacute;galement une sph&egrave;re de rayon 1.2cm. Exprimez le volume de la partie pleine V= {1:NUMERICAL:=2.47E+05:1.24E+04} +/- {2:NUMERICAL:=2.75E+04:1.38E+03} cm3. | C19: Une sphère creuse a pour rayon extérieur #1#cm ;
C20: la cavité est également une sphère de rayon #2#cm.
B21: =CONCATENATE("") ->  | C21: Exprimez le volume de la partie pleine V= $1$ +/- $2$ cm3.
C41: +/- "",R2.DS_Sph,"" cm3.</p><p><p>

Sheet Traction
A1: o | B1: Traction | C1: =CONCATENATE(" <!-- question XLQ ", titre_Tra, "-->") -> <!-- question XLQ Traction_Tra--> | F1: Valeur Mini_Tra | G1: Valeur Maxi_Tra | H1: Sig. Digit_Tra | I1: Val Choix_Tra
B2: Traction_Tra | C2: =CONCATENATE(" <question type=",CHAR(34),"category",CHAR(34),"><category><text>", categorie_Tra,"</text></category></question>)") -> <question type="category"><category><text>Traction</text></category></question>) | E2: V1.Long_Tra | F2: 100 | G2: 200 | H2: 1 | I2: =RANDBETWEEN(ValMini_Tra*10^-SigDig_Tra, ValMaxi_Tra*10^-SigDig_Tra)/10^-SigDig_Tra -> 160 | J2: mm | K2: 150 | T2: V1.Long_Tra | U2: 150
A3: Tag_Tra | B3: Traction_Tra | C3: <question type="cloze"> | E3: V.Diam_Tra | F3: =V1.Long_Tra/30 -> 5.333333333 | G3: =V1.Long_Tra/20 -> 8 | H3: 0 | I3: 6 | J3: mm | K3: 3.5 | T3: V.Diam_Tra | U3: 10 | CA3: <p>On effectue un essai de traction sur une &eacute;prouvette de 10 mm de diam&egrave;tre et de #1# 150 mm de <br />longueur. On observe que : le diam&egrave;tre s'est r&eacute;duit de #2# 3,5 &micro;m sous une charge de #3# 6 kN durant <br />la d&eacute;formation &eacute;lastique; et que la limite d'&eacute;lasticit&eacute; est atteinte pour une <br />force de #4# 39 kN et un allongement total de #5# 1,36 mm. La force maximale que peut supporter <br />l'&eacute;prouvette est de #6# 43 kN.</p><p><p>a) Quelle est la limite conventionnelle d'&eacute;lasticit&eacute; (contrainte) ? R&eacute;ponse : $1$ MPa</p><p><p>b) Quelle est la r&eacute;sistance &agrave; la traction de ce mat&eacute;riau? $2$ MPa</p><p><p>c) Quelle est la limite &eacute;lastique de d&eacute;formation totale (en %) ? $3$%</p><p><p>d) Quel est le module d'Young de ce mat&eacute;riau ? $4$ MPa</p><p><p>e) Quel est le coefficient de Poisson de ce mat&eacute;riau ? $5$</p><p><p>f) Quelle est l'&eacute;nergie &eacute;lastique emmagasin&eacute;e dans l'&eacute;prouvette &agrave; la limite &eacute;lastique ? $6$</p><p><p>&nbsp;</p><p>
A4: idnumber_Tra | B4: =TEXT(NOW(),"aammjj-hhmmss.00") -> 210710-210812.04 | C4: =CONCATENATE(" <name><text>", titre_Tra, "</text></name>") -> <name><text>Traction_Tra</text></name> | E4: V2.Red_Dia_Tra | F4: 3 | G4: 4 | H4: -1 | I4: 3.7 | J4: µm | K4: 3.5 | T4: V2.Red_Dia_Tra | U4: 3.5
A5: points_Tra | B5: 1 | C5: <questiontext format="html"> | E5: V3.Charge_Tra | F5: 4 | G5: 9 | H5: 0 | I5: 4 | J5: kN | K5: 6 | T5: V3.Charge_Tra | U5: 6
A6: tolérance_Tra | B6: 0.1 | C6: =CONCATENATE(" <text><![CDATA[<p>", question_Tra, "</p>]]></text>") -> <text><![CDATA[<p> On effectue un essai de traction sur une &eacute;prouvette de 6 mm de diam&egrave;tre et de 160 mm de <br />longueur. On observe que : le diam&egrave;tre s'est r&eacute;duit de 3.7 &micro;m sous une charge de 4 kN durant <br />la d&eacute;formation &eacute;lastique; et que la limite d'&eacute;lasticit&eacute; est atteinte pour une <br />force de 42 kN et un allongement total de 1.09 mm. La force maximale que peut supporter <br />l'&eacute;prouvette est de 44 kN.</p><p><p>a) Quelle est la limite d'&eacute;lasticit&eacute; (contrainte) ? R&eacute;ponse : {1:NUMERICAL:=1.49E+03:1.49E+02}MPa</p><p><p>b) Quelle est la r&eacute;sistance &agrave; la traction de ce mat&eacute;riau? {2:NUMERICAL:=1.56E+03:1.56E+02} MPa</p><p><p>c) Quelle est la limite &eacute;lastique de d&eacute;formation (en %) ? {2:NUMERICAL:=6.81E-01:6.81E-02}%</p><p><p>d) Quel est le module d'Young de ce mat&eacute;riau ? {3:NUMERICAL:=2.18E+05:2.18E+04} MPa</p><p><p>e) Quelle est l'&eacute;nergie &eacute;lastique emmagasin&eacute;e dans l'&eacute;prouvette &agrave; la limite &eacute;lastique ? {4:NUMERICAL:=5.06E+00:5.06E-01} J</p><p><p>&nbsp;</p><p></p>]]></text> | E6: V4.Force_Elas_Tra | F6: 33 | G6: 44 | H6: 0 | I6: 42 | J6: kN | K6: 39 | T6: V4.Force_Elas_Tra | U6: 39
A7: penalité_Tra | B7: 0.1 | C7: </questiontext> | E7: V5.Allonge_Tra | F7: 1 | G7: 2 | H7: -2 | I7: 1.09 | J7: mm | K7: 1.36 | T7: V5.Allonge_Tra | U7: 1.36
A8: feedback_Tra | B8: _ | C8: =CONCATENATE(" <defaultgrade>",points_Tra,"</defaultgrade><generalfeedback><text>",feedback_Tra,"</text></generalfeedback><penalty>",penalty_Tra,"</penalty><hidden>0</hidden>)") -> <defaultgrade>1</defaultgrade><generalfeedback><text>_</text></generalfeedback><penalty>0.1</penalty><hidden>0</hidden>) | E8: V6.Force_Max_Tra | F8: =V4.Force_Elas_Tra+2 -> 44 | G8: =F8+15 -> 59 | H8: 0 | I8: 44 | J8: kN | K8: 43 | T8: V6.Force_Max_Tra | U8: 43
A9: Cellule vides_Tra | B9: =COUNTBLANK(B1:B8) -> 0 | C9: =CONCATENATE(" <idnumber>",idnumber_Tra,"</idnumber><tags><tag><text>",Tag_Tra,"</text></tag></tags>") -> <idnumber>210710-210812.04</idnumber><tags><tag><text>Traction_Tra</text></tag></tags> | I9: 0
A10: question format HTML_Tra | B10: =CONCATENATE(" ",B19,B20,B21,B22,B23,B24,B25,B26,B27,B28,B29,B30) -> On effectue un essai de traction sur une &eacute;prouvette de 6 mm de diam&egrave;tre et de 160 mm de <br />longueur. On observe que : le diam&egrave;tre s'est r&eacute;duit de 3.7 &micro;m sous une charge de 4 kN durant <br />la d&eacute;formation &eacute;lastique; et que la limite d'&eacute;lasticit&eacute; est atteinte pour une <br />force de 42 kN et un allongement total de 1.09 mm. La force maximale que peut supporter <br />l'&eacute;prouvette est de 44 kN.</p><p><p>a) Quelle est la limite d'&eacute;lasticit&eacute; (contrainte) ? R&eacute;ponse : {1:NUMERICAL:=1.49E+03:1.49E+02}MPa</p><p><p>b) Quelle est la r&eacute;sistance &agrave; la traction de ce mat&eacute;riau? {2:NUMERICAL:=1.56E+03:1.56E+02} MPa</p><p><p>c) Quelle est la limite &eacute;lastique de d&eacute;formation (en %) ? {2:NUMERICAL:=6.81E-01:6.81E-02}%</p><p><p>d) Quel est le module d'Young de ce mat&eacute;riau ? {3:NUMERICAL:=2.18E+05:2.18E+04} MPa</p><p><p>e) Quelle est l'&eacute;nergie &eacute;lastique emmagasin&eacute;e dans l'&eacute;prouvette &agrave; la limite &eacute;lastique ? {4:NUMERICAL:=5.06E+00:5.06E-01} J</p><p><p>&nbsp;</p><p> | C10: </question> | F10: Cible_Tra | G10: Toler_Tra | H10: PointsQuestion_Tra
A11: Repere Var Rep | B11: _Tra | E11: R1.Lim_Elas_Tra | F11: =1000*V4.Force_Elas_Tra/(PI()*0.25*(V.Diam_Tra)^2) -> 1485.446136 | G11: =tolerance_Tra*ValMini_Tra -> 148.5446136 | H11: 1 | I11: =CONCATENATE("{",PointsQuestion_Tra,":NUMERICAL:=",TEXT(Cible_Tra,"0.00E+00"),":",TEXT(ABS(Tolere_Tra),"0.00E+00"),"}") -> {1:NUMERICAL:=1.49E+03:1.49E+02} | K11: =K6/(PI()*0.01^2/4)/1000 -> 496.5634224 | T11: R1.Lim_Elas_Tra | U11: 496,6 MPa
A12: HTML File | B12: =CONCATENATE(categorie_Tra,"_HTML.txt") -> Traction_HTML.txt | E12: R2.Resis_Meca_Tra | F12: =1000*V6.Force_Max_Tra/(PI()*(V.Diam_Tra)^2/4) -> 1556.181666 | G12: 155.6181666 | H12: 2 | I12: {2:NUMERICAL:=1.56E+03:1.56E+02} | T12: R2.Resis_Meca_Tra | U12: 547,5 MPa
A13: Valide ? | B13: =AND(ISNUMBER(I17)) -> TRUE | E13: R3.Def_Ela_Tra | F13: =100*V5.Allonge_Tra/V1.Long_Tra -> 0.68125 | G13: 0.068125 | H13: 2 | I13: {2:NUMERICAL:=6.81E-01:6.81E-02} | T13: R3.Def_Ela_Tra | U13: 0,907 %
A14: https://html-online.com/editor/ | E14: R4.Module_You_Tra | F14: =F11/(F13/100) -> 218047.1392 | G14: 21804.71392 | H14: 3 | I14: {3:NUMERICAL:=2.18E+05:2.18E+04} | T14: R4.Module_You_Tra | U14: 70,2 GPa
C15: 8 | T15: R5.Poisson_Tra | U15: 0,32
A16: Var : | B16: # | C16: 6 | E16: R6.Ener_Elas_Tra | F16: =F13*F11/(2*100) -> 5.059800899 | G16: 0.5059800899 | H16: 4 | I16: {4:NUMERICAL:=5.06E+00:5.06E-01} | T16: R6.Ener_Elas_Tra | U16: 21,76 J
A17: Res : | B17: $ | C17: 6 | F17: =2*((F6*1000)^2*V1.Long_Tra/1000)/(PI()*F14*1000000000*10*0.001) -> 5.087185714e-05 | I17: =SUM(F11:H16) -> 243215.9588
B19: =CONCATENATE("On effectue un essai de traction sur une &eacute;prouvette de ",V.Diam_Tra," mm de diam&egrave;tre et de ",V1.Long_Tra," mm de <br />longueur. On observe que : le diam&egrave;tre s'est r&eacute;duit de ",V2.Red_Dia_Tra," &micro;m") -> On effectue un essai de traction sur une &eacute;prouvette de 6 mm de diam&egrave;tre et de 160 mm de <br />longueur. On observe que : le diam&egrave;tre s'est r&eacute;duit de 3.7 &micro;m | C19: <p>On effectue un essai de traction sur une &eacute;prouvette de 10 mm de diam&egrave;tre et de #1# 150 mm de <br />longueur. On observe que : le diam&egrave;tre s'est r&eacute;duit de #2# 3,5 &micro;m sous une charge de #3# 6 kN durant <br />la d&eacute;formation &eacute;lastique; et que la limite d'&eacute;lasticit&eacute; est atteinte pour une <br />force de #4# 39 kN et un allongement total de #5# 1,36 mm. La force maximale que peut supporter <br />l'&eacute;prouvette est de #6# 43 kN.</p>
B20: =CONCATENATE(" sous une charge de ",V3.Charge_Tra," kN durant <br />la d&eacute;formation &eacute;lastique; et que la limite d'&eacute;lasticit&eacute; est atteinte pour une <br />force de ",V4.Force_Elas_Tra," kN et un allongement total de ",V5.Allonge_Tra,"") -> sous une charge de 4 kN durant <br />la d&eacute;formation &eacute;lastique; et que la limite d'&eacute;lasticit&eacute; est atteinte pour une <br />force de 42 kN et un allongement total de 1.09 | C20: <p>a) Quelle est la limite conventionnelle d'&eacute;lasticit&eacute; (contrainte) ? R&eacute;ponse : $1$ MPa</p>
B21: =CONCATENATE(" mm. La force maximale que peut supporter <br />l'&eacute;prouvette est de ",V6.Force_Max_Tra," kN.</p><p><p>a) Quelle est la limite d'&eacute;lasticit&eacute; (contrainte) ? R&eacute;ponse : ",R1.Lim_Elas_Tra,"") -> mm. La force maximale que peut supporter <br />l'&eacute;prouvette est de 44 kN.</p><p><p>a) Quelle est la limite d'&eacute;lasticit&eacute; (contrainte) ? R&eacute;ponse : {1:NUMERICAL:=1.49E+03:1.49E+02} | C21: <p>b) Quelle est la r&eacute;sistance &agrave; la traction de ce mat&eacute;riau? $2$ MPa</p>
B22: =CONCATENATE("MPa</p><p><p>b) Quelle est la r&eacute;sistance &agrave; la traction de ce mat&eacute;riau? ",R2.Resis_Meca_Tra," MPa</p><p><p>c) Quelle est la limite &eacute;lastique de d&eacute;formation (en %) ? ",R3.Def_Ela_Tra,"%</p><p><p>d)") -> MPa</p><p><p>b) Quelle est la r&eacute;sistance &agrave; la traction de ce mat&eacute;riau? {2:NUMERICAL:=1.56E+03:1.56E+02} MPa</p><p><p>c) Quelle est la limite &eacute;lastique de d&eacute;formation (en %) ? {2:NUMERICAL:=6.81E-01:6.81E-02}%</p><p><p>d) | C22: <p>c) Quelle est la limite &eacute;lastique de d&eacute;formation totale (en %) ? $3$%</p>
B23: =CONCATENATE(" Quel est le module d'Young de ce mat&eacute;riau ? ",R4.Module_You_Tra," MPa</p><p><p>e) Quelle est l'&eacute;nergie &eacute;lastique emmagasin&eacute;e") -> Quel est le module d'Young de ce mat&eacute;riau ? {3:NUMERICAL:=2.18E+05:2.18E+04} MPa</p><p><p>e) Quelle est l'&eacute;nergie &eacute;lastique emmagasin&eacute;e | C23: <p>d) Quel est le module d'Young de ce mat&eacute;riau ? $4$ MPa</p>
B24: =CONCATENATE(" dans l'&eacute;prouvette &agrave; la limite &eacute;lastique ? ",R6.Ener_Elas_Tra," J</p><p><p>&nbsp;</p><p>") -> dans l'&eacute;prouvette &agrave; la limite &eacute;lastique ? {4:NUMERICAL:=5.06E+00:5.06E-01} J</p><p><p>&nbsp;</p><p> | C24: <p>e) Quel est le coefficient de Poisson de ce mat&eacute;riau ? $5$</p>
B25: =CONCATENATE("") ->  | C25: <p>f) Quelle est l'&eacute;nergie &eacute;lastique emmagasin&eacute;e dans l'&eacute;prouvette &agrave; la limite &eacute;lastique ? $6$</p>
C26: <p>&nbsp;</p>
G27: eps | H27: sig
G28: 0 | H28: 0
G29: =F13 -> 0.68125 | H29: =F11 -> 1485.446136 | N29: :%s/{.*}/\\minisol{";;"}
G30: 1 | H30: =F12 -> 1556.181666 | N30: :%g/";;"/ s/^/=concatener("/ | T30: =CONCATENATE("On effectue un essai de traction sur une éprouvette de ",V2.Red_Dia_Tra," mm de diamètre et de ",V1.Long_Tra," mm de") -> On effectue un essai de traction sur une éprouvette de 3.7 mm de diamètre et de 160 mm de
N31: :%g/";;"/ s/$/") | T31: =CONCATENATE("longueur. On observe que : le diamètre s'est réduit de ",V2.Red_Dia_Tra," µm sous une charge de ",V3.Charge_Tra," kN durant") -> longueur. On observe que : le diamètre s'est réduit de 3.7 µm sous une charge de 4 kN durant
N32: :%s/=concatener("=concatener("/=concatener("/gie | T32: =CONCATENATE("la déformation élastique; et que la limite d'élasticité est atteinte pour une") -> la déformation élastique; et que la limite d'élasticité est atteinte pour une
N33: :%s/")")/")/gie | T33: =CONCATENATE("force de ",V4.Force_Elas_Tra," kN et un allongement total de ",V5.Allonge_Tra," mm. La force maximale que peut supporter") -> force de 42 kN et un allongement total de 1.09 mm. La force maximale que peut supporter
M34: =CONCATENATE("On réalise un essai de traction sur une éprouvette de ",V.Diam_Tra," mm de diamètre et de ",V1.Long_Tra," mm de ") -> On réalise un essai de traction sur une éprouvette de 6 mm de diamètre et de 160 mm de | T34: =CONCATENATE("l'éprouvette est de ",V6.Force_Max_Tra," kN.") -> l'éprouvette est de 44 kN.
M35: =CONCATENATE("longueur. Le diamètre se réduit de ",V2.Red_Dia_Tra," µm sous une charge de ",V3.Charge_Tra," kN, dans ") -> longueur. Le diamètre se réduit de 3.7 µm sous une charge de 4 kN, dans
M36: la déformation élastique et que la limite d'élasticité est atteinte pour une | T36: =CONCATENATE("a) Quelle est la limite d'élasticité (contrainte) ? \minisol{",ROUND(F11,0),"} MPa}") -> a) Quelle est la limite d'élasticité (contrainte) ? \minisol{1485} MPa}
M37: =CONCATENATE("force de ",V4.Force_Elas_Tra," kN et un allongement total de ",V5.Allonge_Tra," mm. La force maximale que peut supporter ") -> force de 42 kN et un allongement total de 1.09 mm. La force maximale que peut supporter | T37: =CONCATENATE("b) Quelle est la résistance à la traction de ce matériau ? \minisol{", ROUND(F12,0),"} MPa") -> b) Quelle est la résistance à la traction de ce matériau ? \minisol{1556} MPa
M38: =CONCATENATE("l'éprouvette est de ",V6.Force_Max_Tra," kN.\\") -> l'éprouvette est de 44 kN.\\ | T38: =CONCATENATE("c) Quelle est la limite élastique de déformation totale (en %) ?",ROUND(F13,0),"%") -> c) Quelle est la limite élastique de déformation totale (en %) ?1%
T39: =CONCATENATE("d) Quel est le module d'Young de ce matériau ? \minisol{",ROUND(F14,0),"} MPa") -> d) Quel est le module d'Young de ce matériau ? \minisol{218047} MPa
M40: =CONCATENATE("a) Quelle est la limite d'élasticité (contrainte nominale = $F/S_0$? \formsol{$F_{el} / (\pi d^2 /4)$} \minisol{",ROUND(F11,0),"} MPa\\") -> a) Quelle est la limite d'élasticité (contrainte nominale = $F/S_0$? \formsol{$F_{el} / (\pi d^2 /4)$} \minisol{1485} MPa\\ | T40: =CONCATENATE("e) Quelle est l'énergie élastique emmagasinée dans l'éprouvette à la limite élastique ? \minisol{",ROUND(F16,0),"J}") -> e) Quelle est l'énergie élastique emmagasinée dans l'éprouvette à la limite élastique ? \minisol{5J}
M41: =CONCATENATE("b) Quelle est la résistance à la traction de ce matériau? \formsol{$F_{Max} / (\pi d^2 / 4) $ } \minisol{",ROUND(F12,0),"} MPa\\") -> b) Quelle est la résistance à la traction de ce matériau? \formsol{$F_{Max} / (\pi d^2 / 4) $ } \minisol{1556} MPa\\
M42: =CONCATENATE("c) Quelle est la limite élastique de déformation (en \%) ? \formsol{$\epsilon_{el} / L_0$} \minisol{",ROUND(F13,2),"}\%\\") -> c) Quelle est la limite élastique de déformation (en \%) ? \formsol{$\epsilon_{el} / L_0$} \minisol{0.68}\%\\
M43: =CONCATENATE("d) Quel est le module d'Young de ce matériau ? \formsol{$\sigma_{el} / \varepsilon_{el} $} \minisol{",ROUND(F14,-2),"} MPa\\") -> d) Quel est le module d'Young de ce matériau ? \formsol{$\sigma_{el} / \varepsilon_{el} $} \minisol{218000} MPa\\
M44: =CONCATENATE("e) Quelle est l'énergie élastique emmagasinée dans l'éprouvette à la limite élastique ? \formsol{$\sigma_{el} * \varepsilon_{el} / (2 *100)$}\minisol{",ROUND(F16,1),"} J") -> e) Quelle est l'énergie élastique emmagasinée dans l'éprouvette à la limite élastique ? \formsol{$\sigma_{el} * \varepsilon_{el} / (2 *100)$}\minisol{5.1} J
